Workbook

Sheet Sample Report (hidden)
A2: Date
A3: Hen
A4: Program
A5: Start at 999999
A6: Sequence component 1 | B6: Time 1 | C6: Seqeunce Component 2 | D6: Time 2 | E6: Seqeunce Component 3 | F6: Time 3 | G6: Correct 0 = No 1=Yes | J6: Seqeunce | K6: Time
A7: 12 | B7: 7 | C7: 12 | D7: 42 | E7: 13 | F7: 18 | G7: if 77 new line, if 31 or 41 = yes new line on 77, | J7: =string of Seqeunce compponent 1, 2 & 3 | K7: =time 3
A8: This continues until ther is a 1 on its own to indicate start of summary data
J9: 10-19 =1
A10: Summary Data | J10: 20-29 =2
A11: Correct | B11: Incorrect | C11: Rft | D11: total | E11: Av Correct | F11: Av Incorrect | G11: Percent correct | H11: Time | J11: in this example the seqeunce would be 111
A12: 40 | B12: 33 | C12: 40 | D12: 73 | E12: 23.95 | F12: 15 | G12: 54 | H12: 806

Sheet Summary
A2: Day | B2: Date | C2: Average Response Rate | D2: Target % | E2: RF for non correct sequence | F2: U Value | K2: Block 1 | L2: Block 2 | M2: Block 3 | N2: Block 4 | O2: Block 5 | P2: Block 6
A3: 1 | B3: ='!N41191B.AXT'!B2:C2 -> <date> | C3: =('!N41191B.AXT'!F32/60)/'!N41191B.AXT'!Q3 -> 4.569135802 | D3: ='!N41191B.AXT'!N20/'!N41191B.AXT'!Q3 -> 0 | E3: =SUM('!N41191B.AXT'!L20:Q20)/'!N41191B.AXT'!Q3 -> 8.185185185 | F3: ='!N41191B.AXT'!Q16 -> 0.5498003026 | J3: Average Response Rate | K3: =AVERAGE(C3:C5) -> 7.444205398 | L3: =AVERAGE(C6:C8) -> 21.83993136 | M3: =AVERAGE(C9:C11) -> 116.1231481 | N3: =AVERAGE(C12:C14) -> 33.91574074 | O3: =AVERAGE(C15:C18) -> 8.530952381 | P3: =AVERAGE(C19:C21) -> 22.44111111
A4: 2 | B4: ='!N41292B.AXT'!B2:C2 -> <date> | C4: =('!N41292B.AXT'!F22/60)/'!N41292B.AXT'!Q3 -> 10.51764706 | D4: ='!N41292B.AXT'!N20/'!N41292B.AXT'!Q3 -> 0.1176470588 | E4: =SUM('!N41292B.AXT'!L20:Q20)/'!N41292B.AXT'!Q3 -> 7.588235294 | F4: ='!N41292B.AXT'!Q16 -> 0.6757048828 | J4: Target % | K4: =AVERAGE(D3:D5) -> 0.06004901961 | L4: =AVERAGE(D6:D8) -> 0.07692307692 | M4: =AVERAGE(D9:D11) -> 0 | N4: =AVERAGE(D12:D14) -> 0 | O4: =AVERAGE(D15:D18) -> 0.09642857143 | P4: =AVERAGE(D19:D21) -> 0.1333333333
A5: 3 | B5: ='!N41382B.AXT'!B2:C2 -> <date> | C5: =('!N41382B.AXT'!F22/60)/'!N41382B.AXT'!Q3 -> 7.245833333 | D5: ='!N41382B.AXT'!N20/'!N41382B.AXT'!Q3 -> 0.0625 | E5: =SUM('!N41382B.AXT'!L20:Q20)/'!N41382B.AXT'!Q3 -> 7.3125 | F5: ='!N41382B.AXT'!Q16 -> 0.7069548828 | J5: CCRF | K5: =AVERAGE(E3:E5) -> 7.695306826 | L5: =AVERAGE(E6:E8) -> 1.975912976 | M5: =AVERAGE(E9:E11) -> 0.2777777778 | N5: =AVERAGE(E12:E14) -> 0.2222222222 | O5: =AVERAGE(E15:E18) -> 0.2428571429 | P5: =AVERAGE(E19:E21) -> 0.5666666667
A6: 4 | B6: ='!N41492B.AXT'!B2:C2 -> <date> | C6: =('!N41492B.AXT'!F12/60)/'!N41492B.AXT'!Q3 -> 34.73611111 | D6: ='!N41492B.AXT'!N20/'!N41492B.AXT'!Q3 -> 0 | E6: =SUM('!N41492B.AXT'!L20:Q20)/'!N41492B.AXT'!Q3 -> 0.3333333333 | F6: ='!N41492B.AXT'!Q16 -> 0.7420981285 | J6: U Value | K6: =AVERAGE(F3:F5) -> 0.644153356 | L6: =AVERAGE(F6:F8) -> 0.6269337363 | M6: =AVERAGE(F9:F11) -> 0.5264600548 | N6: =AVERAGE(F12:F14) -> 0.6092431256 | O6: =AVERAGE(F15:F18) -> 0.3723949393 | P6: =AVERAGE(F19:F21) -> 0.4727218867
A7: 5 | B7: ='!N41585B.AXT'!B2:C2 -> <date> | C7: =('!N41585B.AXT'!F32/60)/'!N41585B.AXT'!Q3 -> 15.33974359 | D7: ='!N41585B.AXT'!N20/'!N41585B.AXT'!Q3 -> 0.2307692308 | E7: =SUM('!N41585B.AXT'!L20:Q20)/'!N41585B.AXT'!Q3 -> 5.230769231 | F7: ='!N41585B.AXT'!Q16 -> 0.5264411707
A8: 6 | B8: ='!N41684B.AXT'!B2:C2 -> <date> | C8: =('!N41684B.AXT'!F17/60)/'!N41684B.AXT'!Q3 -> 15.44393939 | D8: ='!N41684B.AXT'!N20/'!N41684B.AXT'!Q3 -> 0 | E8: =SUM('!N41684B.AXT'!L20:Q20)/'!N41684B.AXT'!Q3 -> 0.3636363636 | F8: ='!N41684B.AXT'!Q16 -> 0.6122619097
A9: 7 | B9: ='!N417A3B.AXT'!B2:C2 -> <date> | C9: =('!N417A3B.AXT'!F9/60)/'!N417A3B.AXT'!Q3 -> 104.4777778 | D9: ='!N417A3B.AXT'!N20/'!N417A3B.AXT'!Q3 -> 0 | E9: =SUM('!N417A3B.AXT'!L20:Q20)/'!N417A3B.AXT'!Q3 -> 0.3333333333 | F9: ='!N417A3B.AXT'!Q16 -> 0.5793801643 | G9: =K3 -> 7.444205398 | H9: =L3 -> 21.83993136 | I9: 116.1231481 | J9: 33.91574074 | K9: 8.530952381 | L9: 22.44111111 | M9: =K4 -> 0.06004901961 | N9: =L4 -> 0.07692307692 | O9: 0 | P9: 0 | Q9: 0.09642857143 | R9: 0.1333333333 | S9: =K6 -> 0.644153356 | T9: =L6 -> 0.6269337363 | U9: 0.5264600548 | V9: 0.6092431256 | W9: 0.3723949393 | X9: 0.4727218867
A10: 8 | B10: ='!N41895B.AXT'!B2:C2 -> <date> | C10: =('!N41895B.AXT'!F7/60)/'!N41895B.AXT'!Q3 -> 168.7666667 | D10: ='!N41895B.AXT'!N20/'!N41895B.AXT'!Q3 -> 0 | E10: =SUM('!N41895B.AXT'!L20:Q20)/'!N41895B.AXT'!Q3 -> 0 | F10: 0
A11: 9 | B11: ='!N41990B.AXT'!B2:C2 -> <date> | C11: =('!N41990B.AXT'!F8/60)/'!N41990B.AXT'!Q3 -> 75.125 | D11: ='!N41990B.AXT'!N20/'!N41990B.AXT'!Q3 -> 0 | E11: =SUM('!N41990B.AXT'!L20:Q20)/'!N41990B.AXT'!Q3 -> 0.5 | F11: ='!N41990B.AXT'!Q16 -> 1
A12: 10 | B12: ='!N42091B.AXT'!B2:C2 -> <date> | C12: =('!N42091B.AXT'!F9/60)/'!N42091B.AXT'!Q3 -> 10.61666667 | D12: ='!N42091B.AXT'!N20/'!N42091B.AXT'!Q3 -> 0 | E12: =SUM('!N42091B.AXT'!L20:Q20)/'!N42091B.AXT'!Q3 -> 0.3333333333 | F12: ='!N42091B.AXT'!Q16 -> 1
A13: 11 | B13: ='!N421A1B.AXT'!B2:C2 -> <date> | C13: =('!N421A1B.AXT'!F11/60)/'!N421A1B.AXT'!Q3 -> 60.31388889 | D13: ='!N421A1B.AXT'!N20/'!N421A1B.AXT'!Q3 -> 0 | E13: =SUM('!N421A1B.AXT'!L20:Q20)/'!N421A1B.AXT'!Q3 -> 0.3333333333 | F13: ='!N421A1B.AXT'!Q16 -> 0.8277293768
A14: 12 | B14: ='!N42294B.AXT'!B2:C2 -> <date> | C14: =('!N42294B.AXT'!F7/60)/'!N42294B.AXT'!Q3 -> 30.81666667 | D14: ='!N42294B.AXT'!N20/'!N42294B.AXT'!Q3 -> 0 | E14: =SUM('!N42294B.AXT'!L20:Q20)/'!N42294B.AXT'!Q3 -> 0 | F14: 0
A15: 13 | B15: ='!N42385B.AXT'!B2:C2 -> <date> | C15: 0 | D15: 0 | E15: 0 | F15: 0
A16: 14 | B16: ='!N424A4B.AXT'!B2:C2 -> <date> | C16: =('!N424A4B.AXT'!F7/60)/'!N424A4B.AXT'!Q3 -> 0 | D16: ='!N424A4B.AXT'!N20/'!N424A4B.AXT'!Q3 -> 0 | E16: =SUM('!N424A4B.AXT'!L20:Q20)/'!N424A4B.AXT'!Q3 -> 0 | F16: 0
A17: 15 | B17: ='!N42683B.AXT'!B2:C2 -> <date> | C17: =('!N42683B.AXT'!F15/60)/'!N42683B.AXT'!Q3 -> 6.483333333 | D17: ='!N42683B.AXT'!N20/'!N42683B.AXT'!Q3 -> 0.1 | E17: =SUM('!N42683B.AXT'!L20:Q20)/'!N42683B.AXT'!Q3 -> 0.4 | F17: ='!N42683B.AXT'!Q16 -> 0.6931267214
A18: 16 | B18: ='!N42785B.AXT'!B2:C2 -> <date> | C18: =('!N42785B.AXT'!F13/60)/'!N42785B.AXT'!Q3 -> 27.64047619 | D18: ='!N42785B.AXT'!N20/'!N42785B.AXT'!Q3 -> 0.2857142857 | E18: =SUM('!N42785B.AXT'!L20:Q20)/'!N42785B.AXT'!Q3 -> 0.5714285714 | F18: ='!N42785B.AXT'!Q16 -> 0.7964530359
A19: 17 | B19: ='!N42894B.AXT'!B2:C2 -> <date> | C19: =('!N42894B.AXT'!F11/60)/'!N42894B.AXT'!Q3 -> 31.92 | D19: ='!N42894B.AXT'!N20/'!N42894B.AXT'!Q3 -> 0.2 | E19: =SUM('!N42894B.AXT'!L20:Q20)/'!N42894B.AXT'!Q3 -> 0.6 | F19: ='!N42894B.AXT'!Q16 -> 0.5904362833
A20: 18 | B20: ='!N42982B.AXT'!B2:C2 -> <date> | C20: =('!N42982B.AXT'!F11/60)/'!N42982B.AXT'!Q3 -> 24.45333333 | D20: ='!N42982B.AXT'!N20/'!N42982B.AXT'!Q3 -> 0.2 | E20: =SUM('!N42982B.AXT'!L20:Q20)/'!N42982B.AXT'!Q3 -> 0.6 | F20: ='!N42982B.AXT'!Q16 -> 0.8277293768
A21: 19 | B21: ='!N501A0B.AXT'!B2:C2 -> <date> | C21: =('!N501A0B.AXT'!F7/60)/'!N501A0B.AXT'!Q3 -> 10.95 | D21: ='!N501A0B.AXT'!N20/'!N501A0B.AXT'!Q3 -> 0 | E21: =SUM('!N501A0B.AXT'!L20:Q20)/'!N501A0B.AXT'!Q3 -> 0.5 | F21: 0
A22: 20
A23: 21
A24: 22
A25: 23
A26: 24
A27: 25
A28: 26
A29: 27
A30: 28
A31: 29
A32: 30

Sheet Start
F1: Use Folder 51 | H1: Auto Clean Up | J1: Correct sequence
F2: FALSE | H2: TRUE | J2: 112
A4: Working with Folder | G4: Process All/Or Pick A number: ALL or an integer
A5: F:\Possum Chapter\Raw Data\baxter\LLR\ | G5: ALL
A6: Filenames:
A7: !N42294B.AXT | G7: Paint Cells
A8: !N42385B.AXT | G8: FALSE
A9: !N424A4B.AXT
A10: !N42683B.AXT
A11: !N42785B.AXT
A12: !N42894B.AXT
A13: !N42982B.AXT
A14: !N501A0B.AXT
A15: !N41191B.AXT
A16: !N41292B.AXT
A17: !N41382B.AXT
A18: !N41492B.AXT
A19: !N41585B.AXT
A20: !N41684B.AXT
A21: !N417A3B.AXT
A22: !N41895B.AXT
A23: !N41990B.AXT
A24: !N42091B.AXT
A25: !N421A1B.AXT

Sheet !N41191B.AXT
A1: Report for:!N41191B.AXT
A2: Date: | B2: <date>
A3: Hen: | B3: <hen> | F3: Correct Sequence | G3: =Start!J2 -> 112 | P3: Total Sequences in Data | Q3: =4994-COUNTBLANK(L7:L5000) -> 27 | V3: Total Sequences in Block Data | W3: =COUNTA(L7:L11) -> 5 | AA3: Total Sequences in Block Data | AB3: =COUNTA(L12:L15) -> 4 | AF3: Total Sequences in Block Data | AG3: =COUNTA(L16:L20) -> 5 | AK3: Total Sequences in Block Data | AL3: =COUNTA(L21:L24) -> 4 | AP3: Total Sequences in Block Data | AQ3: =COUNTA(L25:L29) -> 5 | AU3: Total Sequences in Block Data | AV3: =COUNTA(L30:L33) -> 4
P4: Total Sequences in Summary | Q4: =SUM(O7:O14) -> 26 | V4: Total Sequences in Block Summary | W4: =SUM(U7:U14) -> 5 | AA4: Total Sequences in Block Summary | AB4: =SUM(Z7:Z14) -> 4 | AF4: Total Sequences in Block Summary | AG4: =SUM(AE7:AE14) -> 5 | AK4: Total Sequences in Block Summary | AL4: =SUM(AJ7:AJ14) -> 4 | AP4: Total Sequences in Block Summary | AQ4: =SUM(AO7:AO14) -> 5 | AU4: Total Sequences in Block Summary | AV4: =SUM(AT7:AT14) -> 3
T5: Block 1 | Y5: Block 2 | AD5: Block 3 | AI5: Block 4 | AN5: Block 5 | AS5: Block 6
A6: Sequence Component 1 | B6: Time 1 | C6: Sequence Component 2 | D6: Time 2 | E6: Sequence Component 3 | F6: Time 3 | G6: Sequence Component 4 | H6: Time 4 | I6: Sequence Component 5 | J6: Time 5 | K6: Correct? 0=No 1=Yes | L6: Sequence | N6: Frequency | P6: Relative Frequency | Q6: Variability | T6: Frequency | V6: Relative Frequency | W6: Variability | Y6: Frequency | AA6: Relative Frequency | AB6: Variability | AD6: Frequency | AF6: Relative Frequency | AG6: Variability | AI6: Frequency | AK6: Relative Frequency | AL6: Variability | AN6: Frequency | AP6: Relative Frequency | AQ6: Variability | AS6: Frequency | AU6: Relative Frequency | AV6: Variability
A7: 11 | B7: 37 | C7: 22 | D7: 43 | E7: 14 | F7: 54 | K7: 0 | L7: 121 | N7: 111 | O7: =COUNTIF($L$7:$L$500,N7) -> 6 | P7: =O7/$Q$4 -> 0.2307692308 | Q7: =IF(P7=0,0,(P7*((LOG(P7))/LOG(2)))) -> -0.4881870502 | T7: =N7 -> 111 | U7: =COUNTIF(L7:L11,T7) -> 1 | V7: =U7/(W4-U8) -> 0.2 | W7: =IF(V7=0,0,(V7*((LOG(V7))/LOG(2)))) -> -0.464385619 | Y7: =N7 -> 111 | Z7: =COUNTIF(L12:L15,Y7) -> 1 | AA7: =Z7/(AB4-Z8) -> 0.25 | AB7: =IF(AA7=0,0,(AA7*((LOG(AA7))/LOG(2)))) -> -0.5 | AD7: =N7 -> 111 | AE7: =COUNTIF(L16:L20,AD7) -> 0 | AF7: =AE7/(AG4-AE8) -> 0 | AG7: =IF(AF7=0,0,(AF7*((LOG(AF7))/LOG(2)))) -> 0 | AI7: =N7 -> 111 | AJ7: =COUNTIF(L21:L24,AI7) -> 1 | AK7: =AJ7/(AL4-AJ8) -> 0.25 | AL7: =IF(AK7=0,0,(AK7*((LOG(AK7))/LOG(2)))) -> -0.5 | AN7: =N7 -> 111 | AO7: =COUNTIF(L25:L29,AN7) -> 2 | AP7: =AO7/(AQ4-AO8) -> 0.4 | AQ7: =IF(AP7=0,0,(AP7*((LOG(AP7))/LOG(2)))) -> -0.528771238 | AS7: =N7 -> 111 | AT7: =COUNTIF(L30:L33,AS7) -> 1 | AU7: =AT7/(AV4-AT8) -> 0.3333333333 | AV7: =IF(AU7=0,0,(AU7*((LOG(AU7))/LOG(2)))) -> -0.5283208336
A8: 22 | B8: 284 | C8: 24 | D8: 303 | E8: 14 | F8: 316 | K8: 0 | L8: 221 | N8: 112 | O8: =COUNTIF($L$7:$L$500,N8) -> 0 | P8: =O8/$Q$4 -> 0 | Q8: =IF(P8=0,0,(P8*((LOG(P8))/LOG(2)))) -> 0 | T8: =N8 -> 112 | U8: =COUNTIF(L7:L11,T8) -> 0 | Y8: =N8 -> 112 | Z8: =COUNTIF(L12:L15,Y8) -> 0 | AD8: =N8 -> 112 | AE8: =COUNTIF(L16:L20,AD8) -> 0 | AI8: =N8 -> 112 | AJ8: =COUNTIF(L21:L24,AI8) -> 0 | AN8: =N8 -> 112 | AO8: =COUNTIF(L25:L29,AN8) -> 0 | AS8: =N8 -> 112 | AT8: =COUNTIF(L30:L33,AS8) -> 0
A9: 22 | B9: 569 | C9: 24 | D9: 579 | E9: 23 | F9: 584 | K9: 0 | L9: 222 | N9: 121 | O9: =COUNTIF($L$7:$L$500,N9) -> 1 | P9: =O9/$Q$4 -> 0.03846153846 | Q9: =IF(P9=0,0,(P9*((LOG(P9))/LOG(2)))) -> -0.180786143 | T9: =N9 -> 121 | U9: =COUNTIF(L7:L11,T9) -> 1 | V9: =U9/(W4-U8) -> 0.2 | W9: =IF(V9=0,0,(V9*((LOG(V9))/LOG(2)))) -> -0.464385619 | Y9: =N9 -> 121 | Z9: =COUNTIF(L12:L15,Y9) -> 0 | AA9: =Z9/(AB4-Z8) -> 0 | AB9: =IF(AA9=0,0,(AA9*((LOG(AA9))/LOG(2)))) -> 0 | AD9: =N9 -> 121 | AE9: =COUNTIF(L16:L20,AD9) -> 0 | AF9: =AE9/(AG4-AE8) -> 0 | AG9: =IF(AF9=0,0,(AF9*((LOG(AF9))/LOG(2)))) -> 0 | AI9: =N9 -> 121 | AJ9: =COUNTIF(L21:L24,AI9) -> 0 | AK9: =AJ9/(AL4-AJ8) -> 0 | AL9: =IF(AK9=0,0,(AK9*((LOG(AK9))/LOG(2)))) -> 0 | AN9: =N9 -> 121 | AO9: =COUNTIF(L25:L29,AN9) -> 0 | AP9: =AO9/(AQ4-AO8) -> 0 | AQ9: =IF(AP9=0,0,(AP9*((LOG(AP9))/LOG(2)))) -> 0 | AS9: =N9 -> 121 | AT9: =COUNTIF(L30:L33,AS9) -> 0 | AU9: =AT9/(AV4-AT8) -> 0 | AV9: =IF(AU9=0,0,(AU9*((LOG(AU9))/LOG(2)))) -> 0
A10: 22 | B10: 759 | C10: 24 | D10: 765 | E10: 23 | F10: 768 | K10: 0 | L10: 222 | N10: 122 | O10: =COUNTIF($L$7:$L$500,N10) -> 4 | P10: =O10/$Q$4 -> 0.1538461538 | Q10: =IF(P10=0,0,(P10*((LOG(P10))/LOG(2)))) -> -0.4154522643 | T10: =N10 -> 122 | U10: =COUNTIF(L7:L11,T10) -> 0 | V10: =U10/(W4-U8) -> 0 | W10: =IF(V10=0,0,(V10*((LOG(V10))/LOG(2)))) -> 0 | Y10: =N10 -> 122 | Z10: =COUNTIF(L12:L15,Y10) -> 0 | AA10: =Z10/(AB4-Z8) -> 0 | AB10: =IF(AA10=0,0,(AA10*((LOG(AA10))/LOG(2)))) -> 0 | AD10: =N10 -> 122 | AE10: =COUNTIF(L16:L20,AD10) -> 2 | AF10: =AE10/(AG4-AE8) -> 0.4 | AG10: =IF(AF10=0,0,(AF10*((LOG(AF10))/LOG(2)))) -> -0.528771238 | AI10: =N10 -> 122 | AJ10: =COUNTIF(L21:L24,AI10) -> 1 | AK10: =AJ10/(AL4-AJ8) -> 0.25 | AL10: =IF(AK10=0,0,(AK10*((LOG(AK10))/LOG(2)))) -> -0.5 | AN10: =N10 -> 122 | AO10: =COUNTIF(L25:L29,AN10) -> 0 | AP10: =AO10/(AQ4-AO8) -> 0 | AQ10: =IF(AP10=0,0,(AP10*((LOG(AP10))/LOG(2)))) -> 0 | AS10: =N10 -> 122 | AT10: =COUNTIF(L30:L33,AS10) -> 1 | AU10: =AT10/(AV4-AT8) -> 0.3333333333 | AV10: =IF(AU10=0,0,(AU10*((LOG(AU10))/LOG(2)))) -> -0.5283208336
A11: 11 | B11: 874 | C11: 11 | D11: 881 | E11: 12 | F11: 887 | K11: 0 | L11: 111 | N11: 211 | O11: =COUNTIF($L$7:$L$500,N11) -> 1 | P11: =O11/$Q$4 -> 0.03846153846 | Q11: =IF(P11=0,0,(P11*((LOG(P11))/LOG(2)))) -> -0.180786143 | T11: =N11 -> 211 | U11: =COUNTIF(L7:L11,T11) -> 0 | V11: =U11/(W4-U8) -> 0 | W11: =IF(V11=0,0,(V11*((LOG(V11))/LOG(2)))) -> 0 | Y11: =N11 -> 211 | Z11: =COUNTIF(L12:L15,Y11) -> 0 | AA11: =Z11/(AB4-Z8) -> 0 | AB11: =IF(AA11=0,0,(AA11*((LOG(AA11))/LOG(2)))) -> 0 | AD11: =N11 -> 211 | AE11: =COUNTIF(L16:L20,AD11) -> 0 | AF11: =AE11/(AG4-AE8) -> 0 | AG11: =IF(AF11=0,0,(AF11*((LOG(AF11))/LOG(2)))) -> 0 | AI11: =N11 -> 211 | AJ11: =COUNTIF(L21:L24,AI11) -> 1 | AK11: =AJ11/(AL4-AJ8) -> 0.25 | AL11: =IF(AK11=0,0,(AK11*((LOG(AK11))/LOG(2)))) -> -0.5 | AN11: =N11 -> 211 | AO11: =COUNTIF(L25:L29,AN11) -> 0 | AP11: =AO11/(AQ4-AO8) -> 0 | AQ11: =IF(AP11=0,0,(AP11*((LOG(AP11))/LOG(2)))) -> 0 | AS11: =N11 -> 211 | AT11: =COUNTIF(L30:L33,AS11) -> 0 | AU11: =AT11/(AV4-AT8) -> 0 | AV11: =IF(AU11=0,0,(AU11*((LOG(AU11))/LOG(2)))) -> 0
A12: 22 | B12: 1179 | C12: 13 | D12: 1188 | E12: 23 | F12: 1191 | K12: 0 | L12: 212 | N12: 212 | O12: =COUNTIF($L$7:$L$500,N12) -> 4 | P12: =O12/$Q$4 -> 0.1538461538 | Q12: =IF(P12=0,0,(P12*((LOG(P12))/LOG(2)))) -> -0.4154522643 | T12: =N12 -> 212 | U12: =COUNTIF(L7:L11,T12) -> 0 | V12: =U12/(W4-U8) -> 0 | W12: =IF(V12=0,0,(V12*((LOG(V12))/LOG(2)))) -> 0 | Y12: =N12 -> 212 | Z12: =COUNTIF(L12:L15,Y12) -> 3 | AA12: =Z12/(AB4-Z8) -> 0.75 | AB12: =IF(AA12=0,0,(AA12*((LOG(AA12))/LOG(2)))) -> -0.3112781245 | AD12: =N12 -> 212 | AE12: =COUNTIF(L16:L20,AD12) -> 1 | AF12: =AE12/(AG4-AE8) -> 0.2 | AG12: =IF(AF12=0,0,(AF12*((LOG(AF12))/LOG(2)))) -> -0.464385619 | AI12: =N12 -> 212 | AJ12: =COUNTIF(L21:L24,AI12) -> 0 | AK12: =AJ12/(AL4-AJ8) -> 0 | AL12: =IF(AK12=0,0,(AK12*((LOG(AK12))/LOG(2)))) -> 0 | AN12: =N12 -> 212 | AO12: =COUNTIF(L25:L29,AN12) -> 0 | AP12: =AO12/(AQ4-AO8) -> 0 | AQ12: =IF(AP12=0,0,(AP12*((LOG(AP12))/LOG(2)))) -> 0 | AS12: =N12 -> 212 | AT12: =COUNTIF(L30:L33,AS12) -> 0 | AU12: =AT12/(AV4-AT8) -> 0 | AV12: =IF(AU12=0,0,(AU12*((LOG(AU12))/LOG(2)))) -> 0
A13: 11 | B13: 1549 | C13: 11 | D13: 1553 | E13: 12 | F13: 1570 | K13: 0 | L13: 111 | N13: 221 | O13: =COUNTIF($L$7:$L$500,N13) -> 4 | P13: =O13/$Q$4 -> 0.1538461538 | Q13: =IF(P13=0,0,(P13*((LOG(P13))/LOG(2)))) -> -0.4154522643 | T13: =N13 -> 221 | U13: =COUNTIF(L7:L11,T13) -> 1 | V13: =U13/(W4-U8) -> 0.2 | W13: =IF(V13=0,0,(V13*((LOG(V13))/LOG(2)))) -> -0.464385619 | Y13: =N13 -> 221 | Z13: =COUNTIF(L12:L15,Y13) -> 0 | AA13: =Z13/(AB4-Z8) -> 0 | AB13: =IF(AA13=0,0,(AA13*((LOG(AA13))/LOG(2)))) -> 0 | AD13: =N13 -> 221 | AE13: =COUNTIF(L16:L20,AD13) -> 2 | AF13: =AE13/(AG4-AE8) -> 0.4 | AG13: =IF(AF13=0,0,(AF13*((LOG(AF13))/LOG(2)))) -> -0.528771238 | AI13: =N13 -> 221 | AJ13: =COUNTIF(L21:L24,AI13) -> 0 | AK13: =AJ13/(AL4-AJ8) -> 0 | AL13: =IF(AK13=0,0,(AK13*((LOG(AK13))/LOG(2)))) -> 0 | AN13: =N13 -> 221 | AO13: =COUNTIF(L25:L29,AN13) -> 1 | AP13: =AO13/(AQ4-AO8) -> 0.2 | AQ13: =IF(AP13=0,0,(AP13*((LOG(AP13))/LOG(2)))) -> -0.464385619 | AS13: =N13 -> 221 | AT13: =COUNTIF(L30:L33,AS13) -> 0 | AU13: =AT13/(AV4-AT8) -> 0 | AV13: =IF(AU13=0,0,(AU13*((LOG(AU13))/LOG(2)))) -> 0
A14: 22 | B14: 2534 | C14: 13 | D14: 2538 | E14: 23 | F14: 2543 | K14: 0 | L14: 212 | N14: 222 | O14: =COUNTIF($L$7:$L$500,N14) -> 6 | P14: =O14/$Q$4 -> 0.2307692308 | Q14: =IF(P14=0,0,(P14*((LOG(P14))/LOG(2)))) -> -0.4881870502 | T14: =N14 -> 222 | U14: =COUNTIF(L7:L11,T14) -> 2 | V14: =U14/(W4-U8) -> 0.4 | W14: =IF(V14=0,0,(V14*((LOG(V14))/LOG(2)))) -> -0.528771238 | Y14: =N14 -> 222 | Z14: =COUNTIF(L12:L15,Y14) -> 0 | AA14: =Z14/(AB4-Z8) -> 0 | AB14: =IF(AA14=0,0,(AA14*((LOG(AA14))/LOG(2)))) -> 0 | AD14: =N14 -> 222 | AE14: =COUNTIF(L16:L20,AD14) -> 0 | AF14: =AE14/(AG4-AE8) -> 0 | AG14: =IF(AF14=0,0,(AF14*((LOG(AF14))/LOG(2)))) -> 0 | AI14: =N14 -> 222 | AJ14: =COUNTIF(L21:L24,AI14) -> 1 | AK14: =AJ14/(AL4-AJ8) -> 0.25 | AL14: =IF(AK14=0,0,(AK14*((LOG(AK14))/LOG(2)))) -> -0.5 | AN14: =N14 -> 222 | AO14: =COUNTIF(L25:L29,AN14) -> 2 | AP14: =AO14/(AQ4-AO8) -> 0.4 | AQ14: =IF(AP14=0,0,(AP14*((LOG(AP14))/LOG(2)))) -> -0.528771238 | AS14: =N14 -> 222 | AT14: =COUNTIF(L30:L33,AS14) -> 1 | AU14: =AT14/(AV4-AT8) -> 0.3333333333 | AV14: =IF(AU14=0,0,(AU14*((LOG(AU14))/LOG(2)))) -> -0.5283208336
A15: 22 | B15: 2694 | C15: 13 | D15: 2704 | E15: 23 | F15: 2712 | K15: 0 | L15: 212 | P15: =SUM(P7:P14) -> 1 | Q15: =-SUM(Q7:Q14) -> 2.584303179 | V15: =SUM(V7:V14) -> 1 | W15: =-SUM(W7:W14) -> 1.921928095 | AA15: =SUM(AA7:AA14) -> 1 | AB15: =-SUM(AB7:AB14) -> 0.8112781245 | AF15: =SUM(AF7:AF14) -> 1 | AG15: =-SUM(AG7:AG14) -> 1.521928095 | AK15: =SUM(AK7:AK14) -> 1 | AL15: =-SUM(AL7:AL14) -> 2 | AP15: =SUM(AP7:AP14) -> 1 | AQ15: =-SUM(AQ7:AQ14) -> 1.521928095 | AU15: =SUM(AU7:AU14) -> 1 | AV15: =-SUM(AV7:AV14) -> 1.584962501
A16: 11 | B16: 2807 | C16: 22 | D16: 2813 | E16: 23 | F16: 2819 | K16: 0 | L16: 122 | P16: U= | Q16: =Q15/(LOG(Q4)/LOG(2)) -> 0.5498003026 | V16: U1= | W16: =W15/(LOG(W4)/LOG(2)) -> 0.8277293768 | AA16: U2= | AB16: =AB15/(LOG(AB4)/LOG(2)) -> 0.4056390622 | AF16: U3= | AG16: =AG15/(LOG(AG4)/LOG(2)) -> 0.6554587535 | AK16: U4= | AL16: =AL15/(LOG(AL4)/LOG(2)) -> 1 | AP16: U5= | AQ16: =AQ15/(LOG(AQ4)/LOG(2)) -> 0.6554587535 | AU16: U6= | AV16: =AV15/(LOG(AV4)/LOG(2)) -> 1
A17: 22 | B17: 2917 | C17: 24 | D17: 2926 | E17: 14 | F17: 2931 | K17: 0 | L17: 221
A18: 11 | B18: 3041 | C18: 22 | D18: 3054 | E18: 23 | F18: 3064 | K18: 0 | L18: 122
A19: 22 | B19: 3160 | C19: 24 | D19: 3165 | E19: 14 | F19: 3179 | K19: 0 | L19: 221 | N19: Total Target Seq
A20: 22 | B20: 4089 | C20: 13 | D20: 4099 | E20: 23 | F20: 4110 | K20: 0 | L20: 212 | N20: =COUNTIF(L7:L33,G3) -> 0 | P20: 5 | Q20: 4 | R20: 5 | S20: 4 | T20: 5 | U20: 4
A21: 11 | B21: 4212 | C21: 22 | D21: 4227 | E21: 23 | F21: 4235 | K21: 0 | L21: 122 | P21: % of reinforcement given in 6 equal intervals based on number of trials
A22: 22 | B22: 4545 | C22: 13 | D22: 4555 | E22: 14 | F22: 4557 | K22: 0 | L22: 211 | P22: %_1 | Q22: %_2 | R22: %_3 | S22: %_4 | T22: %_5 | U22: %_6
A23: 11 | B23: 4659 | C23: 11 | D23: 4672 | E23: 12 | F23: 4689 | K23: 0 | L23: 111 | O23: target sequence | P23: =$G$3 -> 112 | Q23: =$G$3 -> 112 | R23: =$G$3 -> 112 | S23: =$G$3 -> 112 | T23: =$G$3 -> 112 | U23: =$G$3 -> 112
A24: 22 | B24: 4785 | C24: 24 | D24: 4788 | E24: 23 | F24: 4793 | K24: 0 | L24: 222 | O24: total reinforcement | P24: =U8 -> 0 | Q24: =Z8 -> 0 | R24: =AE8 -> 0 | S24: =AJ8 -> 0 | T24: =AO8 -> 0 | U24: =AT8 -> 0
A25: 11 | B25: 4904 | C25: 11 | D25: 4929 | E25: 12 | F25: 4937 | K25: 0 | L25: 111 | O25: % target
A26: 11 | B26: 5032 | C26: 11 | D26: 5041 | E26: 12 | F26: 5048 | K26: 0 | L26: 111 | O26: CCRF
A27: 22 | B27: 5157 | C27: 24 | D27: 5166 | E27: 23 | F27: 5171 | K27: 0 | L27: 222 | O27: % CCRf
A28: 22 | B28: 5305 | C28: 24 | D28: 5339 | E28: 14 | F28: 5356 | K28: 0 | L28: 221 | O28: average response rate | P28: =F11/P20 -> 177.4 | Q28: =(F15-F11)/Q20 -> 456.25 | R28: =(F20-F15)/R20 -> 279.6 | S28: =(F24-F20)/S20 -> 170.75 | T28: =(F29-F24)/T20 -> 154.2 | U28: =(F33-F29)/U20 -> -1391
A29: 22 | B29: 5550 | C29: 24 | D29: 5556 | E29: 23 | F29: 5564 | K29: 0 | L29: 222
A30: 11 | B30: 5655 | C30: 22 | D30: 5661 | E30: 23 | F30: 5683 | K30: 0 | L30: 122
A31: 22 | B31: 7129 | C31: 24 | D31: 7143 | E31: 23 | F31: 7162 | K31: 0 | L31: 222
A32: 11 | B32: 7379 | C32: 11 | D32: 7391 | E32: 12 | F32: 7402 | K32: 0 | L32: 111
A33: 11 | B33: 22879 | L33: 1

Sheet !N41292B.AXT
A1: Report for:!N41292B.AXT
A2: Date: | B2: <date>
A3: Hen: | B3: <hen> | F3: Correct Sequence | G3: =Start!J2 -> 112 | P3: Total Sequences in Data | Q3: =4994-COUNTBLANK(L7:L5000) -> 17 | V3: Total Sequences in Block Data | W3: =COUNTA(L7:L9) -> 3 | AA3: Total Sequences in Block Data | AB3: =COUNTA(L10:L12) -> 3 | AF3: Total Sequences in Block Data | AG3: =COUNTA(L13:L14) -> 2 | AK3: Total Sequences in Block Data | AL3: =COUNTA(L15:L17) -> 3 | AP3: Total Sequences in Block Data | AQ3: =COUNTA(L18:L20) -> 3 | AU3: Total Sequences in Block Data | AV3: =COUNTA(L21:L23) -> 3
P4: Total Sequences in Summary | Q4: =SUM(O7:O14) -> 16 | V4: Total Sequences in Block Summary | W4: =SUM(U7:U14) -> 3 | AA4: Total Sequences in Block Summary | AB4: =SUM(Z7:Z14) -> 3 | AF4: Total Sequences in Block Summary | AG4: =SUM(AE7:AE14) -> 2 | AK4: Total Sequences in Block Summary | AL4: =SUM(AJ7:AJ14) -> 3 | AP4: Total Sequences in Block Summary | AQ4: =SUM(AO7:AO14) -> 3 | AU4: Total Sequences in Block Summary | AV4: =SUM(AT7:AT14) -> 2
T5: Block 1 | Y5: Block 2 | AD5: Block 3 | AI5: Block 4 | AN5: Block 5 | AS5: Block 6
A6: Sequence Component 1 | B6: Time 1 | C6: Sequence Component 2 | D6: Time 2 | E6: Sequence Component 3 | F6: Time 3 | G6: Sequence Component 4 | H6: Time 4 | I6: Sequence Component 5 | J6: Time 5 | K6: Correct? 0=No 1=Yes | L6: Sequence | N6: Frequency | P6: Relative Frequency | Q6: Variability | T6: Frequency | V6: Relative Frequency | W6: Variability | Y6: Frequency | AA6: Relative Frequency | AB6: Variability | AD6: Frequency | AF6: Relative Frequency | AG6: Variability | AI6: Frequency | AK6: Relative Frequency | AL6: Variability | AN6: Frequency | AP6: Relative Frequency | AQ6: Variability | AS6: Frequency | AU6: Relative Frequency | AV6: Variability
A7: 11 | B7: 438 | C7: 22 | D7: 447 | E7: 14 | F7: 452 | K7: 0 | L7: 121 | N7: 111 | O7: =COUNTIF($L$7:$L$500,N7) -> 4 | P7: =O7/$Q$4 -> 0.25 | Q7: =IF(P7=0,0,(P7*((LOG(P7))/LOG(2)))) -> -0.5 | T7: =N7 -> 111 | U7: =COUNTIF(L7:L9,T7) -> 0 | V7: =U7/(W4-U8) -> 0 | W7: =IF(V7=0,0,(V7*((LOG(V7))/LOG(2)))) -> 0 | Y7: =N7 -> 111 | Z7: =COUNTIF(L10:L12,Y7) -> 1 | AA7: =Z7/(AB4-Z8) -> 0.3333333333 | AB7: =IF(AA7=0,0,(AA7*((LOG(AA7))/LOG(2)))) -> -0.5283208336 | AD7: =N7 -> 111 | AE7: =COUNTIF(L13:L14,AD7) -> 0 | AF7: =AE7/(AG4-AE8) -> 0 | AG7: =IF(AF7=0,0,(AF7*((LOG(AF7))/LOG(2)))) -> 0 | AI7: =N7 -> 111 | AJ7: =COUNTIF(L15:L17,AI7) -> 1 | AK7: =AJ7/(AL4-AJ8) -> 0.3333333333 | AL7: =IF(AK7=0,0,(AK7*((LOG(AK7))/LOG(2)))) -> -0.5283208336 | AN7: =N7 -> 111 | AO7: =COUNTIF(L18:L20,AN7) -> 1 | AP7: =AO7/(AQ4-AO8) -> 0.3333333333 | AQ7: =IF(AP7=0,0,(AP7*((LOG(AP7))/LOG(2)))) -> -0.5283208336 | AS7: =N7 -> 111 | AT7: =COUNTIF(L21:L23,AS7) -> 1 | AU7: =AT7/(AV4-AT8) -> 0.5 | AV7: =IF(AU7=0,0,(AU7*((LOG(AU7))/LOG(2)))) -> -0.5
A8: 11 | B8: 713 | C8: 11 | D8: 717 | E8: 21 | F8: 728 | K8: 0 | L8: 112 | N8: 112 | O8: =COUNTIF($L$7:$L$500,N8) -> 2 | P8: =O8/$Q$4 -> 0.125 | Q8: =IF(P8=0,0,(P8*((LOG(P8))/LOG(2)))) -> -0.375 | T8: =N8 -> 112 | U8: =COUNTIF(L7:L9,T8) -> 1 | Y8: =N8 -> 112 | Z8: =COUNTIF(L10:L12,Y8) -> 0 | AD8: =N8 -> 112 | AE8: =COUNTIF(L13:L14,AD8) -> 1 | AI8: =N8 -> 112 | AJ8: =COUNTIF(L15:L17,AI8) -> 0 | AN8: =N8 -> 112 | AO8: =COUNTIF(L18:L20,AN8) -> 0 | AS8: =N8 -> 112 | AT8: =COUNTIF(L21:L23,AS8) -> 0
A9: 11 | B9: 1330 | C9: 22 | D9: 1348 | E9: 23 | F9: 1351 | K9: 0 | L9: 122 | N9: 121 | O9: =COUNTIF($L$7:$L$500,N9) -> 2 | P9: =O9/$Q$4 -> 0.125 | Q9: =IF(P9=0,0,(P9*((LOG(P9))/LOG(2)))) -> -0.375 | T9: =N9 -> 121 | U9: =COUNTIF(L7:L9,T9) -> 1 | V9: =U9/(W4-U8) -> 0.5 | W9: =IF(V9=0,0,(V9*((LOG(V9))/LOG(2)))) -> -0.5 | Y9: =N9 -> 121 | Z9: =COUNTIF(L10:L12,Y9) -> 0 | AA9: =Z9/(AB4-Z8) -> 0 | AB9: =IF(AA9=0,0,(AA9*((LOG(AA9))/LOG(2)))) -> 0 | AD9: =N9 -> 121 | AE9: =COUNTIF(L13:L14,AD9) -> 0 | AF9: =AE9/(AG4-AE8) -> 0 | AG9: =IF(AF9=0,0,(AF9*((LOG(AF9))/LOG(2)))) -> 0 | AI9: =N9 -> 121 | AJ9: =COUNTIF(L15:L17,AI9) -> 0 | AK9: =AJ9/(AL4-AJ8) -> 0 | AL9: =IF(AK9=0,0,(AK9*((LOG(AK9))/LOG(2)))) -> 0 | AN9: =N9 -> 121 | AO9: =COUNTIF(L18:L20,AN9) -> 1 | AP9: =AO9/(AQ4-AO8) -> 0.3333333333 | AQ9: =IF(AP9=0,0,(AP9*((LOG(AP9))/LOG(2)))) -> -0.5283208336 | AS9: =N9 -> 121 | AT9: =COUNTIF(L21:L23,AS9) -> 0 | AU9: =AT9/(AV4-AT8) -> 0 | AV9: =IF(AU9=0,0,(AU9*((LOG(AU9))/LOG(2)))) -> 0
A10: 11 | B10: 1876 | C10: 22 | D10: 1882 | E10: 23 | F10: 1889 | K10: 0 | L10: 122 | N10: 122 | O10: =COUNTIF($L$7:$L$500,N10) -> 3 | P10: =O10/$Q$4 -> 0.1875 | Q10: =IF(P10=0,0,(P10*((LOG(P10))/LOG(2)))) -> -0.4528195311 | T10: =N10 -> 122 | U10: =COUNTIF(L7:L9,T10) -> 1 | V10: =U10/(W4-U8) -> 0.5 | W10: =IF(V10=0,0,(V10*((LOG(V10))/LOG(2)))) -> -0.5 | Y10: =N10 -> 122 | Z10: =COUNTIF(L10:L12,Y10) -> 1 | AA10: =Z10/(AB4-Z8) -> 0.3333333333 | AB10: =IF(AA10=0,0,(AA10*((LOG(AA10))/LOG(2)))) -> -0.5283208336 | AD10: =N10 -> 122 | AE10: =COUNTIF(L13:L14,AD10) -> 0 | AF10: =AE10/(AG4-AE8) -> 0 | AG10: =IF(AF10=0,0,(AF10*((LOG(AF10))/LOG(2)))) -> 0 | AI10: =N10 -> 122 | AJ10: =COUNTIF(L15:L17,AI10) -> 1 | AK10: =AJ10/(AL4-AJ8) -> 0.3333333333 | AL10: =IF(AK10=0,0,(AK10*((LOG(AK10))/LOG(2)))) -> -0.5283208336 | AN10: =N10 -> 122 | AO10: =COUNTIF(L18:L20,AN10) -> 0 | AP10: =AO10/(AQ4-AO8) -> 0 | AQ10: =IF(AP10=0,0,(AP10*((LOG(AP10))/LOG(2)))) -> 0 | AS10: =N10 -> 122 | AT10: =COUNTIF(L21:L23,AS10) -> 0 | AU10: =AT10/(AV4-AT8) -> 0 | AV10: =IF(AU10=0,0,(AU10*((LOG(AU10))/LOG(2)))) -> 0
A11: 11 | B11: 1985 | C11: 11 | D11: 1988 | E11: 12 | F11: 2008 | K11: 0 | L11: 111 | N11: 211 | O11: =COUNTIF($L$7:$L$500,N11) -> 2 | P11: =O11/$Q$4 -> 0.125 | Q11: =IF(P11=0,0,(P11*((LOG(P11))/LOG(2)))) -> -0.375 | T11: =N11 -> 211 | U11: =COUNTIF(L7:L9,T11) -> 0 | V11: =U11/(W4-U8) -> 0 | W11: =IF(V11=0,0,(V11*((LOG(V11))/LOG(2)))) -> 0 | Y11: =N11 -> 211 | Z11: =COUNTIF(L10:L12,Y11) -> 1 | AA11: =Z11/(AB4-Z8) -> 0.3333333333 | AB11: =IF(AA11=0,0,(AA11*((LOG(AA11))/LOG(2)))) -> -0.5283208336 | AD11: =N11 -> 211 | AE11: =COUNTIF(L13:L14,AD11) -> 1 | AF11: =AE11/(AG4-AE8) -> 1 | AG11: =IF(AF11=0,0,(AF11*((LOG(AF11))/LOG(2)))) -> 0 | AI11: =N11 -> 211 | AJ11: =COUNTIF(L15:L17,AI11) -> 0 | AK11: =AJ11/(AL4-AJ8) -> 0 | AL11: =IF(AK11=0,0,(AK11*((LOG(AK11))/LOG(2)))) -> 0 | AN11: =N11 -> 211 | AO11: =COUNTIF(L18:L20,AN11) -> 0 | AP11: =AO11/(AQ4-AO8) -> 0 | AQ11: =IF(AP11=0,0,(AP11*((LOG(AP11))/LOG(2)))) -> 0 | AS11: =N11 -> 211 | AT11: =COUNTIF(L21:L23,AS11) -> 0 | AU11: =AT11/(AV4-AT8) -> 0 | AV11: =IF(AU11=0,0,(AU11*((LOG(AU11))/LOG(2)))) -> 0
A12: 22 | B12: 2564 | C12: 13 | D12: 2576 | E12: 14 | F12: 2584 | K12: 0 | L12: 211 | N12: 212 | O12: =COUNTIF($L$7:$L$500,N12) -> 1 | P12: =O12/$Q$4 -> 0.0625 | Q12: =IF(P12=0,0,(P12*((LOG(P12))/LOG(2)))) -> -0.25 | T12: =N12 -> 212 | U12: =COUNTIF(L7:L9,T12) -> 0 | V12: =U12/(W4-U8) -> 0 | W12: =IF(V12=0,0,(V12*((LOG(V12))/LOG(2)))) -> 0 | Y12: =N12 -> 212 | Z12: =COUNTIF(L10:L12,Y12) -> 0 | AA12: =Z12/(AB4-Z8) -> 0 | AB12: =IF(AA12=0,0,(AA12*((LOG(AA12))/LOG(2)))) -> 0 | AD12: =N12 -> 212 | AE12: =COUNTIF(L13:L14,AD12) -> 0 | AF12: =AE12/(AG4-AE8) -> 0 | AG12: =IF(AF12=0,0,(AF12*((LOG(AF12))/LOG(2)))) -> 0 | AI12: =N12 -> 212 | AJ12: =COUNTIF(L15:L17,AI12) -> 0 | AK12: =AJ12/(AL4-AJ8) -> 0 | AL12: =IF(AK12=0,0,(AK12*((LOG(AK12))/LOG(2)))) -> 0 | AN12: =N12 -> 212 | AO12: =COUNTIF(L18:L20,AN12) -> 0 | AP12: =AO12/(AQ4-AO8) -> 0 | AQ12: =IF(AP12=0,0,(AP12*((LOG(AP12))/LOG(2)))) -> 0 | AS12: =N12 -> 212 | AT12: =COUNTIF(L21:L23,AS12) -> 1 | AU12: =AT12/(AV4-AT8) -> 0.5 | AV12: =IF(AU12=0,0,(AU12*((LOG(AU12))/LOG(2)))) -> -0.5
A13: 11 | B13: 2677 | C13: 11 | D13: 2681 | E13: 21 | F13: 2692 | K13: 0 | L13: 112 | N13: 221 | O13: =COUNTIF($L$7:$L$500,N13) -> 2 | P13: =O13/$Q$4 -> 0.125 | Q13: =IF(P13=0,0,(P13*((LOG(P13))/LOG(2)))) -> -0.375 | T13: =N13 -> 221 | U13: =COUNTIF(L7:L9,T13) -> 0 | V13: =U13/(W4-U8) -> 0 | W13: =IF(V13=0,0,(V13*((LOG(V13))/LOG(2)))) -> 0 | Y13: =N13 -> 221 | Z13: =COUNTIF(L10:L12,Y13) -> 0 | AA13: =Z13/(AB4-Z8) -> 0 | AB13: =IF(AA13=0,0,(AA13*((LOG(AA13))/LOG(2)))) -> 0 | AD13: =N13 -> 221 | AE13: =COUNTIF(L13:L14,AD13) -> 0 | AF13: =AE13/(AG4-AE8) -> 0 | AG13: =IF(AF13=0,0,(AF13*((LOG(AF13))/LOG(2)))) -> 0 | AI13: =N13 -> 221 | AJ13: =COUNTIF(L15:L17,AI13) -> 1 | AK13: =AJ13/(AL4-AJ8) -> 0.3333333333 | AL13: =IF(AK13=0,0,(AK13*((LOG(AK13))/LOG(2)))) -> -0.5283208336 | AN13: =N13 -> 221 | AO13: =COUNTIF(L18:L20,AN13) -> 1 | AP13: =AO13/(AQ4-AO8) -> 0.3333333333 | AQ13: =IF(AP13=0,0,(AP13*((LOG(AP13))/LOG(2)))) -> -0.5283208336 | AS13: =N13 -> 221 | AT13: =COUNTIF(L21:L23,AS13) -> 0 | AU13: =AT13/(AV4-AT8) -> 0 | AV13: =IF(AU13=0,0,(AU13*((LOG(AU13))/LOG(2)))) -> 0
A14: 22 | B14: 3774 | C14: 13 | D14: 3779 | E14: 14 | F14: 3787 | K14: 0 | L14: 211 | N14: 222 | O14: =COUNTIF($L$7:$L$500,N14) -> 0 | P14: =O14/$Q$4 -> 0 | Q14: =IF(P14=0,0,(P14*((LOG(P14))/LOG(2)))) -> 0 | T14: =N14 -> 222 | U14: =COUNTIF(L7:L9,T14) -> 0 | V14: =U14/(W4-U8) -> 0 | W14: =IF(V14=0,0,(V14*((LOG(V14))/LOG(2)))) -> 0 | Y14: =N14 -> 222 | Z14: =COUNTIF(L10:L12,Y14) -> 0 | AA14: =Z14/(AB4-Z8) -> 0 | AB14: =IF(AA14=0,0,(AA14*((LOG(AA14))/LOG(2)))) -> 0 | AD14: =N14 -> 222 | AE14: =COUNTIF(L13:L14,AD14) -> 0 | AF14: =AE14/(AG4-AE8) -> 0 | AG14: =IF(AF14=0,0,(AF14*((LOG(AF14))/LOG(2)))) -> 0 | AI14: =N14 -> 222 | AJ14: =COUNTIF(L15:L17,AI14) -> 0 | AK14: =AJ14/(AL4-AJ8) -> 0 | AL14: =IF(AK14=0,0,(AK14*((LOG(AK14))/LOG(2)))) -> 0 | AN14: =N14 -> 222 | AO14: =COUNTIF(L18:L20,AN14) -> 0 | AP14: =AO14/(AQ4-AO8) -> 0 | AQ14: =IF(AP14=0,0,(AP14*((LOG(AP14))/LOG(2)))) -> 0 | AS14: =N14 -> 222 | AT14: =COUNTIF(L21:L23,AS14) -> 0 | AU14: =AT14/(AV4-AT8) -> 0 | AV14: =IF(AU14=0,0,(AU14*((LOG(AU14))/LOG(2)))) -> 0
A15: 22 | B15: 3885 | C15: 24 | D15: 3888 | E15: 14 | F15: 3898 | K15: 0 | L15: 221 | P15: =SUM(P7:P14) -> 1 | Q15: =-SUM(Q7:Q14) -> 2.702819531 | V15: =SUM(V7:V14) -> 1 | W15: =-SUM(W7:W14) -> 1 | AA15: =SUM(AA7:AA14) -> 1 | AB15: =-SUM(AB7:AB14) -> 1.584962501 | AF15: =SUM(AF7:AF14) -> 1 | AG15: =-SUM(AG7:AG14) -> 0 | AK15: =SUM(AK7:AK14) -> 1 | AL15: =-SUM(AL7:AL14) -> 1.584962501 | AP15: =SUM(AP7:AP14) -> 1 | AQ15: =-SUM(AQ7:AQ14) -> 1.584962501 | AU15: =SUM(AU7:AU14) -> 1 | AV15: =-SUM(AV7:AV14) -> 1
A16: 11 | B16: 3993 | C16: 11 | D16: 4003 | E16: 12 | F16: 4028 | K16: 0 | L16: 111 | P16: U= | Q16: =Q15/(LOG(Q4)/LOG(2)) -> 0.6757048828 | V16: U1= | W16: =W15/(LOG(W4)/LOG(2)) -> 0.6309297536 | AA16: U2= | AB16: =AB15/(LOG(AB4)/LOG(2)) -> 1 | AF16: U3= | AG16: =AG15/(LOG(AG4)/LOG(2)) -> 0 | AK16: U4= | AL16: =AL15/(LOG(AL4)/LOG(2)) -> 1 | AP16: U5= | AQ16: =AQ15/(LOG(AQ4)/LOG(2)) -> 1 | AU16: U6= | AV16: =AV15/(LOG(AV4)/LOG(2)) -> 1
A17: 11 | B17: 4496 | C17: 22 | D17: 4501 | E17: 23 | F17: 4510 | K17: 0 | L17: 122
A18: 11 | B18: 4608 | C18: 11 | D18: 4615 | E18: 12 | F18: 4620 | K18: 0 | L18: 111
A19: 22 | B19: 4731 | C19: 24 | D19: 4737 | E19: 14 | F19: 4749 | K19: 0 | L19: 221 | N19: Total Target Seq
A20: 11 | B20: 4855 | C20: 22 | D20: 4866 | E20: 14 | F20: 4880 | K20: 0 | L20: 121 | N20: =COUNTIF(L7:L23,G3) -> 2 | P20: 3 | Q20: 3 | R20: 2 | S20: 3 | T20: 3 | U20: 3
A21: 22 | B21: 5500 | C21: 13 | D21: 5520 | E21: 23 | F21: 5523 | K21: 0 | L21: 212 | P21: % of reinforcement given in 6 equal intervals based on number of trials
A22: 11 | B22: 10714 | C22: 11 | D22: 10720 | E22: 12 | F22: 10728 | K22: 0 | L22: 111 | P22: %_1 | Q22: %_2 | R22: %_3 | S22: %_4 | T22: %_5 | U22: %_6
A23: 22 | B23: 15227 | L23: 2 | O23: target sequence | P23: =$G$3 -> 112 | Q23: =$G$3 -> 112 | R23: =$G$3 -> 112 | S23: =$G$3 -> 112 | T23: =$G$3 -> 112 | U23: =$G$3 -> 112
O24: total reinforcement | P24: =U8 -> 1 | Q24: =Z8 -> 0 | R24: =AE8 -> 1 | S24: =AJ8 -> 0 | T24: =AO8 -> 0 | U24: =AT8 -> 0
O25: % target
O26: CCRF
O27: % CCRf
O28: average response rate | P28: =F9/P20 -> 450.3333333 | Q28: =(F12-F9)/Q20 -> 411 | R28: =(F14-F12)/R20 -> 601.5 | S28: =(F17-F14)/S20 -> 241 | T28: =(F20-F17)/T20 -> 123.3333333 | U28: =(F23-F20)/U20 -> -1626.666667

Sheet !N41382B.AXT
A1: Report for:!N41382B.AXT
A2: Date: | B2: <date>
A3: Hen: | B3: <hen> | F3: Correct Sequence | G3: =Start!J2 -> 112 | P3: Total Sequences in Data | Q3: =4994-COUNTBLANK(L7:L5000) -> 16 | V3: Total Sequences in Block Data | W3: =COUNTA(L7:L9) -> 3 | AA3: Total Sequences in Block Data | AB3: =COUNTA(L10:L11) -> 2 | AF3: Total Sequences in Block Data | AG3: =COUNTA(L12:L14) -> 3 | AK3: Total Sequences in Block Data | AL3: =COUNTA(L15:L17) -> 3 | AP3: Total Sequences in Block Data | AQ3: =COUNTA(L18:L19) -> 2 | AU3: Total Sequences in Block Data | AV3: =COUNTA(L20:L22) -> 3
P4: Total Sequences in Summary | Q4: =SUM(O7:O14) -> 16 | V4: Total Sequences in Block Summary | W4: =SUM(U7:U14) -> 3 | AA4: Total Sequences in Block Summary | AB4: =SUM(Z7:Z14) -> 2 | AF4: Total Sequences in Block Summary | AG4: =SUM(AE7:AE14) -> 3 | AK4: Total Sequences in Block Summary | AL4: =SUM(AJ7:AJ14) -> 3 | AP4: Total Sequences in Block Summary | AQ4: =SUM(AO7:AO14) -> 2 | AU4: Total Sequences in Block Summary | AV4: =SUM(AT7:AT14) -> 3
T5: Block 1 | Y5: Block 2 | AD5: Block 3 | AI5: Block 4 | AN5: Block 5 | AS5: Block 6
A6: Sequence Component 1 | B6: Time 1 | C6: Sequence Component 2 | D6: Time 2 | E6: Sequence Component 3 | F6: Time 3 | G6: Sequence Component 4 | H6: Time 4 | I6: Sequence Component 5 | J6: Time 5 | K6: Correct? 0=No 1=Yes | L6: Sequence | N6: Frequency | P6: Relative Frequency | Q6: Variability | T6: Frequency | V6: Relative Frequency | W6: Variability | Y6: Frequency | AA6: Relative Frequency | AB6: Variability | AD6: Frequency | AF6: Relative Frequency | AG6: Variability | AI6: Frequency | AK6: Relative Frequency | AL6: Variability | AN6: Frequency | AP6: Relative Frequency | AQ6: Variability | AS6: Frequency | AU6: Relative Frequency | AV6: Variability
A7: 11 | B7: 250 | C7: 22 | D7: 258 | E7: 23 | F7: 264 | K7: 0 | L7: 122 | N7: 111 | O7: =COUNTIF($L$7:$L$500,N7) -> 4 | P7: =O7/$Q$4 -> 0.25 | Q7: =IF(P7=0,0,(P7*((LOG(P7))/LOG(2)))) -> -0.5 | T7: =N7 -> 111 | U7: =COUNTIF(L7:L9,T7) -> 0 | V7: =U7/(W4-U8) -> 0 | W7: =IF(V7=0,0,(V7*((LOG(V7))/LOG(2)))) -> 0 | Y7: =N7 -> 111 | Z7: =COUNTIF(L10:L11,Y7) -> 0 | AA7: =Z7/(AB4-Z8) -> 0 | AB7: =IF(AA7=0,0,(AA7*((LOG(AA7))/LOG(2)))) -> 0 | AD7: =N7 -> 111 | AE7: =COUNTIF(L12:L14,AD7) -> 1 | AF7: =AE7/(AG4-AE8) -> 0.3333333333 | AG7: =IF(AF7=0,0,(AF7*((LOG(AF7))/LOG(2)))) -> -0.5283208336 | AI7: =N7 -> 111 | AJ7: =COUNTIF(L15:L17,AI7) -> 0 | AK7: =AJ7/(AL4-AJ8) -> 0 | AL7: =IF(AK7=0,0,(AK7*((LOG(AK7))/LOG(2)))) -> 0 | AN7: =N7 -> 111 | AO7: =COUNTIF(L18:L19,AN7) -> 0 | AP7: =AO7/(AQ4-AO8) -> 0 | AQ7: =IF(AP7=0,0,(AP7*((LOG(AP7))/LOG(2)))) -> 0 | AS7: =N7 -> 111 | AT7: =COUNTIF(L20:L22,AS7) -> 3 | AU7: =AT7/(AV4-AT8) -> 1 | AV7: =IF(AU7=0,0,(AU7*((LOG(AU7))/LOG(2)))) -> 0
A8: 22 | B8: 487 | C8: 13 | D8: 493 | E8: 23 | F8: 507 | K8: 0 | L8: 212 | N8: 112 | O8: =COUNTIF($L$7:$L$500,N8) -> 1 | P8: =O8/$Q$4 -> 0.0625 | Q8: =IF(P8=0,0,(P8*((LOG(P8))/LOG(2)))) -> -0.25 | T8: =N8 -> 112 | U8: =COUNTIF(L7:L9,T8) -> 1 | Y8: =N8 -> 112 | Z8: =COUNTIF(L10:L11,Y8) -> 0 | AD8: =N8 -> 112 | AE8: =COUNTIF(L12:L14,AD8) -> 0 | AI8: =N8 -> 112 | AJ8: =COUNTIF(L15:L17,AI8) -> 0 | AN8: =N8 -> 112 | AO8: =COUNTIF(L18:L19,AN8) -> 0 | AS8: =N8 -> 112 | AT8: =COUNTIF(L20:L22,AS8) -> 0
A9: 11 | B9: 1030 | C9: 11 | D9: 1035 | E9: 21 | F9: 1047 | K9: 0 | L9: 112 | N9: 121 | O9: =COUNTIF($L$7:$L$500,N9) -> 2 | P9: =O9/$Q$4 -> 0.125 | Q9: =IF(P9=0,0,(P9*((LOG(P9))/LOG(2)))) -> -0.375 | T9: =N9 -> 121 | U9: =COUNTIF(L7:L9,T9) -> 0 | V9: =U9/(W4-U8) -> 0 | W9: =IF(V9=0,0,(V9*((LOG(V9))/LOG(2)))) -> 0 | Y9: =N9 -> 121 | Z9: =COUNTIF(L10:L11,Y9) -> 0 | AA9: =Z9/(AB4-Z8) -> 0 | AB9: =IF(AA9=0,0,(AA9*((LOG(AA9))/LOG(2)))) -> 0 | AD9: =N9 -> 121 | AE9: =COUNTIF(L12:L14,AD9) -> 0 | AF9: =AE9/(AG4-AE8) -> 0 | AG9: =IF(AF9=0,0,(AF9*((LOG(AF9))/LOG(2)))) -> 0 | AI9: =N9 -> 121 | AJ9: =COUNTIF(L15:L17,AI9) -> 1 | AK9: =AJ9/(AL4-AJ8) -> 0.3333333333 | AL9: =IF(AK9=0,0,(AK9*((LOG(AK9))/LOG(2)))) -> -0.5283208336 | AN9: =N9 -> 121 | AO9: =COUNTIF(L18:L19,AN9) -> 1 | AP9: =AO9/(AQ4-AO8) -> 0.5 | AQ9: =IF(AP9=0,0,(AP9*((LOG(AP9))/LOG(2)))) -> -0.5 | AS9: =N9 -> 121 | AT9: =COUNTIF(L20:L22,AS9) -> 0 | AU9: =AT9/(AV4-AT8) -> 0 | AV9: =IF(AU9=0,0,(AU9*((LOG(AU9))/LOG(2)))) -> 0
A10: 11 | B10: 1583 | C10: 22 | D10: 1605 | E10: 23 | F10: 1610 | K10: 0 | L10: 122 | N10: 122 | O10: =COUNTIF($L$7:$L$500,N10) -> 2 | P10: =O10/$Q$4 -> 0.125 | Q10: =IF(P10=0,0,(P10*((LOG(P10))/LOG(2)))) -> -0.375 | T10: =N10 -> 122 | U10: =COUNTIF(L7:L9,T10) -> 1 | V10: =U10/(W4-U8) -> 0.5 | W10: =IF(V10=0,0,(V10*((LOG(V10))/LOG(2)))) -> -0.5 | Y10: =N10 -> 122 | Z10: =COUNTIF(L10:L11,Y10) -> 1 | AA10: =Z10/(AB4-Z8) -> 0.5 | AB10: =IF(AA10=0,0,(AA10*((LOG(AA10))/LOG(2)))) -> -0.5 | AD10: =N10 -> 122 | AE10: =COUNTIF(L12:L14,AD10) -> 0 | AF10: =AE10/(AG4-AE8) -> 0 | AG10: =IF(AF10=0,0,(AF10*((LOG(AF10))/LOG(2)))) -> 0 | AI10: =N10 -> 122 | AJ10: =COUNTIF(L15:L17,AI10) -> 0 | AK10: =AJ10/(AL4-AJ8) -> 0 | AL10: =IF(AK10=0,0,(AK10*((LOG(AK10))/LOG(2)))) -> 0 | AN10: =N10 -> 122 | AO10: =COUNTIF(L18:L19,AN10) -> 0 | AP10: =AO10/(AQ4-AO8) -> 0 | AQ10: =IF(AP10=0,0,(AP10*((LOG(AP10))/LOG(2)))) -> 0 | AS10: =N10 -> 122 | AT10: =COUNTIF(L20:L22,AS10) -> 0 | AU10: =AT10/(AV4-AT8) -> 0 | AV10: =IF(AU10=0,0,(AU10*((LOG(AU10))/LOG(2)))) -> 0
A11: 22 | B11: 2010 | C11: 13 | D11: 2023 | E11: 23 | F11: 2037 | K11: 0 | L11: 212 | N11: 211 | O11: =COUNTIF($L$7:$L$500,N11) -> 1 | P11: =O11/$Q$4 -> 0.0625 | Q11: =IF(P11=0,0,(P11*((LOG(P11))/LOG(2)))) -> -0.25 | T11: =N11 -> 211 | U11: =COUNTIF(L7:L9,T11) -> 0 | V11: =U11/(W4-U8) -> 0 | W11: =IF(V11=0,0,(V11*((LOG(V11))/LOG(2)))) -> 0 | Y11: =N11 -> 211 | Z11: =COUNTIF(L10:L11,Y11) -> 0 | AA11: =Z11/(AB4-Z8) -> 0 | AB11: =IF(AA11=0,0,(AA11*((LOG(AA11))/LOG(2)))) -> 0 | AD11: =N11 -> 211 | AE11: =COUNTIF(L12:L14,AD11) -> 1 | AF11: =AE11/(AG4-AE8) -> 0.3333333333 | AG11: =IF(AF11=0,0,(AF11*((LOG(AF11))/LOG(2)))) -> -0.5283208336 | AI11: =N11 -> 211 | AJ11: =COUNTIF(L15:L17,AI11) -> 0 | AK11: =AJ11/(AL4-AJ8) -> 0 | AL11: =IF(AK11=0,0,(AK11*((LOG(AK11))/LOG(2)))) -> 0 | AN11: =N11 -> 211 | AO11: =COUNTIF(L18:L19,AN11) -> 0 | AP11: =AO11/(AQ4-AO8) -> 0 | AQ11: =IF(AP11=0,0,(AP11*((LOG(AP11))/LOG(2)))) -> 0 | AS11: =N11 -> 211 | AT11: =COUNTIF(L20:L22,AS11) -> 0 | AU11: =AT11/(AV4-AT8) -> 0 | AV11: =IF(AU11=0,0,(AU11*((LOG(AU11))/LOG(2)))) -> 0
A12: 22 | B12: 2172 | C12: 13 | D12: 2179 | E12: 14 | F12: 2186 | K12: 0 | L12: 211 | N12: 212 | O12: =COUNTIF($L$7:$L$500,N12) -> 2 | P12: =O12/$Q$4 -> 0.125 | Q12: =IF(P12=0,0,(P12*((LOG(P12))/LOG(2)))) -> -0.375 | T12: =N12 -> 212 | U12: =COUNTIF(L7:L9,T12) -> 1 | V12: =U12/(W4-U8) -> 0.5 | W12: =IF(V12=0,0,(V12*((LOG(V12))/LOG(2)))) -> -0.5 | Y12: =N12 -> 212 | Z12: =COUNTIF(L10:L11,Y12) -> 1 | AA12: =Z12/(AB4-Z8) -> 0.5 | AB12: =IF(AA12=0,0,(AA12*((LOG(AA12))/LOG(2)))) -> -0.5 | AD12: =N12 -> 212 | AE12: =COUNTIF(L12:L14,AD12) -> 0 | AF12: =AE12/(AG4-AE8) -> 0 | AG12: =IF(AF12=0,0,(AF12*((LOG(AF12))/LOG(2)))) -> 0 | AI12: =N12 -> 212 | AJ12: =COUNTIF(L15:L17,AI12) -> 0 | AK12: =AJ12/(AL4-AJ8) -> 0 | AL12: =IF(AK12=0,0,(AK12*((LOG(AK12))/LOG(2)))) -> 0 | AN12: =N12 -> 212 | AO12: =COUNTIF(L18:L19,AN12) -> 0 | AP12: =AO12/(AQ4-AO8) -> 0 | AQ12: =IF(AP12=0,0,(AP12*((LOG(AP12))/LOG(2)))) -> 0 | AS12: =N12 -> 212 | AT12: =COUNTIF(L20:L22,AS12) -> 0 | AU12: =AT12/(AV4-AT8) -> 0 | AV12: =IF(AU12=0,0,(AU12*((LOG(AU12))/LOG(2)))) -> 0
A13: 11 | B13: 2304 | C13: 11 | D13: 2308 | E13: 12 | F13: 2313 | K13: 0 | L13: 111 | N13: 221 | O13: =COUNTIF($L$7:$L$500,N13) -> 1 | P13: =O13/$Q$4 -> 0.0625 | Q13: =IF(P13=0,0,(P13*((LOG(P13))/LOG(2)))) -> -0.25 | T13: =N13 -> 221 | U13: =COUNTIF(L7:L9,T13) -> 0 | V13: =U13/(W4-U8) -> 0 | W13: =IF(V13=0,0,(V13*((LOG(V13))/LOG(2)))) -> 0 | Y13: =N13 -> 221 | Z13: =COUNTIF(L10:L11,Y13) -> 0 | AA13: =Z13/(AB4-Z8) -> 0 | AB13: =IF(AA13=0,0,(AA13*((LOG(AA13))/LOG(2)))) -> 0 | AD13: =N13 -> 221 | AE13: =COUNTIF(L12:L14,AD13) -> 1 | AF13: =AE13/(AG4-AE8) -> 0.3333333333 | AG13: =IF(AF13=0,0,(AF13*((LOG(AF13))/LOG(2)))) -> -0.5283208336 | AI13: =N13 -> 221 | AJ13: =COUNTIF(L15:L17,AI13) -> 0 | AK13: =AJ13/(AL4-AJ8) -> 0 | AL13: =IF(AK13=0,0,(AK13*((LOG(AK13))/LOG(2)))) -> 0 | AN13: =N13 -> 221 | AO13: =COUNTIF(L18:L19,AN13) -> 0 | AP13: =AO13/(AQ4-AO8) -> 0 | AQ13: =IF(AP13=0,0,(AP13*((LOG(AP13))/LOG(2)))) -> 0 | AS13: =N13 -> 221 | AT13: =COUNTIF(L20:L22,AS13) -> 0 | AU13: =AT13/(AV4-AT8) -> 0 | AV13: =IF(AU13=0,0,(AU13*((LOG(AU13))/LOG(2)))) -> 0
A14: 22 | B14: 2633 | C14: 24 | D14: 2642 | E14: 14 | F14: 2652 | K14: 0 | L14: 221 | N14: 222 | O14: =COUNTIF($L$7:$L$500,N14) -> 3 | P14: =O14/$Q$4 -> 0.1875 | Q14: =IF(P14=0,0,(P14*((LOG(P14))/LOG(2)))) -> -0.4528195311 | T14: =N14 -> 222 | U14: =COUNTIF(L7:L9,T14) -> 0 | V14: =U14/(W4-U8) -> 0 | W14: =IF(V14=0,0,(V14*((LOG(V14))/LOG(2)))) -> 0 | Y14: =N14 -> 222 | Z14: =COUNTIF(L10:L11,Y14) -> 0 | AA14: =Z14/(AB4-Z8) -> 0 | AB14: =IF(AA14=0,0,(AA14*((LOG(AA14))/LOG(2)))) -> 0 | AD14: =N14 -> 222 | AE14: =COUNTIF(L12:L14,AD14) -> 0 | AF14: =AE14/(AG4-AE8) -> 0 | AG14: =IF(AF14=0,0,(AF14*((LOG(AF14))/LOG(2)))) -> 0 | AI14: =N14 -> 222 | AJ14: =COUNTIF(L15:L17,AI14) -> 2 | AK14: =AJ14/(AL4-AJ8) -> 0.6666666667 | AL14: =IF(AK14=0,0,(AK14*((LOG(AK14))/LOG(2)))) -> -0.3899750005 | AN14: =N14 -> 222 | AO14: =COUNTIF(L18:L19,AN14) -> 1 | AP14: =AO14/(AQ4-AO8) -> 0.5 | AQ14: =IF(AP14=0,0,(AP14*((LOG(AP14))/LOG(2)))) -> -0.5 | AS14: =N14 -> 222 | AT14: =COUNTIF(L20:L22,AS14) -> 0 | AU14: =AT14/(AV4-AT8) -> 0 | AV14: =IF(AU14=0,0,(AU14*((LOG(AU14))/LOG(2)))) -> 0
A15: 22 | B15: 4073 | C15: 24 | D15: 4080 | E15: 23 | F15: 4095 | K15: 0 | L15: 222 | P15: =SUM(P7:P14) -> 1 | Q15: =-SUM(Q7:Q14) -> 2.827819531 | V15: =SUM(V7:V14) -> 1 | W15: =-SUM(W7:W14) -> 1 | AA15: =SUM(AA7:AA14) -> 1 | AB15: =-SUM(AB7:AB14) -> 1 | AF15: =SUM(AF7:AF14) -> 1 | AG15: =-SUM(AG7:AG14) -> 1.584962501 | AK15: =SUM(AK7:AK14) -> 1 | AL15: =-SUM(AL7:AL14) -> 0.9182958341 | AP15: =SUM(AP7:AP14) -> 1 | AQ15: =-SUM(AQ7:AQ14) -> 1 | AU15: =SUM(AU7:AU14) -> 1 | AV15: =-SUM(AV7:AV14) -> 0
A16: 22 | B16: 4198 | C16: 24 | D16: 4202 | E16: 23 | F16: 4210 | K16: 0 | L16: 222 | P16: U= | Q16: =Q15/(LOG(Q4)/LOG(2)) -> 0.7069548828 | V16: U1= | W16: =W15/(LOG(W4)/LOG(2)) -> 0.6309297536 | AA16: U2= | AB16: =AB15/(LOG(AB4)/LOG(2)) -> 1 | AF16: U3= | AG16: =AG15/(LOG(AG4)/LOG(2)) -> 1 | AK16: U4= | AL16: =AL15/(LOG(AL4)/LOG(2)) -> 0.5793801643 | AP16: U5= | AQ16: =AQ15/(LOG(AQ4)/LOG(2)) -> 1 | AU16: U6= | AV16: =AV15/(LOG(AV4)/LOG(2)) -> 0
A17: 11 | B17: 4399 | C17: 22 | D17: 4413 | E17: 14 | F17: 4421 | K17: 0 | L17: 121
A18: 11 | B18: 5105 | C18: 22 | D18: 5124 | E18: 14 | F18: 5132 | K18: 0 | L18: 121
A19: 22 | B19: 5292 | C19: 24 | D19: 6318 | E19: 23 | F19: 6322 | K19: 0 | L19: 222 | N19: Total Target Seq
A20: 11 | B20: 6629 | C20: 11 | D20: 6645 | E20: 12 | F20: 6656 | K20: 0 | L20: 111 | N20: =COUNTIF(L7:L22,G3) -> 1 | P20: 3 | Q20: 2 | R20: 3 | S20: 3 | T20: 2 | U20: 3
A21: 11 | B21: 6787 | C21: 11 | D21: 6795 | E21: 12 | F21: 6807 | K21: 0 | L21: 111 | P21: % of reinforcement given in 6 equal intervals based on number of trials
A22: 11 | B22: 6938 | C22: 11 | D22: 6948 | E22: 12 | F22: 6956 | K22: 0 | L22: 111 | P22: %_1 | Q22: %_2 | R22: %_3 | S22: %_4 | T22: %_5 | U22: %_6
O23: target sequence | P23: =$G$3 -> 112 | Q23: =$G$3 -> 112 | R23: =$G$3 -> 112 | S23: =$G$3 -> 112 | T23: =$G$3 -> 112 | U23: =$G$3 -> 112
O24: total reinforcement | P24: =U8 -> 1 | Q24: =Z8 -> 0 | R24: =AE8 -> 0 | S24: =AJ8 -> 0 | T24: =AO8 -> 0 | U24: =AT8 -> 0
O25: % target
O26: CCRF
O27: % CCRf
O28: average response rate | P28: =F9/P20 -> 349 | Q28: =(F11-F9)/Q20 -> 495 | R28: =(F14-F11)/R20 -> 205 | S28: =(F17-F14)/S20 -> 589.6666667 | T28: =(F19-F17)/T20 -> 950.5 | U28: =(F22-F19)/U20 -> 211.3333333

Sheet !N41492B.AXT
A1: Report for:!N41492B.AXT
A2: Date: | B2: <date>
A3: Hen: | B3: <hen> | F3: Correct Sequence | G3: =Start!J2 -> 112 | P3: Total Sequences in Data | Q3: =4994-COUNTBLANK(L7:L5000) -> 6 | V3: Total Sequences in Block Data | W3: =COUNTA(L7:L7) -> 1 | AA3: Total Sequences in Block Data | AB3: =COUNTA(L8:L8) -> 1 | AF3: Total Sequences in Block Data | AG3: =COUNTA(L9:L9) -> 1 | AK3: Total Sequences in Block Data | AL3: =COUNTA(L10:L10) -> 1 | AP3: Total Sequences in Block Data | AQ3: =COUNTA(L11:L11) -> 1 | AU3: Total Sequences in Block Data | AV3: =COUNTA(L12:L12) -> 1
P4: Total Sequences in Summary | Q4: =SUM(O7:O14) -> 6 | V4: Total Sequences in Block Summary | W4: =SUM(U7:U14) -> 1 | AA4: Total Sequences in Block Summary | AB4: =SUM(Z7:Z14) -> 1 | AF4: Total Sequences in Block Summary | AG4: =SUM(AE7:AE14) -> 1 | AK4: Total Sequences in Block Summary | AL4: =SUM(AJ7:AJ14) -> 1 | AP4: Total Sequences in Block Summary | AQ4: =SUM(AO7:AO14) -> 1 | AU4: Total Sequences in Block Summary | AV4: =SUM(AT7:AT14) -> 1
T5: Block 1 | Y5: Block 2 | AD5: Block 3 | AI5: Block 4 | AN5: Block 5 | AS5: Block 6
A6: Sequence Component 1 | B6: Time 1 | C6: Sequence Component 2 | D6: Time 2 | E6: Sequence Component 3 | F6: Time 3 | G6: Sequence Component 4 | H6: Time 4 | I6: Sequence Component 5 | J6: Time 5 | K6: Correct? 0=No 1=Yes | L6: Sequence | N6: Frequency | P6: Relative Frequency | Q6: Variability | T6: Frequency | V6: Relative Frequency | W6: Variability | Y6: Frequency | AA6: Relative Frequency | AB6: Variability | AD6: Frequency | AF6: Relative Frequency | AG6: Variability | AI6: Frequency | AK6: Relative Frequency | AL6: Variability | AN6: Frequency | AP6: Relative Frequency | AQ6: Variability | AS6: Frequency | AU6: Relative Frequency | AV6: Variability
A7: 22 | B7: 46 | C7: 24 | D7: 50 | E7: 14 | F7: 85 | K7: 0 | L7: 221 | N7: 111 | O7: =COUNTIF($L$7:$L$500,N7) -> 2 | P7: =O7/$Q$4 -> 0.3333333333 | Q7: =IF(P7=0,0,(P7*((LOG(P7))/LOG(2)))) -> -0.5283208336 | T7: =N7 -> 111 | U7: =COUNTIF(L7:L7,T7) -> 0 | V7: =U7/(W4-U8) -> 0 | W7: =IF(V7=0,0,(V7*((LOG(V7))/LOG(2)))) -> 0 | Y7: =N7 -> 111 | Z7: =COUNTIF(L8:L8,Y7) -> 0 | AA7: =Z7/(AB4-Z8) -> 0 | AB7: =IF(AA7=0,0,(AA7*((LOG(AA7))/LOG(2)))) -> 0 | AD7: =N7 -> 111 | AE7: =COUNTIF(L9:L9,AD7) -> 0 | AF7: =AE7/(AG4-AE8) -> 0 | AG7: =IF(AF7=0,0,(AF7*((LOG(AF7))/LOG(2)))) -> 0 | AI7: =N7 -> 111 | AJ7: =COUNTIF(L10:L10,AI7) -> 1 | AK7: =AJ7/(AL4-AJ8) -> 1 | AL7: =IF(AK7=0,0,(AK7*((LOG(AK7))/LOG(2)))) -> 0 | AN7: =N7 -> 111 | AO7: =COUNTIF(L11:L11,AN7) -> 0 | AP7: =AO7/(AQ4-AO8) -> 0 | AQ7: =IF(AP7=0,0,(AP7*((LOG(AP7))/LOG(2)))) -> 0 | AS7: =N7 -> 111 | AT7: =COUNTIF(L12:L12,AS7) -> 1 | AU7: =AT7/(AV4-AT8) -> 1 | AV7: =IF(AU7=0,0,(AU7*((LOG(AU7))/LOG(2)))) -> 0
A8: 22 | B8: 507 | C8: 24 | D8: 522 | E8: 23 | F8: 623 | K8: 0 | L8: 222 | N8: 112 | O8: =COUNTIF($L$7:$L$500,N8) -> 0 | P8: =O8/$Q$4 -> 0 | Q8: =IF(P8=0,0,(P8*((LOG(P8))/LOG(2)))) -> 0 | T8: =N8 -> 112 | U8: =COUNTIF(L7:L7,T8) -> 0 | Y8: =N8 -> 112 | Z8: =COUNTIF(L8:L8,Y8) -> 0 | AD8: =N8 -> 112 | AE8: =COUNTIF(L9:L9,AD8) -> 0 | AI8: =N8 -> 112 | AJ8: =COUNTIF(L10:L10,AI8) -> 0 | AN8: =N8 -> 112 | AO8: =COUNTIF(L11:L11,AN8) -> 0 | AS8: =N8 -> 112 | AT8: =COUNTIF(L12:L12,AS8) -> 0
A9: 22 | B9: 8486 | C9: 24 | D9: 8488 | E9: 14 | F9: 9459 | K9: 0 | L9: 221 | N9: 121 | O9: =COUNTIF($L$7:$L$500,N9) -> 0 | P9: =O9/$Q$4 -> 0 | Q9: =IF(P9=0,0,(P9*((LOG(P9))/LOG(2)))) -> 0 | T9: =N9 -> 121 | U9: =COUNTIF(L7:L7,T9) -> 0 | V9: =U9/(W4-U8) -> 0 | W9: =IF(V9=0,0,(V9*((LOG(V9))/LOG(2)))) -> 0 | Y9: =N9 -> 121 | Z9: =COUNTIF(L8:L8,Y9) -> 0 | AA9: =Z9/(AB4-Z8) -> 0 | AB9: =IF(AA9=0,0,(AA9*((LOG(AA9))/LOG(2)))) -> 0 | AD9: =N9 -> 121 | AE9: =COUNTIF(L9:L9,AD9) -> 0 | AF9: =AE9/(AG4-AE8) -> 0 | AG9: =IF(AF9=0,0,(AF9*((LOG(AF9))/LOG(2)))) -> 0 | AI9: =N9 -> 121 | AJ9: =COUNTIF(L10:L10,AI9) -> 0 | AK9: =AJ9/(AL4-AJ8) -> 0 | AL9: =IF(AK9=0,0,(AK9*((LOG(AK9))/LOG(2)))) -> 0 | AN9: =N9 -> 121 | AO9: =COUNTIF(L11:L11,AN9) -> 0 | AP9: =AO9/(AQ4-AO8) -> 0 | AQ9: =IF(AP9=0,0,(AP9*((LOG(AP9))/LOG(2)))) -> 0 | AS9: =N9 -> 121 | AT9: =COUNTIF(L12:L12,AS9) -> 0 | AU9: =AT9/(AV4-AT8) -> 0 | AV9: =IF(AU9=0,0,(AU9*((LOG(AU9))/LOG(2)))) -> 0
A10: 11 | B10: 9557 | C10: 11 | D10: 9570 | E10: 12 | F10: 9573 | K10: 0 | L10: 111 | N10: 122 | O10: =COUNTIF($L$7:$L$500,N10) -> 0 | P10: =O10/$Q$4 -> 0 | Q10: =IF(P10=0,0,(P10*((LOG(P10))/LOG(2)))) -> 0 | T10: =N10 -> 122 | U10: =COUNTIF(L7:L7,T10) -> 0 | V10: =U10/(W4-U8) -> 0 | W10: =IF(V10=0,0,(V10*((LOG(V10))/LOG(2)))) -> 0 | Y10: =N10 -> 122 | Z10: =COUNTIF(L8:L8,Y10) -> 0 | AA10: =Z10/(AB4-Z8) -> 0 | AB10: =IF(AA10=0,0,(AA10*((LOG(AA10))/LOG(2)))) -> 0 | AD10: =N10 -> 122 | AE10: =COUNTIF(L9:L9,AD10) -> 0 | AF10: =AE10/(AG4-AE8) -> 0 | AG10: =IF(AF10=0,0,(AF10*((LOG(AF10))/LOG(2)))) -> 0 | AI10: =N10 -> 122 | AJ10: =COUNTIF(L10:L10,AI10) -> 0 | AK10: =AJ10/(AL4-AJ8) -> 0 | AL10: =IF(AK10=0,0,(AK10*((LOG(AK10))/LOG(2)))) -> 0 | AN10: =N10 -> 122 | AO10: =COUNTIF(L11:L11,AN10) -> 0 | AP10: =AO10/(AQ4-AO8) -> 0 | AQ10: =IF(AP10=0,0,(AP10*((LOG(AP10))/LOG(2)))) -> 0 | AS10: =N10 -> 122 | AT10: =COUNTIF(L12:L12,AS10) -> 0 | AU10: =AT10/(AV4-AT8) -> 0 | AV10: =IF(AU10=0,0,(AU10*((LOG(AU10))/LOG(2)))) -> 0
A11: 22 | B11: 10465 | C11: 13 | D11: 10473 | E11: 14 | F11: 10477 | K11: 0 | L11: 211 | N11: 211 | O11: =COUNTIF($L$7:$L$500,N11) -> 1 | P11: =O11/$Q$4 -> 0.1666666667 | Q11: =IF(P11=0,0,(P11*((LOG(P11))/LOG(2)))) -> -0.4308270835 | T11: =N11 -> 211 | U11: =COUNTIF(L7:L7,T11) -> 0 | V11: =U11/(W4-U8) -> 0 | W11: =IF(V11=0,0,(V11*((LOG(V11))/LOG(2)))) -> 0 | Y11: =N11 -> 211 | Z11: =COUNTIF(L8:L8,Y11) -> 0 | AA11: =Z11/(AB4-Z8) -> 0 | AB11: =IF(AA11=0,0,(AA11*((LOG(AA11))/LOG(2)))) -> 0 | AD11: =N11 -> 211 | AE11: =COUNTIF(L9:L9,AD11) -> 0 | AF11: =AE11/(AG4-AE8) -> 0 | AG11: =IF(AF11=0,0,(AF11*((LOG(AF11))/LOG(2)))) -> 0 | AI11: =N11 -> 211 | AJ11: =COUNTIF(L10:L10,AI11) -> 0 | AK11: =AJ11/(AL4-AJ8) -> 0 | AL11: =IF(AK11=0,0,(AK11*((LOG(AK11))/LOG(2)))) -> 0 | AN11: =N11 -> 211 | AO11: =COUNTIF(L11:L11,AN11) -> 1 | AP11: =AO11/(AQ4-AO8) -> 1 | AQ11: =IF(AP11=0,0,(AP11*((LOG(AP11))/LOG(2)))) -> 0 | AS11: =N11 -> 211 | AT11: =COUNTIF(L12:L12,AS11) -> 0 | AU11: =AT11/(AV4-AT8) -> 0 | AV11: =IF(AU11=0,0,(AU11*((LOG(AU11))/LOG(2)))) -> 0
A12: 11 | B12: 12495 | C12: 11 | D12: 12499 | E12: 12 | F12: 12505 | K12: 0 | L12: 111 | N12: 212 | O12: =COUNTIF($L$7:$L$500,N12) -> 0 | P12: =O12/$Q$4 -> 0 | Q12: =IF(P12=0,0,(P12*((LOG(P12))/LOG(2)))) -> 0 | T12: =N12 -> 212 | U12: =COUNTIF(L7:L7,T12) -> 0 | V12: =U12/(W4-U8) -> 0 | W12: =IF(V12=0,0,(V12*((LOG(V12))/LOG(2)))) -> 0 | Y12: =N12 -> 212 | Z12: =COUNTIF(L8:L8,Y12) -> 0 | AA12: =Z12/(AB4-Z8) -> 0 | AB12: =IF(AA12=0,0,(AA12*((LOG(AA12))/LOG(2)))) -> 0 | AD12: =N12 -> 212 | AE12: =COUNTIF(L9:L9,AD12) -> 0 | AF12: =AE12/(AG4-AE8) -> 0 | AG12: =IF(AF12=0,0,(AF12*((LOG(AF12))/LOG(2)))) -> 0 | AI12: =N12 -> 212 | AJ12: =COUNTIF(L10:L10,AI12) -> 0 | AK12: =AJ12/(AL4-AJ8) -> 0 | AL12: =IF(AK12=0,0,(AK12*((LOG(AK12))/LOG(2)))) -> 0 | AN12: =N12 -> 212 | AO12: =COUNTIF(L11:L11,AN12) -> 0 | AP12: =AO12/(AQ4-AO8) -> 0 | AQ12: =IF(AP12=0,0,(AP12*((LOG(AP12))/LOG(2)))) -> 0 | AS12: =N12 -> 212 | AT12: =COUNTIF(L12:L12,AS12) -> 0 | AU12: =AT12/(AV4-AT8) -> 0 | AV12: =IF(AU12=0,0,(AU12*((LOG(AU12))/LOG(2)))) -> 0
N13: 221 | O13: =COUNTIF($L$7:$L$500,N13) -> 2 | P13: =O13/$Q$4 -> 0.3333333333 | Q13: =IF(P13=0,0,(P13*((LOG(P13))/LOG(2)))) -> -0.5283208336 | T13: =N13 -> 221 | U13: =COUNTIF(L7:L7,T13) -> 1 | V13: =U13/(W4-U8) -> 1 | W13: =IF(V13=0,0,(V13*((LOG(V13))/LOG(2)))) -> 0 | Y13: =N13 -> 221 | Z13: =COUNTIF(L8:L8,Y13) -> 0 | AA13: =Z13/(AB4-Z8) -> 0 | AB13: =IF(AA13=0,0,(AA13*((LOG(AA13))/LOG(2)))) -> 0 | AD13: =N13 -> 221 | AE13: =COUNTIF(L9:L9,AD13) -> 1 | AF13: =AE13/(AG4-AE8) -> 1 | AG13: =IF(AF13=0,0,(AF13*((LOG(AF13))/LOG(2)))) -> 0 | AI13: =N13 -> 221 | AJ13: =COUNTIF(L10:L10,AI13) -> 0 | AK13: =AJ13/(AL4-AJ8) -> 0 | AL13: =IF(AK13=0,0,(AK13*((LOG(AK13))/LOG(2)))) -> 0 | AN13: =N13 -> 221 | AO13: =COUNTIF(L11:L11,AN13) -> 0 | AP13: =AO13/(AQ4-AO8) -> 0 | AQ13: =IF(AP13=0,0,(AP13*((LOG(AP13))/LOG(2)))) -> 0 | AS13: =N13 -> 221 | AT13: =COUNTIF(L12:L12,AS13) -> 0 | AU13: =AT13/(AV4-AT8) -> 0 | AV13: =IF(AU13=0,0,(AU13*((LOG(AU13))/LOG(2)))) -> 0
N14: 222 | O14: =COUNTIF($L$7:$L$500,N14) -> 1 | P14: =O14/$Q$4 -> 0.1666666667 | Q14: =IF(P14=0,0,(P14*((LOG(P14))/LOG(2)))) -> -0.4308270835 | T14: =N14 -> 222 | U14: =COUNTIF(L7:L7,T14) -> 0 | V14: =U14/(W4-U8) -> 0 | W14: =IF(V14=0,0,(V14*((LOG(V14))/LOG(2)))) -> 0 | Y14: =N14 -> 222 | Z14: =COUNTIF(L8:L8,Y14) -> 1 | AA14: =Z14/(AB4-Z8) -> 1 | AB14: =IF(AA14=0,0,(AA14*((LOG(AA14))/LOG(2)))) -> 0 | AD14: =N14 -> 222 | AE14: =COUNTIF(L9:L9,AD14) -> 0 | AF14: =AE14/(AG4-AE8) -> 0 | AG14: =IF(AF14=0,0,(AF14*((LOG(AF14))/LOG(2)))) -> 0 | AI14: =N14 -> 222 | AJ14: =COUNTIF(L10:L10,AI14) -> 0 | AK14: =AJ14/(AL4-AJ8) -> 0 | AL14: =IF(AK14=0,0,(AK14*((LOG(AK14))/LOG(2)))) -> 0 | AN14: =N14 -> 222 | AO14: =COUNTIF(L11:L11,AN14) -> 0 | AP14: =AO14/(AQ4-AO8) -> 0 | AQ14: =IF(AP14=0,0,(AP14*((LOG(AP14))/LOG(2)))) -> 0 | AS14: =N14 -> 222 | AT14: =COUNTIF(L12:L12,AS14) -> 0 | AU14: =AT14/(AV4-AT8) -> 0 | AV14: =IF(AU14=0,0,(AU14*((LOG(AU14))/LOG(2)))) -> 0
P15: =SUM(P7:P14) -> 1 | Q15: =-SUM(Q7:Q14) -> 1.918295834 | V15: =SUM(V7:V14) -> 1 | W15: =-SUM(W7:W14) -> 0 | AA15: =SUM(AA7:AA14) -> 1 | AB15: =-SUM(AB7:AB14) -> 0 | AF15: =SUM(AF7:AF14) -> 1 | AG15: =-SUM(AG7:AG14) -> 0 | AK15: =SUM(AK7:AK14) -> 1 | AL15: =-SUM(AL7:AL14) -> 0 | AP15: =SUM(AP7:AP14) -> 1 | AQ15: =-SUM(AQ7:AQ14) -> 0 | AU15: =SUM(AU7:AU14) -> 1 | AV15: =-SUM(AV7:AV14) -> 0
P16: U= | Q16: =Q15/(LOG(Q4)/LOG(2)) -> 0.7420981285 | V16: U1= | W16: =W15/(LOG(W4)/LOG(2)) ->  | AA16: U2= | AB16: =AB15/(LOG(AB4)/LOG(2)) ->  | AF16: U3= | AG16: =AG15/(LOG(AG4)/LOG(2)) ->  | AK16: U4= | AL16: =AL15/(LOG(AL4)/LOG(2)) ->  | AP16: U5= | AQ16: =AQ15/(LOG(AQ4)/LOG(2)) ->  | AU16: U6= | AV16: =AV15/(LOG(AV4)/LOG(2)) -> 
N19: Total Target Seq
N20: =COUNTIF(L7:L12,G3) -> 0 | P20: 1 | Q20: 1 | R20: 1 | S20: 1 | T20: 1 | U20: 1
P21: % of reinforcement given in 6 equal intervals based on number of trials
P22: %_1 | Q22: %_2 | R22: %_3 | S22: %_4 | T22: %_5 | U22: %_6
O23: target sequence | P23: =$G$3 -> 112 | Q23: =$G$3 -> 112 | R23: =$G$3 -> 112 | S23: =$G$3 -> 112 | T23: =$G$3 -> 112 | U23: =$G$3 -> 112
O24: total reinforcement | P24: =U8 -> 0 | Q24: =Z8 -> 0 | R24: =AE8 -> 0 | S24: =AJ8 -> 0 | T24: =AO8 -> 0 | U24: =AT8 -> 0
O25: % target
O26: CCRF
O27: % CCRf
O28: average response rate | P28: =F7/P20 -> 85 | Q28: =(F8-F7)/Q20 -> 538 | R28: =(F9-F8)/R20 -> 8836 | S28: =(F10-F9)/S20 -> 114 | T28: =(F11-F10)/T20 -> 904 | U28: =(F12-F11)/U20 -> 2028

Sheet !N41585B.AXT
A1: Report for:!N41585B.AXT
A2: Date: | B2: <date>
A3: Hen: | B3: <hen> | F3: Correct Sequence | G3: =Start!J2 -> 112 | P3: Total Sequences in Data | Q3: =4994-COUNTBLANK(L7:L5000) -> 26 | V3: Total Sequences in Block Data | W3: =COUNTA(L7:L10) -> 4 | AA3: Total Sequences in Block Data | AB3: =COUNTA(L11:L15) -> 5 | AF3: Total Sequences in Block Data | AG3: =COUNTA(L16:L19) -> 4 | AK3: Total Sequences in Block Data | AL3: =COUNTA(L20:L23) -> 4 | AP3: Total Sequences in Block Data | AQ3: =COUNTA(L24:L28) -> 5 | AU3: Total Sequences in Block Data | AV3: =COUNTA(L29:L32) -> 4
P4: Total Sequences in Summary | Q4: =SUM(O7:O14) -> 26 | V4: Total Sequences in Block Summary | W4: =SUM(U7:U14) -> 4 | AA4: Total Sequences in Block Summary | AB4: =SUM(Z7:Z14) -> 5 | AF4: Total Sequences in Block Summary | AG4: =SUM(AE7:AE14) -> 4 | AK4: Total Sequences in Block Summary | AL4: =SUM(AJ7:AJ14) -> 4 | AP4: Total Sequences in Block Summary | AQ4: =SUM(AO7:AO14) -> 5 | AU4: Total Sequences in Block Summary | AV4: =SUM(AT7:AT14) -> 4
T5: Block 1 | Y5: Block 2 | AD5: Block 3 | AI5: Block 4 | AN5: Block 5 | AS5: Block 6
A6: Sequence Component 1 | B6: Time 1 | C6: Sequence Component 2 | D6: Time 2 | E6: Sequence Component 3 | F6: Time 3 | G6: Sequence Component 4 | H6: Time 4 | I6: Sequence Component 5 | J6: Time 5 | K6: Correct? 0=No 1=Yes | L6: Sequence | N6: Frequency | P6: Relative Frequency | Q6: Variability | T6: Frequency | V6: Relative Frequency | W6: Variability | Y6: Frequency | AA6: Relative Frequency | AB6: Variability | AD6: Frequency | AF6: Relative Frequency | AG6: Variability | AI6: Frequency | AK6: Relative Frequency | AL6: Variability | AN6: Frequency | AP6: Relative Frequency | AQ6: Variability | AS6: Frequency | AU6: Relative Frequency | AV6: Variability
A7: 11 | B7: 949 | C7: 11 | D7: 966 | E7: 21 | F7: 973 | K7: 0 | L7: 112 | N7: 111 | O7: =COUNTIF($L$7:$L$500,N7) -> 1 | P7: =O7/$Q$4 -> 0.03846153846 | Q7: =IF(P7=0,0,(P7*((LOG(P7))/LOG(2)))) -> -0.180786143 | T7: =N7 -> 111 | U7: =COUNTIF(L7:L10,T7) -> 0 | V7: =U7/(W4-U8) -> 0 | W7: =IF(V7=0,0,(V7*((LOG(V7))/LOG(2)))) -> 0 | Y7: =N7 -> 111 | Z7: =COUNTIF(L11:L15,Y7) -> 0 | AA7: =Z7/(AB4-Z8) -> 0 | AB7: =IF(AA7=0,0,(AA7*((LOG(AA7))/LOG(2)))) -> 0 | AD7: =N7 -> 111 | AE7: =COUNTIF(L16:L19,AD7) -> 0 | AF7: =AE7/(AG4-AE8) -> 0 | AG7: =IF(AF7=0,0,(AF7*((LOG(AF7))/LOG(2)))) -> 0 | AI7: =N7 -> 111 | AJ7: =COUNTIF(L20:L23,AI7) -> 0 | AK7: =AJ7/(AL4-AJ8) -> 0 | AL7: =IF(AK7=0,0,(AK7*((LOG(AK7))/LOG(2)))) -> 0 | AN7: =N7 -> 111 | AO7: =COUNTIF(L24:L28,AN7) -> 0 | AP7: =AO7/(AQ4-AO8) -> 0 | AQ7: =IF(AP7=0,0,(AP7*((LOG(AP7))/LOG(2)))) -> 0 | AS7: =N7 -> 111 | AT7: =COUNTIF(L29:L32,AS7) -> 1 | AU7: =AT7/(AV4-AT8) -> 0.25 | AV7: =IF(AU7=0,0,(AU7*((LOG(AU7))/LOG(2)))) -> -0.5
A8: 22 | B8: 1277 | C8: 24 | D8: 1292 | E8: 23 | F8: 1296 | K8: 0 | L8: 222 | N8: 112 | O8: =COUNTIF($L$7:$L$500,N8) -> 6 | P8: =O8/$Q$4 -> 0.2307692308 | Q8: =IF(P8=0,0,(P8*((LOG(P8))/LOG(2)))) -> -0.4881870502 | T8: =N8 -> 112 | U8: =COUNTIF(L7:L10,T8) -> 2 | Y8: =N8 -> 112 | Z8: =COUNTIF(L11:L15,Y8) -> 0 | AD8: =N8 -> 112 | AE8: =COUNTIF(L16:L19,AD8) -> 1 | AI8: =N8 -> 112 | AJ8: =COUNTIF(L20:L23,AI8) -> 1 | AN8: =N8 -> 112 | AO8: =COUNTIF(L24:L28,AN8) -> 2 | AS8: =N8 -> 112 | AT8: =COUNTIF(L29:L32,AS8) -> 0
A9: 11 | B9: 1396 | C9: 11 | D9: 1409 | E9: 21 | F9: 1423 | K9: 0 | L9: 112 | N9: 121 | O9: =COUNTIF($L$7:$L$500,N9) -> 5 | P9: =O9/$Q$4 -> 0.1923076923 | Q9: =IF(P9=0,0,(P9*((LOG(P9))/LOG(2)))) -> -0.4574060814 | T9: =N9 -> 121 | U9: =COUNTIF(L7:L10,T9) -> 1 | V9: =U9/(W4-U8) -> 0.5 | W9: =IF(V9=0,0,(V9*((LOG(V9))/LOG(2)))) -> -0.5 | Y9: =N9 -> 121 | Z9: =COUNTIF(L11:L15,Y9) -> 0 | AA9: =Z9/(AB4-Z8) -> 0 | AB9: =IF(AA9=0,0,(AA9*((LOG(AA9))/LOG(2)))) -> 0 | AD9: =N9 -> 121 | AE9: =COUNTIF(L16:L19,AD9) -> 0 | AF9: =AE9/(AG4-AE8) -> 0 | AG9: =IF(AF9=0,0,(AF9*((LOG(AF9))/LOG(2)))) -> 0 | AI9: =N9 -> 121 | AJ9: =COUNTIF(L20:L23,AI9) -> 1 | AK9: =AJ9/(AL4-AJ8) -> 0.3333333333 | AL9: =IF(AK9=0,0,(AK9*((LOG(AK9))/LOG(2)))) -> -0.5283208336 | AN9: =N9 -> 121 | AO9: =COUNTIF(L24:L28,AN9) -> 2 | AP9: =AO9/(AQ4-AO8) -> 0.6666666667 | AQ9: =IF(AP9=0,0,(AP9*((LOG(AP9))/LOG(2)))) -> -0.3899750005 | AS9: =N9 -> 121 | AT9: =COUNTIF(L29:L32,AS9) -> 1 | AU9: =AT9/(AV4-AT8) -> 0.25 | AV9: =IF(AU9=0,0,(AU9*((LOG(AU9))/LOG(2)))) -> -0.5
A10: 11 | B10: 2436 | C10: 22 | D10: 2449 | E10: 14 | F10: 2451 | K10: 0 | L10: 121 | N10: 122 | O10: =COUNTIF($L$7:$L$500,N10) -> 0 | P10: =O10/$Q$4 -> 0 | Q10: =IF(P10=0,0,(P10*((LOG(P10))/LOG(2)))) -> 0 | T10: =N10 -> 122 | U10: =COUNTIF(L7:L10,T10) -> 0 | V10: =U10/(W4-U8) -> 0 | W10: =IF(V10=0,0,(V10*((LOG(V10))/LOG(2)))) -> 0 | Y10: =N10 -> 122 | Z10: =COUNTIF(L11:L15,Y10) -> 0 | AA10: =Z10/(AB4-Z8) -> 0 | AB10: =IF(AA10=0,0,(AA10*((LOG(AA10))/LOG(2)))) -> 0 | AD10: =N10 -> 122 | AE10: =COUNTIF(L16:L19,AD10) -> 0 | AF10: =AE10/(AG4-AE8) -> 0 | AG10: =IF(AF10=0,0,(AF10*((LOG(AF10))/LOG(2)))) -> 0 | AI10: =N10 -> 122 | AJ10: =COUNTIF(L20:L23,AI10) -> 0 | AK10: =AJ10/(AL4-AJ8) -> 0 | AL10: =IF(AK10=0,0,(AK10*((LOG(AK10))/LOG(2)))) -> 0 | AN10: =N10 -> 122 | AO10: =COUNTIF(L24:L28,AN10) -> 0 | AP10: =AO10/(AQ4-AO8) -> 0 | AQ10: =IF(AP10=0,0,(AP10*((LOG(AP10))/LOG(2)))) -> 0 | AS10: =N10 -> 122 | AT10: =COUNTIF(L29:L32,AS10) -> 0 | AU10: =AT10/(AV4-AT8) -> 0 | AV10: =IF(AU10=0,0,(AU10*((LOG(AU10))/LOG(2)))) -> 0
A11: 22 | B11: 2552 | C11: 24 | D11: 2562 | E11: 14 | F11: 2577 | K11: 0 | L11: 221 | N11: 211 | O11: =COUNTIF($L$7:$L$500,N11) -> 3 | P11: =O11/$Q$4 -> 0.1153846154 | Q11: =IF(P11=0,0,(P11*((LOG(P11))/LOG(2)))) -> -0.3594781405 | T11: =N11 -> 211 | U11: =COUNTIF(L7:L10,T11) -> 0 | V11: =U11/(W4-U8) -> 0 | W11: =IF(V11=0,0,(V11*((LOG(V11))/LOG(2)))) -> 0 | Y11: =N11 -> 211 | Z11: =COUNTIF(L11:L15,Y11) -> 1 | AA11: =Z11/(AB4-Z8) -> 0.2 | AB11: =IF(AA11=0,0,(AA11*((LOG(AA11))/LOG(2)))) -> -0.464385619 | AD11: =N11 -> 211 | AE11: =COUNTIF(L16:L19,AD11) -> 0 | AF11: =AE11/(AG4-AE8) -> 0 | AG11: =IF(AF11=0,0,(AF11*((LOG(AF11))/LOG(2)))) -> 0 | AI11: =N11 -> 211 | AJ11: =COUNTIF(L20:L23,AI11) -> 1 | AK11: =AJ11/(AL4-AJ8) -> 0.3333333333 | AL11: =IF(AK11=0,0,(AK11*((LOG(AK11))/LOG(2)))) -> -0.5283208336 | AN11: =N11 -> 211 | AO11: =COUNTIF(L24:L28,AN11) -> 0 | AP11: =AO11/(AQ4-AO8) -> 0 | AQ11: =IF(AP11=0,0,(AP11*((LOG(AP11))/LOG(2)))) -> 0 | AS11: =N11 -> 211 | AT11: =COUNTIF(L29:L32,AS11) -> 1 | AU11: =AT11/(AV4-AT8) -> 0.25 | AV11: =IF(AU11=0,0,(AU11*((LOG(AU11))/LOG(2)))) -> -0.5
A12: 22 | B12: 2687 | C12: 24 | D12: 2690 | E12: 23 | F12: 2721 | K12: 0 | L12: 222 | N12: 212 | O12: =COUNTIF($L$7:$L$500,N12) -> 1 | P12: =O12/$Q$4 -> 0.03846153846 | Q12: =IF(P12=0,0,(P12*((LOG(P12))/LOG(2)))) -> -0.180786143 | T12: =N12 -> 212 | U12: =COUNTIF(L7:L10,T12) -> 0 | V12: =U12/(W4-U8) -> 0 | W12: =IF(V12=0,0,(V12*((LOG(V12))/LOG(2)))) -> 0 | Y12: =N12 -> 212 | Z12: =COUNTIF(L11:L15,Y12) -> 0 | AA12: =Z12/(AB4-Z8) -> 0 | AB12: =IF(AA12=0,0,(AA12*((LOG(AA12))/LOG(2)))) -> 0 | AD12: =N12 -> 212 | AE12: =COUNTIF(L16:L19,AD12) -> 0 | AF12: =AE12/(AG4-AE8) -> 0 | AG12: =IF(AF12=0,0,(AF12*((LOG(AF12))/LOG(2)))) -> 0 | AI12: =N12 -> 212 | AJ12: =COUNTIF(L20:L23,AI12) -> 0 | AK12: =AJ12/(AL4-AJ8) -> 0 | AL12: =IF(AK12=0,0,(AK12*((LOG(AK12))/LOG(2)))) -> 0 | AN12: =N12 -> 212 | AO12: =COUNTIF(L24:L28,AN12) -> 0 | AP12: =AO12/(AQ4-AO8) -> 0 | AQ12: =IF(AP12=0,0,(AP12*((LOG(AP12))/LOG(2)))) -> 0 | AS12: =N12 -> 212 | AT12: =COUNTIF(L29:L32,AS12) -> 1 | AU12: =AT12/(AV4-AT8) -> 0.25 | AV12: =IF(AU12=0,0,(AU12*((LOG(AU12))/LOG(2)))) -> -0.5
A13: 22 | B13: 2966 | C13: 24 | D13: 2973 | E13: 23 | F13: 2977 | K13: 0 | L13: 222 | N13: 221 | O13: =COUNTIF($L$7:$L$500,N13) -> 2 | P13: =O13/$Q$4 -> 0.07692307692 | Q13: =IF(P13=0,0,(P13*((LOG(P13))/LOG(2)))) -> -0.2846492091 | T13: =N13 -> 221 | U13: =COUNTIF(L7:L10,T13) -> 0 | V13: =U13/(W4-U8) -> 0 | W13: =IF(V13=0,0,(V13*((LOG(V13))/LOG(2)))) -> 0 | Y13: =N13 -> 221 | Z13: =COUNTIF(L11:L15,Y13) -> 1 | AA13: =Z13/(AB4-Z8) -> 0.2 | AB13: =IF(AA13=0,0,(AA13*((LOG(AA13))/LOG(2)))) -> -0.464385619 | AD13: =N13 -> 221 | AE13: =COUNTIF(L16:L19,AD13) -> 0 | AF13: =AE13/(AG4-AE8) -> 0 | AG13: =IF(AF13=0,0,(AF13*((LOG(AF13))/LOG(2)))) -> 0 | AI13: =N13 -> 221 | AJ13: =COUNTIF(L20:L23,AI13) -> 1 | AK13: =AJ13/(AL4-AJ8) -> 0.3333333333 | AL13: =IF(AK13=0,0,(AK13*((LOG(AK13))/LOG(2)))) -> -0.5283208336 | AN13: =N13 -> 221 | AO13: =COUNTIF(L24:L28,AN13) -> 0 | AP13: =AO13/(AQ4-AO8) -> 0 | AQ13: =IF(AP13=0,0,(AP13*((LOG(AP13))/LOG(2)))) -> 0 | AS13: =N13 -> 221 | AT13: =COUNTIF(L29:L32,AS13) -> 0 | AU13: =AT13/(AV4-AT8) -> 0 | AV13: =IF(AU13=0,0,(AU13*((LOG(AU13))/LOG(2)))) -> 0
A14: 22 | B14: 3123 | C14: 24 | D14: 3129 | E14: 23 | F14: 3132 | K14: 0 | L14: 222 | N14: 222 | O14: =COUNTIF($L$7:$L$500,N14) -> 8 | P14: =O14/$Q$4 -> 0.3076923077 | Q14: =IF(P14=0,0,(P14*((LOG(P14))/LOG(2)))) -> -0.523212221 | T14: =N14 -> 222 | U14: =COUNTIF(L7:L10,T14) -> 1 | V14: =U14/(W4-U8) -> 0.5 | W14: =IF(V14=0,0,(V14*((LOG(V14))/LOG(2)))) -> -0.5 | Y14: =N14 -> 222 | Z14: =COUNTIF(L11:L15,Y14) -> 3 | AA14: =Z14/(AB4-Z8) -> 0.6 | AB14: =IF(AA14=0,0,(AA14*((LOG(AA14))/LOG(2)))) -> -0.4421793565 | AD14: =N14 -> 222 | AE14: =COUNTIF(L16:L19,AD14) -> 3 | AF14: =AE14/(AG4-AE8) -> 1 | AG14: =IF(AF14=0,0,(AF14*((LOG(AF14))/LOG(2)))) -> 0 | AI14: =N14 -> 222 | AJ14: =COUNTIF(L20:L23,AI14) -> 0 | AK14: =AJ14/(AL4-AJ8) -> 0 | AL14: =IF(AK14=0,0,(AK14*((LOG(AK14))/LOG(2)))) -> 0 | AN14: =N14 -> 222 | AO14: =COUNTIF(L24:L28,AN14) -> 1 | AP14: =AO14/(AQ4-AO8) -> 0.3333333333 | AQ14: =IF(AP14=0,0,(AP14*((LOG(AP14))/LOG(2)))) -> -0.5283208336 | AS14: =N14 -> 222 | AT14: =COUNTIF(L29:L32,AS14) -> 0 | AU14: =AT14/(AV4-AT8) -> 0 | AV14: =IF(AU14=0,0,(AU14*((LOG(AU14))/LOG(2)))) -> 0
A15: 22 | B15: 3233 | C15: 13 | D15: 3251 | E15: 14 | F15: 3266 | K15: 0 | L15: 211 | P15: =SUM(P7:P14) -> 1 | Q15: =-SUM(Q7:Q14) -> 2.474504988 | V15: =SUM(V7:V14) -> 1 | W15: =-SUM(W7:W14) -> 1 | AA15: =SUM(AA7:AA14) -> 1 | AB15: =-SUM(AB7:AB14) -> 1.370950594 | AF15: =SUM(AF7:AF14) -> 1 | AG15: =-SUM(AG7:AG14) -> 0 | AK15: =SUM(AK7:AK14) -> 1 | AL15: =-SUM(AL7:AL14) -> 1.584962501 | AP15: =SUM(AP7:AP14) -> 1 | AQ15: =-SUM(AQ7:AQ14) -> 0.9182958341 | AU15: =SUM(AU7:AU14) -> 1 | AV15: =-SUM(AV7:AV14) -> 2
A16: 22 | B16: 3613 | C16: 24 | D16: 3616 | E16: 23 | F16: 3621 | K16: 0 | L16: 222 | P16: U= | Q16: =Q15/(LOG(Q4)/LOG(2)) -> 0.5264411707 | V16: U1= | W16: =W15/(LOG(W4)/LOG(2)) -> 0.5 | AA16: U2= | AB16: =AB15/(LOG(AB4)/LOG(2)) -> 0.5904362833 | AF16: U3= | AG16: =AG15/(LOG(AG4)/LOG(2)) -> 0 | AK16: U4= | AL16: =AL15/(LOG(AL4)/LOG(2)) -> 0.7924812504 | AP16: U5= | AQ16: =AQ15/(LOG(AQ4)/LOG(2)) -> 0.3954884891 | AU16: U6= | AV16: =AV15/(LOG(AV4)/LOG(2)) -> 1
A17: 11 | B17: 3720 | C17: 11 | D17: 3727 | E17: 21 | F17: 3734 | K17: 0 | L17: 112
A18: 22 | B18: 4346 | C18: 24 | D18: 4353 | E18: 23 | F18: 4356 | K18: 0 | L18: 222
A19: 22 | B19: 4452 | C19: 24 | D19: 4456 | E19: 23 | F19: 4460 | K19: 0 | L19: 222 | N19: Total Target Seq
A20: 11 | B20: 4571 | C20: 22 | D20: 4597 | E20: 14 | F20: 4599 | K20: 0 | L20: 121 | N20: =COUNTIF(L7:L32,G3) -> 6 | P20: 4 | Q20: 5 | R20: 4 | S20: 4 | T20: 5 | U20: 4
A21: 11 | B21: 4711 | C21: 11 | D21: 4715 | E21: 21 | F21: 4723 | K21: 0 | L21: 112 | P21: % of reinforcement given in 6 equal intervals based on number of trials
A22: 22 | B22: 5737 | C22: 24 | D22: 5740 | E22: 14 | F22: 5750 | K22: 0 | L22: 221 | P22: %_1 | Q22: %_2 | R22: %_3 | S22: %_4 | T22: %_5 | U22: %_6
A23: 22 | B23: 5878 | C23: 13 | D23: 5893 | E23: 14 | F23: 5899 | K23: 0 | L23: 211 | O23: target sequence | P23: =$G$3 -> 112 | Q23: =$G$3 -> 112 | R23: =$G$3 -> 112 | S23: =$G$3 -> 112 | T23: =$G$3 -> 112 | U23: =$G$3 -> 112
A24: 11 | B24: 5999 | C24: 22 | D24: 6004 | E24: 14 | F24: 6018 | K24: 0 | L24: 121 | O24: total reinforcement | P24: =U8 -> 2 | Q24: =Z8 -> 0 | R24: =AE8 -> 1 | S24: =AJ8 -> 1 | T24: =AO8 -> 2 | U24: =AT8 -> 0
A25: 11 | B25: 6117 | C25: 11 | D25: 6141 | E25: 21 | F25: 6144 | K25: 0 | L25: 112 | O25: % target
A26: 22 | B26: 7039 | C26: 24 | D26: 7047 | E26: 23 | F26: 7051 | K26: 0 | L26: 222 | O26: CCRF
A27: 11 | B27: 7165 | C27: 22 | D27: 7174 | E27: 14 | F27: 7177 | K27: 0 | L27: 121 | O27: % CCRf
A28: 11 | B28: 7366 | C28: 11 | D28: 7382 | E28: 21 | F28: 7398 | K28: 0 | L28: 112 | O28: average response rate | P28: =F10/P20 -> 612.75 | Q28: =(F15-F10)/Q20 -> 163 | R28: =(F19-F15)/R20 -> 298.5 | S28: =(F23-F19)/S20 -> 359.75 | T28: =(F28-F23)/T20 -> 299.8 | U28: =(F32-F28)/U20 -> 4133
A29: 11 | B29: 7709 | C29: 22 | D29: 7721 | E29: 14 | F29: 7734 | K29: 0 | L29: 121
A30: 22 | B30: 7955 | C30: 13 | D30: 7968 | E30: 23 | F30: 7986 | K30: 0 | L30: 212
A31: 22 | B31: 8091 | C31: 13 | D31: 8109 | E31: 14 | F31: 8111 | K31: 0 | L31: 211
A32: 11 | B32: 23897 | C32: 11 | D32: 23915 | E32: 12 | F32: 23930 | L32: 111

Sheet !N41684B.AXT
A1: Report for:!N41684B.AXT
A2: Date: | B2: <date>
A3: Hen: | B3: <hen> | F3: Correct Sequence | G3: =Start!J2 -> 112 | P3: Total Sequences in Data | Q3: =4994-COUNTBLANK(L7:L5000) -> 11 | V3: Total Sequences in Block Data | W3: =COUNTA(L7:L8) -> 2 | AA3: Total Sequences in Block Data | AB3: =COUNTA(L9:L10) -> 2 | AF3: Total Sequences in Block Data | AG3: =COUNTA(L11:L11) -> 1 | AK3: Total Sequences in Block Data | AL3: =COUNTA(L12:L13) -> 2 | AP3: Total Sequences in Block Data | AQ3: =COUNTA(L14:L15) -> 2 | AU3: Total Sequences in Block Data | AV3: =COUNTA(L16:L17) -> 2
P4: Total Sequences in Summary | Q4: =SUM(O7:O14) -> 11 | V4: Total Sequences in Block Summary | W4: =SUM(U7:U14) -> 2 | AA4: Total Sequences in Block Summary | AB4: =SUM(Z7:Z14) -> 2 | AF4: Total Sequences in Block Summary | AG4: =SUM(AE7:AE14) -> 1 | AK4: Total Sequences in Block Summary | AL4: =SUM(AJ7:AJ14) -> 2 | AP4: Total Sequences in Block Summary | AQ4: =SUM(AO7:AO14) -> 2 | AU4: Total Sequences in Block Summary | AV4: =SUM(AT7:AT14) -> 2
T5: Block 1 | Y5: Block 2 | AD5: Block 3 | AI5: Block 4 | AN5: Block 5 | AS5: Block 6
A6: Sequence Component 1 | B6: Time 1 | C6: Sequence Component 2 | D6: Time 2 | E6: Sequence Component 3 | F6: Time 3 | G6: Sequence Component 4 | H6: Time 4 | I6: Sequence Component 5 | J6: Time 5 | K6: Correct? 0=No 1=Yes | L6: Sequence | N6: Frequency | P6: Relative Frequency | Q6: Variability | T6: Frequency | V6: Relative Frequency | W6: Variability | Y6: Frequency | AA6: Relative Frequency | AB6: Variability | AD6: Frequency | AF6: Relative Frequency | AG6: Variability | AI6: Frequency | AK6: Relative Frequency | AL6: Variability | AN6: Frequency | AP6: Relative Frequency | AQ6: Variability | AS6: Frequency | AU6: Relative Frequency | AV6: Variability
A7: 22 | B7: 715 | C7: 13 | D7: 730 | E7: 23 | F7: 748 | K7: 0 | L7: 212 | N7: 111 | O7: =COUNTIF($L$7:$L$500,N7) -> 4 | P7: =O7/$Q$4 -> 0.3636363636 | Q7: =IF(P7=0,0,(P7*((LOG(P7))/LOG(2)))) -> -0.5307024068 | T7: =N7 -> 111 | U7: =COUNTIF(L7:L8,T7) -> 0 | V7: =U7/(W4-U8) -> 0 | W7: =IF(V7=0,0,(V7*((LOG(V7))/LOG(2)))) -> 0 | Y7: =N7 -> 111 | Z7: =COUNTIF(L9:L10,Y7) -> 2 | AA7: =Z7/(AB4-Z8) -> 1 | AB7: =IF(AA7=0,0,(AA7*((LOG(AA7))/LOG(2)))) -> 0 | AD7: =N7 -> 111 | AE7: =COUNTIF(L11:L11,AD7) -> 0 | AF7: =AE7/(AG4-AE8) -> 0 | AG7: =IF(AF7=0,0,(AF7*((LOG(AF7))/LOG(2)))) -> 0 | AI7: =N7 -> 111 | AJ7: =COUNTIF(L12:L13,AI7) -> 1 | AK7: =AJ7/(AL4-AJ8) -> 0.5 | AL7: =IF(AK7=0,0,(AK7*((LOG(AK7))/LOG(2)))) -> -0.5 | AN7: =N7 -> 111 | AO7: =COUNTIF(L14:L15,AN7) -> 0 | AP7: =AO7/(AQ4-AO8) -> 0 | AQ7: =IF(AP7=0,0,(AP7*((LOG(AP7))/LOG(2)))) -> 0 | AS7: =N7 -> 111 | AT7: =COUNTIF(L16:L17,AS7) -> 1 | AU7: =AT7/(AV4-AT8) -> 0.5 | AV7: =IF(AU7=0,0,(AU7*((LOG(AU7))/LOG(2)))) -> -0.5
A8: 22 | B8: 851 | C8: 13 | D8: 863 | E8: 23 | F8: 875 | K8: 0 | L8: 212 | N8: 112 | O8: =COUNTIF($L$7:$L$500,N8) -> 0 | P8: =O8/$Q$4 -> 0 | Q8: =IF(P8=0,0,(P8*((LOG(P8))/LOG(2)))) -> 0 | T8: =N8 -> 112 | U8: =COUNTIF(L7:L8,T8) -> 0 | Y8: =N8 -> 112 | Z8: =COUNTIF(L9:L10,Y8) -> 0 | AD8: =N8 -> 112 | AE8: =COUNTIF(L11:L11,AD8) -> 0 | AI8: =N8 -> 112 | AJ8: =COUNTIF(L12:L13,AI8) -> 0 | AN8: =N8 -> 112 | AO8: =COUNTIF(L14:L15,AN8) -> 0 | AS8: =N8 -> 112 | AT8: =COUNTIF(L16:L17,AS8) -> 0
A9: 11 | B9: 978 | C9: 11 | D9: 993 | E9: 12 | F9: 1008 | K9: 0 | L9: 111 | N9: 121 | O9: =COUNTIF($L$7:$L$500,N9) -> 0 | P9: =O9/$Q$4 -> 0 | Q9: =IF(P9=0,0,(P9*((LOG(P9))/LOG(2)))) -> 0 | T9: =N9 -> 121 | U9: =COUNTIF(L7:L8,T9) -> 0 | V9: =U9/(W4-U8) -> 0 | W9: =IF(V9=0,0,(V9*((LOG(V9))/LOG(2)))) -> 0 | Y9: =N9 -> 121 | Z9: =COUNTIF(L9:L10,Y9) -> 0 | AA9: =Z9/(AB4-Z8) -> 0 | AB9: =IF(AA9=0,0,(AA9*((LOG(AA9))/LOG(2)))) -> 0 | AD9: =N9 -> 121 | AE9: =COUNTIF(L11:L11,AD9) -> 0 | AF9: =AE9/(AG4-AE8) -> 0 | AG9: =IF(AF9=0,0,(AF9*((LOG(AF9))/LOG(2)))) -> 0 | AI9: =N9 -> 121 | AJ9: =COUNTIF(L12:L13,AI9) -> 0 | AK9: =AJ9/(AL4-AJ8) -> 0 | AL9: =IF(AK9=0,0,(AK9*((LOG(AK9))/LOG(2)))) -> 0 | AN9: =N9 -> 121 | AO9: =COUNTIF(L14:L15,AN9) -> 0 | AP9: =AO9/(AQ4-AO8) -> 0 | AQ9: =IF(AP9=0,0,(AP9*((LOG(AP9))/LOG(2)))) -> 0 | AS9: =N9 -> 121 | AT9: =COUNTIF(L16:L17,AS9) -> 0 | AU9: =AT9/(AV4-AT8) -> 0 | AV9: =IF(AU9=0,0,(AU9*((LOG(AU9))/LOG(2)))) -> 0
A10: 11 | B10: 1133 | C10: 11 | D10: 1136 | E10: 12 | F10: 1151 | K10: 0 | L10: 111 | N10: 122 | O10: =COUNTIF($L$7:$L$500,N10) -> 1 | P10: =O10/$Q$4 -> 0.09090909091 | Q10: =IF(P10=0,0,(P10*((LOG(P10))/LOG(2)))) -> -0.3144937835 | T10: =N10 -> 122 | U10: =COUNTIF(L7:L8,T10) -> 0 | V10: =U10/(W4-U8) -> 0 | W10: =IF(V10=0,0,(V10*((LOG(V10))/LOG(2)))) -> 0 | Y10: =N10 -> 122 | Z10: =COUNTIF(L9:L10,Y10) -> 0 | AA10: =Z10/(AB4-Z8) -> 0 | AB10: =IF(AA10=0,0,(AA10*((LOG(AA10))/LOG(2)))) -> 0 | AD10: =N10 -> 122 | AE10: =COUNTIF(L11:L11,AD10) -> 1 | AF10: =AE10/(AG4-AE8) -> 1 | AG10: =IF(AF10=0,0,(AF10*((LOG(AF10))/LOG(2)))) -> 0 | AI10: =N10 -> 122 | AJ10: =COUNTIF(L12:L13,AI10) -> 0 | AK10: =AJ10/(AL4-AJ8) -> 0 | AL10: =IF(AK10=0,0,(AK10*((LOG(AK10))/LOG(2)))) -> 0 | AN10: =N10 -> 122 | AO10: =COUNTIF(L14:L15,AN10) -> 0 | AP10: =AO10/(AQ4-AO8) -> 0 | AQ10: =IF(AP10=0,0,(AP10*((LOG(AP10))/LOG(2)))) -> 0 | AS10: =N10 -> 122 | AT10: =COUNTIF(L16:L17,AS10) -> 0 | AU10: =AT10/(AV4-AT8) -> 0 | AV10: =IF(AU10=0,0,(AU10*((LOG(AU10))/LOG(2)))) -> 0
A11: 11 | B11: 1252 | C11: 22 | D11: 1254 | E11: 23 | F11: 1269 | K11: 0 | L11: 122 | N11: 211 | O11: =COUNTIF($L$7:$L$500,N11) -> 1 | P11: =O11/$Q$4 -> 0.09090909091 | Q11: =IF(P11=0,0,(P11*((LOG(P11))/LOG(2)))) -> -0.3144937835 | T11: =N11 -> 211 | U11: =COUNTIF(L7:L8,T11) -> 0 | V11: =U11/(W4-U8) -> 0 | W11: =IF(V11=0,0,(V11*((LOG(V11))/LOG(2)))) -> 0 | Y11: =N11 -> 211 | Z11: =COUNTIF(L9:L10,Y11) -> 0 | AA11: =Z11/(AB4-Z8) -> 0 | AB11: =IF(AA11=0,0,(AA11*((LOG(AA11))/LOG(2)))) -> 0 | AD11: =N11 -> 211 | AE11: =COUNTIF(L11:L11,AD11) -> 0 | AF11: =AE11/(AG4-AE8) -> 0 | AG11: =IF(AF11=0,0,(AF11*((LOG(AF11))/LOG(2)))) -> 0 | AI11: =N11 -> 211 | AJ11: =COUNTIF(L12:L13,AI11) -> 0 | AK11: =AJ11/(AL4-AJ8) -> 0 | AL11: =IF(AK11=0,0,(AK11*((LOG(AK11))/LOG(2)))) -> 0 | AN11: =N11 -> 211 | AO11: =COUNTIF(L14:L15,AN11) -> 1 | AP11: =AO11/(AQ4-AO8) -> 0.5 | AQ11: =IF(AP11=0,0,(AP11*((LOG(AP11))/LOG(2)))) -> -0.5 | AS11: =N11 -> 211 | AT11: =COUNTIF(L16:L17,AS11) -> 0 | AU11: =AT11/(AV4-AT8) -> 0 | AV11: =IF(AU11=0,0,(AU11*((LOG(AU11))/LOG(2)))) -> 0
A12: 22 | B12: 1440 | C12: 24 | D12: 1444 | E12: 14 | F12: 1459 | K12: 0 | L12: 221 | N12: 212 | O12: =COUNTIF($L$7:$L$500,N12) -> 2 | P12: =O12/$Q$4 -> 0.1818181818 | Q12: =IF(P12=0,0,(P12*((LOG(P12))/LOG(2)))) -> -0.4471693852 | T12: =N12 -> 212 | U12: =COUNTIF(L7:L8,T12) -> 2 | V12: =U12/(W4-U8) -> 1 | W12: =IF(V12=0,0,(V12*((LOG(V12))/LOG(2)))) -> 0 | Y12: =N12 -> 212 | Z12: =COUNTIF(L9:L10,Y12) -> 0 | AA12: =Z12/(AB4-Z8) -> 0 | AB12: =IF(AA12=0,0,(AA12*((LOG(AA12))/LOG(2)))) -> 0 | AD12: =N12 -> 212 | AE12: =COUNTIF(L11:L11,AD12) -> 0 | AF12: =AE12/(AG4-AE8) -> 0 | AG12: =IF(AF12=0,0,(AF12*((LOG(AF12))/LOG(2)))) -> 0 | AI12: =N12 -> 212 | AJ12: =COUNTIF(L12:L13,AI12) -> 0 | AK12: =AJ12/(AL4-AJ8) -> 0 | AL12: =IF(AK12=0,0,(AK12*((LOG(AK12))/LOG(2)))) -> 0 | AN12: =N12 -> 212 | AO12: =COUNTIF(L14:L15,AN12) -> 0 | AP12: =AO12/(AQ4-AO8) -> 0 | AQ12: =IF(AP12=0,0,(AP12*((LOG(AP12))/LOG(2)))) -> 0 | AS12: =N12 -> 212 | AT12: =COUNTIF(L16:L17,AS12) -> 0 | AU12: =AT12/(AV4-AT8) -> 0 | AV12: =IF(AU12=0,0,(AU12*((LOG(AU12))/LOG(2)))) -> 0
A13: 11 | B13: 1586 | C13: 11 | D13: 1591 | E13: 12 | F13: 1596 | K13: 0 | L13: 111 | N13: 221 | O13: =COUNTIF($L$7:$L$500,N13) -> 3 | P13: =O13/$Q$4 -> 0.2727272727 | Q13: =IF(P13=0,0,(P13*((LOG(P13))/LOG(2)))) -> -0.5112188503 | T13: =N13 -> 221 | U13: =COUNTIF(L7:L8,T13) -> 0 | V13: =U13/(W4-U8) -> 0 | W13: =IF(V13=0,0,(V13*((LOG(V13))/LOG(2)))) -> 0 | Y13: =N13 -> 221 | Z13: =COUNTIF(L9:L10,Y13) -> 0 | AA13: =Z13/(AB4-Z8) -> 0 | AB13: =IF(AA13=0,0,(AA13*((LOG(AA13))/LOG(2)))) -> 0 | AD13: =N13 -> 221 | AE13: =COUNTIF(L11:L11,AD13) -> 0 | AF13: =AE13/(AG4-AE8) -> 0 | AG13: =IF(AF13=0,0,(AF13*((LOG(AF13))/LOG(2)))) -> 0 | AI13: =N13 -> 221 | AJ13: =COUNTIF(L12:L13,AI13) -> 1 | AK13: =AJ13/(AL4-AJ8) -> 0.5 | AL13: =IF(AK13=0,0,(AK13*((LOG(AK13))/LOG(2)))) -> -0.5 | AN13: =N13 -> 221 | AO13: =COUNTIF(L14:L15,AN13) -> 1 | AP13: =AO13/(AQ4-AO8) -> 0.5 | AQ13: =IF(AP13=0,0,(AP13*((LOG(AP13))/LOG(2)))) -> -0.5 | AS13: =N13 -> 221 | AT13: =COUNTIF(L16:L17,AS13) -> 1 | AU13: =AT13/(AV4-AT8) -> 0.5 | AV13: =IF(AU13=0,0,(AU13*((LOG(AU13))/LOG(2)))) -> -0.5
A14: 22 | B14: 2777 | C14: 13 | D14: 2796 | E14: 14 | F14: 2800 | K14: 0 | L14: 211 | N14: 222 | O14: =COUNTIF($L$7:$L$500,N14) -> 0 | P14: =O14/$Q$4 -> 0 | Q14: =IF(P14=0,0,(P14*((LOG(P14))/LOG(2)))) -> 0 | T14: =N14 -> 222 | U14: =COUNTIF(L7:L8,T14) -> 0 | V14: =U14/(W4-U8) -> 0 | W14: =IF(V14=0,0,(V14*((LOG(V14))/LOG(2)))) -> 0 | Y14: =N14 -> 222 | Z14: =COUNTIF(L9:L10,Y14) -> 0 | AA14: =Z14/(AB4-Z8) -> 0 | AB14: =IF(AA14=0,0,(AA14*((LOG(AA14))/LOG(2)))) -> 0 | AD14: =N14 -> 222 | AE14: =COUNTIF(L11:L11,AD14) -> 0 | AF14: =AE14/(AG4-AE8) -> 0 | AG14: =IF(AF14=0,0,(AF14*((LOG(AF14))/LOG(2)))) -> 0 | AI14: =N14 -> 222 | AJ14: =COUNTIF(L12:L13,AI14) -> 0 | AK14: =AJ14/(AL4-AJ8) -> 0 | AL14: =IF(AK14=0,0,(AK14*((LOG(AK14))/LOG(2)))) -> 0 | AN14: =N14 -> 222 | AO14: =COUNTIF(L14:L15,AN14) -> 0 | AP14: =AO14/(AQ4-AO8) -> 0 | AQ14: =IF(AP14=0,0,(AP14*((LOG(AP14))/LOG(2)))) -> 0 | AS14: =N14 -> 222 | AT14: =COUNTIF(L16:L17,AS14) -> 0 | AU14: =AT14/(AV4-AT8) -> 0 | AV14: =IF(AU14=0,0,(AU14*((LOG(AU14))/LOG(2)))) -> 0
A15: 22 | B15: 2984 | C15: 24 | D15: 2987 | E15: 14 | F15: 3016 | K15: 0 | L15: 221 | P15: =SUM(P7:P14) -> 1 | Q15: =-SUM(Q7:Q14) -> 2.118078209 | V15: =SUM(V7:V14) -> 1 | W15: =-SUM(W7:W14) -> 0 | AA15: =SUM(AA7:AA14) -> 1 | AB15: =-SUM(AB7:AB14) -> 0 | AF15: =SUM(AF7:AF14) -> 1 | AG15: =-SUM(AG7:AG14) -> 0 | AK15: =SUM(AK7:AK14) -> 1 | AL15: =-SUM(AL7:AL14) -> 1 | AP15: =SUM(AP7:AP14) -> 1 | AQ15: =-SUM(AQ7:AQ14) -> 1 | AU15: =SUM(AU7:AU14) -> 1 | AV15: =-SUM(AV7:AV14) -> 1
A16: 22 | B16: 3123 | C16: 24 | D16: 3131 | E16: 14 | F16: 3141 | K16: 0 | L16: 221 | P16: U= | Q16: =Q15/(LOG(Q4)/LOG(2)) -> 0.6122619097 | V16: U1= | W16: =W15/(LOG(W4)/LOG(2)) -> 0 | AA16: U2= | AB16: =AB15/(LOG(AB4)/LOG(2)) -> 0 | AF16: U3= | AG16: =AG15/(LOG(AG4)/LOG(2)) ->  | AK16: U4= | AL16: =AL15/(LOG(AL4)/LOG(2)) -> 1 | AP16: U5= | AQ16: =AQ15/(LOG(AQ4)/LOG(2)) -> 1 | AU16: U6= | AV16: =AV15/(LOG(AV4)/LOG(2)) -> 1
A17: 11 | B17: 10168 | C17: 11 | D17: 10181 | E17: 12 | F17: 10193 | K17: 0 | L17: 111
N19: Total Target Seq
N20: =COUNTIF(L7:L17,G3) -> 0 | P20: 2 | Q20: 2 | R20: 1 | S20: 2 | T20: 2 | U20: 2
P21: % of reinforcement given in 6 equal intervals based on number of trials
P22: %_1 | Q22: %_2 | R22: %_3 | S22: %_4 | T22: %_5 | U22: %_6
O23: target sequence | P23: =$G$3 -> 112 | Q23: =$G$3 -> 112 | R23: =$G$3 -> 112 | S23: =$G$3 -> 112 | T23: =$G$3 -> 112 | U23: =$G$3 -> 112
O24: total reinforcement | P24: =U8 -> 0 | Q24: =Z8 -> 0 | R24: =AE8 -> 0 | S24: =AJ8 -> 0 | T24: =AO8 -> 0 | U24: =AT8 -> 0
O25: % target
O26: CCRF
O27: % CCRf
O28: average response rate | P28: =F8/P20 -> 437.5 | Q28: =(F10-F8)/Q20 -> 138 | R28: =(F11-F10)/R20 -> 118 | S28: =(F13-F11)/S20 -> 163.5 | T28: =(F15-F13)/T20 -> 710 | U28: =(F17-F15)/U20 -> 3588.5

Sheet !N417A3B.AXT
A1: Report for:!N417A3B.AXT
A2: Date: | B2: <date>
A3: Hen: | B3: <hen> | F3: Correct Sequence | G3: =Start!J2 -> 112 | P3: Total Sequences in Data | Q3: =4994-COUNTBLANK(L7:L5000) -> 3 | V3: Total Sequences in Block Data | W3: =COUNTA(L7:L7) -> 1 | AA3: Total Sequences in Block Data | AB3: =COUNTA(L7:L8) -> 2 | AF3: Total Sequences in Block Data | AG3: =COUNTA(L8:L8) -> 1 | AK3: Total Sequences in Block Data | AL3: =COUNTA(L8:L9) -> 2 | AP3: Total Sequences in Block Data | AQ3: =COUNTA(L9:L9) -> 1 | AU3: Total Sequences in Block Data | AV3: =COUNTA(L9:L10) -> 1
P4: Total Sequences in Summary | Q4: =SUM(O7:O14) -> 3 | V4: Total Sequences in Block Summary | W4: =SUM(U7:U14) -> 1 | AA4: Total Sequences in Block Summary | AB4: =SUM(Z7:Z14) -> 2 | AF4: Total Sequences in Block Summary | AG4: =SUM(AE7:AE14) -> 1 | AK4: Total Sequences in Block Summary | AL4: =SUM(AJ7:AJ14) -> 2 | AP4: Total Sequences in Block Summary | AQ4: =SUM(AO7:AO14) -> 1 | AU4: Total Sequences in Block Summary | AV4: =SUM(AT7:AT14) -> 1
T5: Block 1 | Y5: Block 2 | AD5: Block 3 | AI5: Block 4 | AN5: Block 5 | AS5: Block 6
A6: Sequence Component 1 | B6: Time 1 | C6: Sequence Component 2 | D6: Time 2 | E6: Sequence Component 3 | F6: Time 3 | G6: Sequence Component 4 | H6: Time 4 | I6: Sequence Component 5 | J6: Time 5 | K6: Correct? 0=No 1=Yes | L6: Sequence | N6: Frequency | P6: Relative Frequency | Q6: Variability | T6: Frequency | V6: Relative Frequency | W6: Variability | Y6: Frequency | AA6: Relative Frequency | AB6: Variability | AD6: Frequency | AF6: Relative Frequency | AG6: Variability | AI6: Frequency | AK6: Relative Frequency | AL6: Variability | AN6: Frequency | AP6: Relative Frequency | AQ6: Variability | AS6: Frequency | AU6: Relative Frequency | AV6: Variability
A7: 11 | B7: 2400 | C7: 22 | D7: 2427 | E7: 23 | F7: 2430 | K7: 0 | L7: 122 | N7: 111 | O7: =COUNTIF($L$7:$L$500,N7) -> 2 | P7: =O7/$Q$4 -> 0.6666666667 | Q7: =IF(P7=0,0,(P7*((LOG(P7))/LOG(2)))) -> -0.3899750005 | T7: =N7 -> 111 | U7: =COUNTIF(L7:L7,T7) -> 0 | V7: =U7/(W4-U8) -> 0 | W7: =IF(V7=0,0,(V7*((LOG(V7))/LOG(2)))) -> 0 | Y7: =N7 -> 111 | Z7: =COUNTIF(L7:L8,Y7) -> 1 | AA7: =Z7/(AB4-Z8) -> 0.5 | AB7: =IF(AA7=0,0,(AA7*((LOG(AA7))/LOG(2)))) -> -0.5 | AD7: =N7 -> 111 | AE7: =COUNTIF(L8:L8,AD7) -> 1 | AF7: =AE7/(AG4-AE8) -> 1 | AG7: =IF(AF7=0,0,(AF7*((LOG(AF7))/LOG(2)))) -> 0 | AI7: =N7 -> 111 | AJ7: =COUNTIF(L8:L9,AI7) -> 2 | AK7: =AJ7/(AL4-AJ8) -> 1 | AL7: =IF(AK7=0,0,(AK7*((LOG(AK7))/LOG(2)))) -> 0 | AN7: =N7 -> 111 | AO7: =COUNTIF(L9:L9,AN7) -> 1 | AP7: =AO7/(AQ4-AO8) -> 1 | AQ7: =IF(AP7=0,0,(AP7*((LOG(AP7))/LOG(2)))) -> 0 | AS7: =N7 -> 111 | AT7: =COUNTIF(L9:L10,AS7) -> 1 | AU7: =AT7/(AV4-AT8) -> 1 | AV7: =IF(AU7=0,0,(AU7*((LOG(AU7))/LOG(2)))) -> 0
A8: 11 | B8: 2570 | C8: 11 | D8: 2574 | E8: 12 | F8: 2590 | K8: 0 | L8: 111 | N8: 112 | O8: =COUNTIF($L$7:$L$500,N8) -> 0 | P8: =O8/$Q$4 -> 0 | Q8: =IF(P8=0,0,(P8*((LOG(P8))/LOG(2)))) -> 0 | T8: =N8 -> 112 | U8: =COUNTIF(L7:L7,T8) -> 0 | Y8: =N8 -> 112 | Z8: =COUNTIF(L7:L8,Y8) -> 0 | AD8: =N8 -> 112 | AE8: =COUNTIF(L8:L8,AD8) -> 0 | AI8: =N8 -> 112 | AJ8: =COUNTIF(L8:L9,AI8) -> 0 | AN8: =N8 -> 112 | AO8: =COUNTIF(L9:L9,AN8) -> 0 | AS8: =N8 -> 112 | AT8: =COUNTIF(L9:L10,AS8) -> 0
A9: 11 | B9: 18782 | C9: 11 | D9: 18798 | E9: 12 | F9: 18806 | K9: 0 | L9: 111 | N9: 121 | O9: =COUNTIF($L$7:$L$500,N9) -> 0 | P9: =O9/$Q$4 -> 0 | Q9: =IF(P9=0,0,(P9*((LOG(P9))/LOG(2)))) -> 0 | T9: =N9 -> 121 | U9: =COUNTIF(L7:L7,T9) -> 0 | V9: =U9/(W4-U8) -> 0 | W9: =IF(V9=0,0,(V9*((LOG(V9))/LOG(2)))) -> 0 | Y9: =N9 -> 121 | Z9: =COUNTIF(L7:L8,Y9) -> 0 | AA9: =Z9/(AB4-Z8) -> 0 | AB9: =IF(AA9=0,0,(AA9*((LOG(AA9))/LOG(2)))) -> 0 | AD9: =N9 -> 121 | AE9: =COUNTIF(L8:L8,AD9) -> 0 | AF9: =AE9/(AG4-AE8) -> 0 | AG9: =IF(AF9=0,0,(AF9*((LOG(AF9))/LOG(2)))) -> 0 | AI9: =N9 -> 121 | AJ9: =COUNTIF(L8:L9,AI9) -> 0 | AK9: =AJ9/(AL4-AJ8) -> 0 | AL9: =IF(AK9=0,0,(AK9*((LOG(AK9))/LOG(2)))) -> 0 | AN9: =N9 -> 121 | AO9: =COUNTIF(L9:L9,AN9) -> 0 | AP9: =AO9/(AQ4-AO8) -> 0 | AQ9: =IF(AP9=0,0,(AP9*((LOG(AP9))/LOG(2)))) -> 0 | AS9: =N9 -> 121 | AT9: =COUNTIF(L9:L10,AS9) -> 0 | AU9: =AT9/(AV4-AT8) -> 0 | AV9: =IF(AU9=0,0,(AU9*((LOG(AU9))/LOG(2)))) -> 0
N10: 122 | O10: =COUNTIF($L$7:$L$500,N10) -> 1 | P10: =O10/$Q$4 -> 0.3333333333 | Q10: =IF(P10=0,0,(P10*((LOG(P10))/LOG(2)))) -> -0.5283208336 | T10: =N10 -> 122 | U10: =COUNTIF(L7:L7,T10) -> 1 | V10: =U10/(W4-U8) -> 1 | W10: =IF(V10=0,0,(V10*((LOG(V10))/LOG(2)))) -> 0 | Y10: =N10 -> 122 | Z10: =COUNTIF(L7:L8,Y10) -> 1 | AA10: =Z10/(AB4-Z8) -> 0.5 | AB10: =IF(AA10=0,0,(AA10*((LOG(AA10))/LOG(2)))) -> -0.5 | AD10: =N10 -> 122 | AE10: =COUNTIF(L8:L8,AD10) -> 0 | AF10: =AE10/(AG4-AE8) -> 0 | AG10: =IF(AF10=0,0,(AF10*((LOG(AF10))/LOG(2)))) -> 0 | AI10: =N10 -> 122 | AJ10: =COUNTIF(L8:L9,AI10) -> 0 | AK10: =AJ10/(AL4-AJ8) -> 0 | AL10: =IF(AK10=0,0,(AK10*((LOG(AK10))/LOG(2)))) -> 0 | AN10: =N10 -> 122 | AO10: =COUNTIF(L9:L9,AN10) -> 0 | AP10: =AO10/(AQ4-AO8) -> 0 | AQ10: =IF(AP10=0,0,(AP10*((LOG(AP10))/LOG(2)))) -> 0 | AS10: =N10 -> 122 | AT10: =COUNTIF(L9:L10,AS10) -> 0 | AU10: =AT10/(AV4-AT8) -> 0 | AV10: =IF(AU10=0,0,(AU10*((LOG(AU10))/LOG(2)))) -> 0
N11: 211 | O11: =COUNTIF($L$7:$L$500,N11) -> 0 | P11: =O11/$Q$4 -> 0 | Q11: =IF(P11=0,0,(P11*((LOG(P11))/LOG(2)))) -> 0 | T11: =N11 -> 211 | U11: =COUNTIF(L7:L7,T11) -> 0 | V11: =U11/(W4-U8) -> 0 | W11: =IF(V11=0,0,(V11*((LOG(V11))/LOG(2)))) -> 0 | Y11: =N11 -> 211 | Z11: =COUNTIF(L7:L8,Y11) -> 0 | AA11: =Z11/(AB4-Z8) -> 0 | AB11: =IF(AA11=0,0,(AA11*((LOG(AA11))/LOG(2)))) -> 0 | AD11: =N11 -> 211 | AE11: =COUNTIF(L8:L8,AD11) -> 0 | AF11: =AE11/(AG4-AE8) -> 0 | AG11: =IF(AF11=0,0,(AF11*((LOG(AF11))/LOG(2)))) -> 0 | AI11: =N11 -> 211 | AJ11: =COUNTIF(L8:L9,AI11) -> 0 | AK11: =AJ11/(AL4-AJ8) -> 0 | AL11: =IF(AK11=0,0,(AK11*((LOG(AK11))/LOG(2)))) -> 0 | AN11: =N11 -> 211 | AO11: =COUNTIF(L9:L9,AN11) -> 0 | AP11: =AO11/(AQ4-AO8) -> 0 | AQ11: =IF(AP11=0,0,(AP11*((LOG(AP11))/LOG(2)))) -> 0 | AS11: =N11 -> 211 | AT11: =COUNTIF(L9:L10,AS11) -> 0 | AU11: =AT11/(AV4-AT8) -> 0 | AV11: =IF(AU11=0,0,(AU11*((LOG(AU11))/LOG(2)))) -> 0
N12: 212 | O12: =COUNTIF($L$7:$L$500,N12) -> 0 | P12: =O12/$Q$4 -> 0 | Q12: =IF(P12=0,0,(P12*((LOG(P12))/LOG(2)))) -> 0 | T12: =N12 -> 212 | U12: =COUNTIF(L7:L7,T12) -> 0 | V12: =U12/(W4-U8) -> 0 | W12: =IF(V12=0,0,(V12*((LOG(V12))/LOG(2)))) -> 0 | Y12: =N12 -> 212 | Z12: =COUNTIF(L7:L8,Y12) -> 0 | AA12: =Z12/(AB4-Z8) -> 0 | AB12: =IF(AA12=0,0,(AA12*((LOG(AA12))/LOG(2)))) -> 0 | AD12: =N12 -> 212 | AE12: =COUNTIF(L8:L8,AD12) -> 0 | AF12: =AE12/(AG4-AE8) -> 0 | AG12: =IF(AF12=0,0,(AF12*((LOG(AF12))/LOG(2)))) -> 0 | AI12: =N12 -> 212 | AJ12: =COUNTIF(L8:L9,AI12) -> 0 | AK12: =AJ12/(AL4-AJ8) -> 0 | AL12: =IF(AK12=0,0,(AK12*((LOG(AK12))/LOG(2)))) -> 0 | AN12: =N12 -> 212 | AO12: =COUNTIF(L9:L9,AN12) -> 0 | AP12: =AO12/(AQ4-AO8) -> 0 | AQ12: =IF(AP12=0,0,(AP12*((LOG(AP12))/LOG(2)))) -> 0 | AS12: =N12 -> 212 | AT12: =COUNTIF(L9:L10,AS12) -> 0 | AU12: =AT12/(AV4-AT8) -> 0 | AV12: =IF(AU12=0,0,(AU12*((LOG(AU12))/LOG(2)))) -> 0
N13: 221 | O13: =COUNTIF($L$7:$L$500,N13) -> 0 | P13: =O13/$Q$4 -> 0 | Q13: =IF(P13=0,0,(P13*((LOG(P13))/LOG(2)))) -> 0 | T13: =N13 -> 221 | U13: =COUNTIF(L7:L7,T13) -> 0 | V13: =U13/(W4-U8) -> 0 | W13: =IF(V13=0,0,(V13*((LOG(V13))/LOG(2)))) -> 0 | Y13: =N13 -> 221 | Z13: =COUNTIF(L7:L8,Y13) -> 0 | AA13: =Z13/(AB4-Z8) -> 0 | AB13: =IF(AA13=0,0,(AA13*((LOG(AA13))/LOG(2)))) -> 0 | AD13: =N13 -> 221 | AE13: =COUNTIF(L8:L8,AD13) -> 0 | AF13: =AE13/(AG4-AE8) -> 0 | AG13: =IF(AF13=0,0,(AF13*((LOG(AF13))/LOG(2)))) -> 0 | AI13: =N13 -> 221 | AJ13: =COUNTIF(L8:L9,AI13) -> 0 | AK13: =AJ13/(AL4-AJ8) -> 0 | AL13: =IF(AK13=0,0,(AK13*((LOG(AK13))/LOG(2)))) -> 0 | AN13: =N13 -> 221 | AO13: =COUNTIF(L9:L9,AN13) -> 0 | AP13: =AO13/(AQ4-AO8) -> 0 | AQ13: =IF(AP13=0,0,(AP13*((LOG(AP13))/LOG(2)))) -> 0 | AS13: =N13 -> 221 | AT13: =COUNTIF(L9:L10,AS13) -> 0 | AU13: =AT13/(AV4-AT8) -> 0 | AV13: =IF(AU13=0,0,(AU13*((LOG(AU13))/LOG(2)))) -> 0
N14: 222 | O14: =COUNTIF($L$7:$L$500,N14) -> 0 | P14: =O14/$Q$4 -> 0 | Q14: =IF(P14=0,0,(P14*((LOG(P14))/LOG(2)))) -> 0 | T14: =N14 -> 222 | U14: =COUNTIF(L7:L7,T14) -> 0 | V14: =U14/(W4-U8) -> 0 | W14: =IF(V14=0,0,(V14*((LOG(V14))/LOG(2)))) -> 0 | Y14: =N14 -> 222 | Z14: =COUNTIF(L7:L8,Y14) -> 0 | AA14: =Z14/(AB4-Z8) -> 0 | AB14: =IF(AA14=0,0,(AA14*((LOG(AA14))/LOG(2)))) -> 0 | AD14: =N14 -> 222 | AE14: =COUNTIF(L8:L8,AD14) -> 0 | AF14: =AE14/(AG4-AE8) -> 0 | AG14: =IF(AF14=0,0,(AF14*((LOG(AF14))/LOG(2)))) -> 0 | AI14: =N14 -> 222 | AJ14: =COUNTIF(L8:L9,AI14) -> 0 | AK14: =AJ14/(AL4-AJ8) -> 0 | AL14: =IF(AK14=0,0,(AK14*((LOG(AK14))/LOG(2)))) -> 0 | AN14: =N14 -> 222 | AO14: =COUNTIF(L9:L9,AN14) -> 0 | AP14: =AO14/(AQ4-AO8) -> 0 | AQ14: =IF(AP14=0,0,(AP14*((LOG(AP14))/LOG(2)))) -> 0 | AS14: =N14 -> 222 | AT14: =COUNTIF(L9:L10,AS14) -> 0 | AU14: =AT14/(AV4-AT8) -> 0 | AV14: =IF(AU14=0,0,(AU14*((LOG(AU14))/LOG(2)))) -> 0
P15: =SUM(P7:P14) -> 1 | Q15: =-SUM(Q7:Q14) -> 0.9182958341 | V15: =SUM(V7:V14) -> 1 | W15: =-SUM(W7:W14) -> 0 | AA15: =SUM(AA7:AA14) -> 1 | AB15: =-SUM(AB7:AB14) -> 1 | AF15: =SUM(AF7:AF14) -> 1 | AG15: =-SUM(AG7:AG14) -> 0 | AK15: =SUM(AK7:AK14) -> 1 | AL15: =-SUM(AL7:AL14) -> 0 | AP15: =SUM(AP7:AP14) -> 1 | AQ15: =-SUM(AQ7:AQ14) -> 0 | AU15: =SUM(AU7:AU14) -> 1 | AV15: =-SUM(AV7:AV14) -> 0
P16: U= | Q16: =Q15/(LOG(Q4)/LOG(2)) -> 0.5793801643 | V16: U1= | W16: =W15/(LOG(W4)/LOG(2)) ->  | AA16: U2= | AB16: =AB15/(LOG(AB4)/LOG(2)) -> 1 | AF16: U3= | AG16: =AG15/(LOG(AG4)/LOG(2)) ->  | AK16: U4= | AL16: =AL15/(LOG(AL4)/LOG(2)) -> 0 | AP16: U5= | AQ16: =AQ15/(LOG(AQ4)/LOG(2)) ->  | AU16: U6= | AV16: =AV15/(LOG(AV4)/LOG(2)) -> 
N19: Total Target Seq
N20: =COUNTIF(L7:L9,G3) -> 0 | P20: 1 | Q20: 0 | R20: 1 | S20: 0 | T20: 1 | U20: 0
P21: % of reinforcement given in 6 equal intervals based on number of trials
P22: %_1 | Q22: %_2 | R22: %_3 | S22: %_4 | T22: %_5 | U22: %_6
O23: target sequence | P23: =$G$3 -> 112 | Q23: =$G$3 -> 112 | R23: =$G$3 -> 112 | S23: =$G$3 -> 112 | T23: =$G$3 -> 112 | U23: =$G$3 -> 112
O24: total reinforcement | P24: =U8 -> 0 | Q24: =Z8 -> 0 | R24: =AE8 -> 0 | S24: =AJ8 -> 0 | T24: =AO8 -> 0 | U24: =AT8 -> 0
O25: % target
O26: CCRF
O27: % CCRf
O28: average response rate | P28: =F7/P20 -> 2430 | Q28: =(F7-F7)/Q20 ->  | R28: =(F8-F7)/R20 -> 160 | S28: =(F8-F8)/S20 ->  | T28: =(F9-F8)/T20 -> 16216 | U28: =(F9-F9)/U20 -> 

Sheet !N41895B.AXT
A1: Report for:!N41895B.AXT
A2: Date: | B2: <date>
A3: Hen: | B3: <hen> | F3: Correct Sequence | G3: =Start!J2 -> 112 | P3: Total Sequences in Data | Q3: =4994-COUNTBLANK(L7:L5000) -> 1 | V3: Total Sequences in Block Data | W3: =COUNTA(L6:L7) -> 2 | AA3: Total Sequences in Block Data | AB3: =COUNTA(L6:L7) -> 2 | AF3: Total Sequences in Block Data | AG3: =COUNTA(L7:L7) -> 1 | AK3: Total Sequences in Block Data | AL3: =COUNTA(L7:L8) -> 1 | AP3: Total Sequences in Block Data | AQ3: =COUNTA(L7:L8) -> 1 | AU3: Total Sequences in Block Data | AV3: =COUNTA(L7:L8) -> 1
P4: Total Sequences in Summary | Q4: =SUM(O7:O14) -> 1 | V4: Total Sequences in Block Summary | W4: =SUM(U7:U14) -> 1 | AA4: Total Sequences in Block Summary | AB4: =SUM(Z7:Z14) -> 1 | AF4: Total Sequences in Block Summary | AG4: =SUM(AE7:AE14) -> 1 | AK4: Total Sequences in Block Summary | AL4: =SUM(AJ7:AJ14) -> 1 | AP4: Total Sequences in Block Summary | AQ4: =SUM(AO7:AO14) -> 1 | AU4: Total Sequences in Block Summary | AV4: =SUM(AT7:AT14) -> 1
T5: Block 1 | Y5: Block 2 | AD5: Block 3 | AI5: Block 4 | AN5: Block 5 | AS5: Block 6
A6: Sequence Component 1 | B6: Time 1 | C6: Sequence Component 2 | D6: Time 2 | E6: Sequence Component 3 | F6: Time 3 | G6: Sequence Component 4 | H6: Time 4 | I6: Sequence Component 5 | J6: Time 5 | K6: Correct? 0=No 1=Yes | L6: Sequence | N6: Frequency | P6: Relative Frequency | Q6: Variability | T6: Frequency | V6: Relative Frequency | W6: Variability | Y6: Frequency | AA6: Relative Frequency | AB6: Variability | AD6: Frequency | AF6: Relative Frequency | AG6: Variability | AI6: Frequency | AK6: Relative Frequency | AL6: Variability | AN6: Frequency | AP6: Relative Frequency | AQ6: Variability | AS6: Frequency | AU6: Relative Frequency | AV6: Variability
A7: 11 | B7: 10093 | C7: 22 | D7: 10115 | E7: 23 | F7: 10126 | K7: 0 | L7: 122 | N7: 111 | O7: =COUNTIF($L$7:$L$500,N7) -> 0 | P7: =O7/$Q$4 -> 0 | Q7: =IF(P7=0,0,(P7*((LOG(P7))/LOG(2)))) -> 0 | T7: =N7 -> 111 | U7: =COUNTIF(L6:L7,T7) -> 0 | V7: =U7/(W4-U8) -> 0 | W7: =IF(V7=0,0,(V7*((LOG(V7))/LOG(2)))) -> 0 | Y7: =N7 -> 111 | Z7: =COUNTIF(L6:L7,Y7) -> 0 | AA7: =Z7/(AB4-Z8) -> 0 | AB7: =IF(AA7=0,0,(AA7*((LOG(AA7))/LOG(2)))) -> 0 | AD7: =N7 -> 111 | AE7: =COUNTIF(L7:L7,AD7) -> 0 | AF7: =AE7/(AG4-AE8) -> 0 | AG7: =IF(AF7=0,0,(AF7*((LOG(AF7))/LOG(2)))) -> 0 | AI7: =N7 -> 111 | AJ7: =COUNTIF(L7:L8,AI7) -> 0 | AK7: =AJ7/(AL4-AJ8) -> 0 | AL7: =IF(AK7=0,0,(AK7*((LOG(AK7))/LOG(2)))) -> 0 | AN7: =N7 -> 111 | AO7: =COUNTIF(L7:L8,AN7) -> 0 | AP7: =AO7/(AQ4-AO8) -> 0 | AQ7: =IF(AP7=0,0,(AP7*((LOG(AP7))/LOG(2)))) -> 0 | AS7: =N7 -> 111 | AT7: =COUNTIF(L7:L8,AS7) -> 0 | AU7: =AT7/(AV4-AT8) -> 0 | AV7: =IF(AU7=0,0,(AU7*((LOG(AU7))/LOG(2)))) -> 0
N8: 112 | O8: =COUNTIF($L$7:$L$500,N8) -> 0 | P8: =O8/$Q$4 -> 0 | Q8: =IF(P8=0,0,(P8*((LOG(P8))/LOG(2)))) -> 0 | T8: =N8 -> 112 | U8: =COUNTIF(L6:L7,T8) -> 0 | Y8: =N8 -> 112 | Z8: =COUNTIF(L6:L7,Y8) -> 0 | AD8: =N8 -> 112 | AE8: =COUNTIF(L7:L7,AD8) -> 0 | AI8: =N8 -> 112 | AJ8: =COUNTIF(L7:L8,AI8) -> 0 | AN8: =N8 -> 112 | AO8: =COUNTIF(L7:L8,AN8) -> 0 | AS8: =N8 -> 112 | AT8: =COUNTIF(L7:L8,AS8) -> 0
N9: 121 | O9: =COUNTIF($L$7:$L$500,N9) -> 0 | P9: =O9/$Q$4 -> 0 | Q9: =IF(P9=0,0,(P9*((LOG(P9))/LOG(2)))) -> 0 | T9: =N9 -> 121 | U9: =COUNTIF(L6:L7,T9) -> 0 | V9: =U9/(W4-U8) -> 0 | W9: =IF(V9=0,0,(V9*((LOG(V9))/LOG(2)))) -> 0 | Y9: =N9 -> 121 | Z9: =COUNTIF(L6:L7,Y9) -> 0 | AA9: =Z9/(AB4-Z8) -> 0 | AB9: =IF(AA9=0,0,(AA9*((LOG(AA9))/LOG(2)))) -> 0 | AD9: =N9 -> 121 | AE9: =COUNTIF(L7:L7,AD9) -> 0 | AF9: =AE9/(AG4-AE8) -> 0 | AG9: =IF(AF9=0,0,(AF9*((LOG(AF9))/LOG(2)))) -> 0 | AI9: =N9 -> 121 | AJ9: =COUNTIF(L7:L8,AI9) -> 0 | AK9: =AJ9/(AL4-AJ8) -> 0 | AL9: =IF(AK9=0,0,(AK9*((LOG(AK9))/LOG(2)))) -> 0 | AN9: =N9 -> 121 | AO9: =COUNTIF(L7:L8,AN9) -> 0 | AP9: =AO9/(AQ4-AO8) -> 0 | AQ9: =IF(AP9=0,0,(AP9*((LOG(AP9))/LOG(2)))) -> 0 | AS9: =N9 -> 121 | AT9: =COUNTIF(L7:L8,AS9) -> 0 | AU9: =AT9/(AV4-AT8) -> 0 | AV9: =IF(AU9=0,0,(AU9*((LOG(AU9))/LOG(2)))) -> 0
N10: 122 | O10: =COUNTIF($L$7:$L$500,N10) -> 1 | P10: =O10/$Q$4 -> 1 | Q10: =IF(P10=0,0,(P10*((LOG(P10))/LOG(2)))) -> 0 | T10: =N10 -> 122 | U10: =COUNTIF(L6:L7,T10) -> 1 | V10: =U10/(W4-U8) -> 1 | W10: =IF(V10=0,0,(V10*((LOG(V10))/LOG(2)))) -> 0 | Y10: =N10 -> 122 | Z10: =COUNTIF(L6:L7,Y10) -> 1 | AA10: =Z10/(AB4-Z8) -> 1 | AB10: =IF(AA10=0,0,(AA10*((LOG(AA10))/LOG(2)))) -> 0 | AD10: =N10 -> 122 | AE10: =COUNTIF(L7:L7,AD10) -> 1 | AF10: =AE10/(AG4-AE8) -> 1 | AG10: =IF(AF10=0,0,(AF10*((LOG(AF10))/LOG(2)))) -> 0 | AI10: =N10 -> 122 | AJ10: =COUNTIF(L7:L8,AI10) -> 1 | AK10: =AJ10/(AL4-AJ8) -> 1 | AL10: =IF(AK10=0,0,(AK10*((LOG(AK10))/LOG(2)))) -> 0 | AN10: =N10 -> 122 | AO10: =COUNTIF(L7:L8,AN10) -> 1 | AP10: =AO10/(AQ4-AO8) -> 1 | AQ10: =IF(AP10=0,0,(AP10*((LOG(AP10))/LOG(2)))) -> 0 | AS10: =N10 -> 122 | AT10: =COUNTIF(L7:L8,AS10) -> 1 | AU10: =AT10/(AV4-AT8) -> 1 | AV10: =IF(AU10=0,0,(AU10*((LOG(AU10))/LOG(2)))) -> 0
N11: 211 | O11: =COUNTIF($L$7:$L$500,N11) -> 0 | P11: =O11/$Q$4 -> 0 | Q11: =IF(P11=0,0,(P11*((LOG(P11))/LOG(2)))) -> 0 | T11: =N11 -> 211 | U11: =COUNTIF(L6:L7,T11) -> 0 | V11: =U11/(W4-U8) -> 0 | W11: =IF(V11=0,0,(V11*((LOG(V11))/LOG(2)))) -> 0 | Y11: =N11 -> 211 | Z11: =COUNTIF(L6:L7,Y11) -> 0 | AA11: =Z11/(AB4-Z8) -> 0 | AB11: =IF(AA11=0,0,(AA11*((LOG(AA11))/LOG(2)))) -> 0 | AD11: =N11 -> 211 | AE11: =COUNTIF(L7:L7,AD11) -> 0 | AF11: =AE11/(AG4-AE8) -> 0 | AG11: =IF(AF11=0,0,(AF11*((LOG(AF11))/LOG(2)))) -> 0 | AI11: =N11 -> 211 | AJ11: =COUNTIF(L7:L8,AI11) -> 0 | AK11: =AJ11/(AL4-AJ8) -> 0 | AL11: =IF(AK11=0,0,(AK11*((LOG(AK11))/LOG(2)))) -> 0 | AN11: =N11 -> 211 | AO11: =COUNTIF(L7:L8,AN11) -> 0 | AP11: =AO11/(AQ4-AO8) -> 0 | AQ11: =IF(AP11=0,0,(AP11*((LOG(AP11))/LOG(2)))) -> 0 | AS11: =N11 -> 211 | AT11: =COUNTIF(L7:L8,AS11) -> 0 | AU11: =AT11/(AV4-AT8) -> 0 | AV11: =IF(AU11=0,0,(AU11*((LOG(AU11))/LOG(2)))) -> 0
N12: 212 | O12: =COUNTIF($L$7:$L$500,N12) -> 0 | P12: =O12/$Q$4 -> 0 | Q12: =IF(P12=0,0,(P12*((LOG(P12))/LOG(2)))) -> 0 | T12: =N12 -> 212 | U12: =COUNTIF(L6:L7,T12) -> 0 | V12: =U12/(W4-U8) -> 0 | W12: =IF(V12=0,0,(V12*((LOG(V12))/LOG(2)))) -> 0 | Y12: =N12 -> 212 | Z12: =COUNTIF(L6:L7,Y12) -> 0 | AA12: =Z12/(AB4-Z8) -> 0 | AB12: =IF(AA12=0,0,(AA12*((LOG(AA12))/LOG(2)))) -> 0 | AD12: =N12 -> 212 | AE12: =COUNTIF(L7:L7,AD12) -> 0 | AF12: =AE12/(AG4-AE8) -> 0 | AG12: =IF(AF12=0,0,(AF12*((LOG(AF12))/LOG(2)))) -> 0 | AI12: =N12 -> 212 | AJ12: =COUNTIF(L7:L8,AI12) -> 0 | AK12: =AJ12/(AL4-AJ8) -> 0 | AL12: =IF(AK12=0,0,(AK12*((LOG(AK12))/LOG(2)))) -> 0 | AN12: =N12 -> 212 | AO12: =COUNTIF(L7:L8,AN12) -> 0 | AP12: =AO12/(AQ4-AO8) -> 0 | AQ12: =IF(AP12=0,0,(AP12*((LOG(AP12))/LOG(2)))) -> 0 | AS12: =N12 -> 212 | AT12: =COUNTIF(L7:L8,AS12) -> 0 | AU12: =AT12/(AV4-AT8) -> 0 | AV12: =IF(AU12=0,0,(AU12*((LOG(AU12))/LOG(2)))) -> 0
N13: 221 | O13: =COUNTIF($L$7:$L$500,N13) -> 0 | P13: =O13/$Q$4 -> 0 | Q13: =IF(P13=0,0,(P13*((LOG(P13))/LOG(2)))) -> 0 | T13: =N13 -> 221 | U13: =COUNTIF(L6:L7,T13) -> 0 | V13: =U13/(W4-U8) -> 0 | W13: =IF(V13=0,0,(V13*((LOG(V13))/LOG(2)))) -> 0 | Y13: =N13 -> 221 | Z13: =COUNTIF(L6:L7,Y13) -> 0 | AA13: =Z13/(AB4-Z8) -> 0 | AB13: =IF(AA13=0,0,(AA13*((LOG(AA13))/LOG(2)))) -> 0 | AD13: =N13 -> 221 | AE13: =COUNTIF(L7:L7,AD13) -> 0 | AF13: =AE13/(AG4-AE8) -> 0 | AG13: =IF(AF13=0,0,(AF13*((LOG(AF13))/LOG(2)))) -> 0 | AI13: =N13 -> 221 | AJ13: =COUNTIF(L7:L8,AI13) -> 0 | AK13: =AJ13/(AL4-AJ8) -> 0 | AL13: =IF(AK13=0,0,(AK13*((LOG(AK13))/LOG(2)))) -> 0 | AN13: =N13 -> 221 | AO13: =COUNTIF(L7:L8,AN13) -> 0 | AP13: =AO13/(AQ4-AO8) -> 0 | AQ13: =IF(AP13=0,0,(AP13*((LOG(AP13))/LOG(2)))) -> 0 | AS13: =N13 -> 221 | AT13: =COUNTIF(L7:L8,AS13) -> 0 | AU13: =AT13/(AV4-AT8) -> 0 | AV13: =IF(AU13=0,0,(AU13*((LOG(AU13))/LOG(2)))) -> 0
N14: 222 | O14: =COUNTIF($L$7:$L$500,N14) -> 0 | P14: =O14/$Q$4 -> 0 | Q14: =IF(P14=0,0,(P14*((LOG(P14))/LOG(2)))) -> 0 | T14: =N14 -> 222 | U14: =COUNTIF(L6:L7,T14) -> 0 | V14: =U14/(W4-U8) -> 0 | W14: =IF(V14=0,0,(V14*((LOG(V14))/LOG(2)))) -> 0 | Y14: =N14 -> 222 | Z14: =COUNTIF(L6:L7,Y14) -> 0 | AA14: =Z14/(AB4-Z8) -> 0 | AB14: =IF(AA14=0,0,(AA14*((LOG(AA14))/LOG(2)))) -> 0 | AD14: =N14 -> 222 | AE14: =COUNTIF(L7:L7,AD14) -> 0 | AF14: =AE14/(AG4-AE8) -> 0 | AG14: =IF(AF14=0,0,(AF14*((LOG(AF14))/LOG(2)))) -> 0 | AI14: =N14 -> 222 | AJ14: =COUNTIF(L7:L8,AI14) -> 0 | AK14: =AJ14/(AL4-AJ8) -> 0 | AL14: =IF(AK14=0,0,(AK14*((LOG(AK14))/LOG(2)))) -> 0 | AN14: =N14 -> 222 | AO14: =COUNTIF(L7:L8,AN14) -> 0 | AP14: =AO14/(AQ4-AO8) -> 0 | AQ14: =IF(AP14=0,0,(AP14*((LOG(AP14))/LOG(2)))) -> 0 | AS14: =N14 -> 222 | AT14: =COUNTIF(L7:L8,AS14) -> 0 | AU14: =AT14/(AV4-AT8) -> 0 | AV14: =IF(AU14=0,0,(AU14*((LOG(AU14))/LOG(2)))) -> 0
P15: =SUM(P7:P14) -> 1 | Q15: =-SUM(Q7:Q14) -> 0 | V15: =SUM(V7:V14) -> 1 | W15: =-SUM(W7:W14) -> 0 | AA15: =SUM(AA7:AA14) -> 1 | AB15: =-SUM(AB7:AB14) -> 0 | AF15: =SUM(AF7:AF14) -> 1 | AG15: =-SUM(AG7:AG14) -> 0 | AK15: =SUM(AK7:AK14) -> 1 | AL15: =-SUM(AL7:AL14) -> 0 | AP15: =SUM(AP7:AP14) -> 1 | AQ15: =-SUM(AQ7:AQ14) -> 0 | AU15: =SUM(AU7:AU14) -> 1 | AV15: =-SUM(AV7:AV14) -> 0
P16: U= | Q16: =Q15/(LOG(Q4)/LOG(2)) ->  | V16: U1= | W16: =W15/(LOG(W4)/LOG(2)) ->  | AA16: U2= | AB16: =AB15/(LOG(AB4)/LOG(2)) ->  | AF16: U3= | AG16: =AG15/(LOG(AG4)/LOG(2)) ->  | AK16: U4= | AL16: =AL15/(LOG(AL4)/LOG(2)) ->  | AP16: U5= | AQ16: =AQ15/(LOG(AQ4)/LOG(2)) ->  | AU16: U6= | AV16: =AV15/(LOG(AV4)/LOG(2)) -> 
N19: Total Target Seq
N20: =COUNTIF(L7:L7,G3) -> 0 | P20: 0 | Q20: 0 | R20: 1 | S20: 0 | T20: 0 | U20: 0
P21: % of reinforcement given in 6 equal intervals based on number of trials
P22: %_1 | Q22: %_2 | R22: %_3 | S22: %_4 | T22: %_5 | U22: %_6
O23: target sequence | P23: =$G$3 -> 112 | Q23: =$G$3 -> 112 | R23: =$G$3 -> 112 | S23: =$G$3 -> 112 | T23: =$G$3 -> 112 | U23: =$G$3 -> 112
O24: total reinforcement | P24: =U8 -> 0 | Q24: =Z8 -> 0 | R24: =AE8 -> 0 | S24: =AJ8 -> 0 | T24: =AO8 -> 0 | U24: =AT8 -> 0
O25: % target
O26: CCRF
O27: % CCRf
O28: average response rate | P28: =F6/P20 ->  | Q28: =(F6-F6)/Q20 ->  | R28: =(F7-F6)/R20 ->  | S28: =(F7-F7)/S20 ->  | T28: =(F7-F7)/T20 ->  | U28: =(F7-F7)/U20 -> 

Sheet !N41990B.AXT
A1: Report for:!N41990B.AXT
A2: Date: | B2: <date>
A3: Hen: | B3: <hen> | F3: Correct Sequence | G3: =Start!J2 -> 112 | P3: Total Sequences in Data | Q3: =4994-COUNTBLANK(L7:L5000) -> 2 | V3: Total Sequences in Block Data | W3: =COUNTA(L6:L7) -> 2 | AA3: Total Sequences in Block Data | AB3: =COUNTA(L7:L7) -> 1 | AF3: Total Sequences in Block Data | AG3: =COUNTA(L7:L8) -> 2 | AK3: Total Sequences in Block Data | AL3: =COUNTA(L7:L8) -> 2 | AP3: Total Sequences in Block Data | AQ3: =COUNTA(L8:L8) -> 1 | AU3: Total Sequences in Block Data | AV3: =COUNTA(L8:L9) -> 1
P4: Total Sequences in Summary | Q4: =SUM(O7:O14) -> 2 | V4: Total Sequences in Block Summary | W4: =SUM(U7:U14) -> 1 | AA4: Total Sequences in Block Summary | AB4: =SUM(Z7:Z14) -> 1 | AF4: Total Sequences in Block Summary | AG4: =SUM(AE7:AE14) -> 2 | AK4: Total Sequences in Block Summary | AL4: =SUM(AJ7:AJ14) -> 2 | AP4: Total Sequences in Block Summary | AQ4: =SUM(AO7:AO14) -> 1 | AU4: Total Sequences in Block Summary | AV4: =SUM(AT7:AT14) -> 1
T5: Block 1 | Y5: Block 2 | AD5: Block 3 | AI5: Block 4 | AN5: Block 5 | AS5: Block 6
A6: Sequence Component 1 | B6: Time 1 | C6: Sequence Component 2 | D6: Time 2 | E6: Sequence Component 3 | F6: Time 3 | G6: Sequence Component 4 | H6: Time 4 | I6: Sequence Component 5 | J6: Time 5 | K6: Correct? 0=No 1=Yes | L6: Sequence | N6: Frequency | P6: Relative Frequency | Q6: Variability | T6: Frequency | V6: Relative Frequency | W6: Variability | Y6: Frequency | AA6: Relative Frequency | AB6: Variability | AD6: Frequency | AF6: Relative Frequency | AG6: Variability | AI6: Frequency | AK6: Relative Frequency | AL6: Variability | AN6: Frequency | AP6: Relative Frequency | AQ6: Variability | AS6: Frequency | AU6: Relative Frequency | AV6: Variability
A7: 22 | B7: 881 | C7: 24 | D7: 887 | E7: 14 | F7: 894 | K7: 0 | L7: 221 | N7: 111 | O7: =COUNTIF($L$7:$L$500,N7) -> 0 | P7: =O7/$Q$4 -> 0 | Q7: =IF(P7=0,0,(P7*((LOG(P7))/LOG(2)))) -> 0 | T7: =N7 -> 111 | U7: =COUNTIF(L6:L7,T7) -> 0 | V7: =U7/(W4-U8) -> 0 | W7: =IF(V7=0,0,(V7*((LOG(V7))/LOG(2)))) -> 0 | Y7: =N7 -> 111 | Z7: =COUNTIF(L7:L7,Y7) -> 0 | AA7: =Z7/(AB4-Z8) -> 0 | AB7: =IF(AA7=0,0,(AA7*((LOG(AA7))/LOG(2)))) -> 0 | AD7: =N7 -> 111 | AE7: =COUNTIF(L7:L8,AD7) -> 0 | AF7: =AE7/(AG4-AE8) -> 0 | AG7: =IF(AF7=0,0,(AF7*((LOG(AF7))/LOG(2)))) -> 0 | AI7: =N7 -> 111 | AJ7: =COUNTIF(L7:L8,AI7) -> 0 | AK7: =AJ7/(AL4-AJ8) -> 0 | AL7: =IF(AK7=0,0,(AK7*((LOG(AK7))/LOG(2)))) -> 0 | AN7: =N7 -> 111 | AO7: =COUNTIF(L8:L8,AN7) -> 0 | AP7: =AO7/(AQ4-AO8) -> 0 | AQ7: =IF(AP7=0,0,(AP7*((LOG(AP7))/LOG(2)))) -> 0 | AS7: =N7 -> 111 | AT7: =COUNTIF(L8:L9,AS7) -> 0 | AU7: =AT7/(AV4-AT8) -> 0 | AV7: =IF(AU7=0,0,(AU7*((LOG(AU7))/LOG(2)))) -> 0
A8: 22 | B8: 5754 | C8: 13 | D8: 8994 | E8: 14 | F8: 9015 | K8: 0 | L8: 211 | N8: 112 | O8: =COUNTIF($L$7:$L$500,N8) -> 0 | P8: =O8/$Q$4 -> 0 | Q8: =IF(P8=0,0,(P8*((LOG(P8))/LOG(2)))) -> 0 | T8: =N8 -> 112 | U8: =COUNTIF(L6:L7,T8) -> 0 | Y8: =N8 -> 112 | Z8: =COUNTIF(L7:L7,Y8) -> 0 | AD8: =N8 -> 112 | AE8: =COUNTIF(L7:L8,AD8) -> 0 | AI8: =N8 -> 112 | AJ8: =COUNTIF(L7:L8,AI8) -> 0 | AN8: =N8 -> 112 | AO8: =COUNTIF(L8:L8,AN8) -> 0 | AS8: =N8 -> 112 | AT8: =COUNTIF(L8:L9,AS8) -> 0
N9: 121 | O9: =COUNTIF($L$7:$L$500,N9) -> 0 | P9: =O9/$Q$4 -> 0 | Q9: =IF(P9=0,0,(P9*((LOG(P9))/LOG(2)))) -> 0 | T9: =N9 -> 121 | U9: =COUNTIF(L6:L7,T9) -> 0 | V9: =U9/(W4-U8) -> 0 | W9: =IF(V9=0,0,(V9*((LOG(V9))/LOG(2)))) -> 0 | Y9: =N9 -> 121 | Z9: =COUNTIF(L7:L7,Y9) -> 0 | AA9: =Z9/(AB4-Z8) -> 0 | AB9: =IF(AA9=0,0,(AA9*((LOG(AA9))/LOG(2)))) -> 0 | AD9: =N9 -> 121 | AE9: =COUNTIF(L7:L8,AD9) -> 0 | AF9: =AE9/(AG4-AE8) -> 0 | AG9: =IF(AF9=0,0,(AF9*((LOG(AF9))/LOG(2)))) -> 0 | AI9: =N9 -> 121 | AJ9: =COUNTIF(L7:L8,AI9) -> 0 | AK9: =AJ9/(AL4-AJ8) -> 0 | AL9: =IF(AK9=0,0,(AK9*((LOG(AK9))/LOG(2)))) -> 0 | AN9: =N9 -> 121 | AO9: =COUNTIF(L8:L8,AN9) -> 0 | AP9: =AO9/(AQ4-AO8) -> 0 | AQ9: =IF(AP9=0,0,(AP9*((LOG(AP9))/LOG(2)))) -> 0 | AS9: =N9 -> 121 | AT9: =COUNTIF(L8:L9,AS9) -> 0 | AU9: =AT9/(AV4-AT8) -> 0 | AV9: =IF(AU9=0,0,(AU9*((LOG(AU9))/LOG(2)))) -> 0
N10: 122 | O10: =COUNTIF($L$7:$L$500,N10) -> 0 | P10: =O10/$Q$4 -> 0 | Q10: =IF(P10=0,0,(P10*((LOG(P10))/LOG(2)))) -> 0 | T10: =N10 -> 122 | U10: =COUNTIF(L6:L7,T10) -> 0 | V10: =U10/(W4-U8) -> 0 | W10: =IF(V10=0,0,(V10*((LOG(V10))/LOG(2)))) -> 0 | Y10: =N10 -> 122 | Z10: =COUNTIF(L7:L7,Y10) -> 0 | AA10: =Z10/(AB4-Z8) -> 0 | AB10: =IF(AA10=0,0,(AA10*((LOG(AA10))/LOG(2)))) -> 0 | AD10: =N10 -> 122 | AE10: =COUNTIF(L7:L8,AD10) -> 0 | AF10: =AE10/(AG4-AE8) -> 0 | AG10: =IF(AF10=0,0,(AF10*((LOG(AF10))/LOG(2)))) -> 0 | AI10: =N10 -> 122 | AJ10: =COUNTIF(L7:L8,AI10) -> 0 | AK10: =AJ10/(AL4-AJ8) -> 0 | AL10: =IF(AK10=0,0,(AK10*((LOG(AK10))/LOG(2)))) -> 0 | AN10: =N10 -> 122 | AO10: =COUNTIF(L8:L8,AN10) -> 0 | AP10: =AO10/(AQ4-AO8) -> 0 | AQ10: =IF(AP10=0,0,(AP10*((LOG(AP10))/LOG(2)))) -> 0 | AS10: =N10 -> 122 | AT10: =COUNTIF(L8:L9,AS10) -> 0 | AU10: =AT10/(AV4-AT8) -> 0 | AV10: =IF(AU10=0,0,(AU10*((LOG(AU10))/LOG(2)))) -> 0
N11: 211 | O11: =COUNTIF($L$7:$L$500,N11) -> 1 | P11: =O11/$Q$4 -> 0.5 | Q11: =IF(P11=0,0,(P11*((LOG(P11))/LOG(2)))) -> -0.5 | T11: =N11 -> 211 | U11: =COUNTIF(L6:L7,T11) -> 0 | V11: =U11/(W4-U8) -> 0 | W11: =IF(V11=0,0,(V11*((LOG(V11))/LOG(2)))) -> 0 | Y11: =N11 -> 211 | Z11: =COUNTIF(L7:L7,Y11) -> 0 | AA11: =Z11/(AB4-Z8) -> 0 | AB11: =IF(AA11=0,0,(AA11*((LOG(AA11))/LOG(2)))) -> 0 | AD11: =N11 -> 211 | AE11: =COUNTIF(L7:L8,AD11) -> 1 | AF11: =AE11/(AG4-AE8) -> 0.5 | AG11: =IF(AF11=0,0,(AF11*((LOG(AF11))/LOG(2)))) -> -0.5 | AI11: =N11 -> 211 | AJ11: =COUNTIF(L7:L8,AI11) -> 1 | AK11: =AJ11/(AL4-AJ8) -> 0.5 | AL11: =IF(AK11=0,0,(AK11*((LOG(AK11))/LOG(2)))) -> -0.5 | AN11: =N11 -> 211 | AO11: =COUNTIF(L8:L8,AN11) -> 1 | AP11: =AO11/(AQ4-AO8) -> 1 | AQ11: =IF(AP11=0,0,(AP11*((LOG(AP11))/LOG(2)))) -> 0 | AS11: =N11 -> 211 | AT11: =COUNTIF(L8:L9,AS11) -> 1 | AU11: =AT11/(AV4-AT8) -> 1 | AV11: =IF(AU11=0,0,(AU11*((LOG(AU11))/LOG(2)))) -> 0
N12: 212 | O12: =COUNTIF($L$7:$L$500,N12) -> 0 | P12: =O12/$Q$4 -> 0 | Q12: =IF(P12=0,0,(P12*((LOG(P12))/LOG(2)))) -> 0 | T12: =N12 -> 212 | U12: =COUNTIF(L6:L7,T12) -> 0 | V12: =U12/(W4-U8) -> 0 | W12: =IF(V12=0,0,(V12*((LOG(V12))/LOG(2)))) -> 0 | Y12: =N12 -> 212 | Z12: =COUNTIF(L7:L7,Y12) -> 0 | AA12: =Z12/(AB4-Z8) -> 0 | AB12: =IF(AA12=0,0,(AA12*((LOG(AA12))/LOG(2)))) -> 0 | AD12: =N12 -> 212 | AE12: =COUNTIF(L7:L8,AD12) -> 0 | AF12: =AE12/(AG4-AE8) -> 0 | AG12: =IF(AF12=0,0,(AF12*((LOG(AF12))/LOG(2)))) -> 0 | AI12: =N12 -> 212 | AJ12: =COUNTIF(L7:L8,AI12) -> 0 | AK12: =AJ12/(AL4-AJ8) -> 0 | AL12: =IF(AK12=0,0,(AK12*((LOG(AK12))/LOG(2)))) -> 0 | AN12: =N12 -> 212 | AO12: =COUNTIF(L8:L8,AN12) -> 0 | AP12: =AO12/(AQ4-AO8) -> 0 | AQ12: =IF(AP12=0,0,(AP12*((LOG(AP12))/LOG(2)))) -> 0 | AS12: =N12 -> 212 | AT12: =COUNTIF(L8:L9,AS12) -> 0 | AU12: =AT12/(AV4-AT8) -> 0 | AV12: =IF(AU12=0,0,(AU12*((LOG(AU12))/LOG(2)))) -> 0
N13: 221 | O13: =COUNTIF($L$7:$L$500,N13) -> 1 | P13: =O13/$Q$4 -> 0.5 | Q13: =IF(P13=0,0,(P13*((LOG(P13))/LOG(2)))) -> -0.5 | T13: =N13 -> 221 | U13: =COUNTIF(L6:L7,T13) -> 1 | V13: =U13/(W4-U8) -> 1 | W13: =IF(V13=0,0,(V13*((LOG(V13))/LOG(2)))) -> 0 | Y13: =N13 -> 221 | Z13: =COUNTIF(L7:L7,Y13) -> 1 | AA13: =Z13/(AB4-Z8) -> 1 | AB13: =IF(AA13=0,0,(AA13*((LOG(AA13))/LOG(2)))) -> 0 | AD13: =N13 -> 221 | AE13: =COUNTIF(L7:L8,AD13) -> 1 | AF13: =AE13/(AG4-AE8) -> 0.5 | AG13: =IF(AF13=0,0,(AF13*((LOG(AF13))/LOG(2)))) -> -0.5 | AI13: =N13 -> 221 | AJ13: =COUNTIF(L7:L8,AI13) -> 1 | AK13: =AJ13/(AL4-AJ8) -> 0.5 | AL13: =IF(AK13=0,0,(AK13*((LOG(AK13))/LOG(2)))) -> -0.5 | AN13: =N13 -> 221 | AO13: =COUNTIF(L8:L8,AN13) -> 0 | AP13: =AO13/(AQ4-AO8) -> 0 | AQ13: =IF(AP13=0,0,(AP13*((LOG(AP13))/LOG(2)))) -> 0 | AS13: =N13 -> 221 | AT13: =COUNTIF(L8:L9,AS13) -> 0 | AU13: =AT13/(AV4-AT8) -> 0 | AV13: =IF(AU13=0,0,(AU13*((LOG(AU13))/LOG(2)))) -> 0
N14: 222 | O14: =COUNTIF($L$7:$L$500,N14) -> 0 | P14: =O14/$Q$4 -> 0 | Q14: =IF(P14=0,0,(P14*((LOG(P14))/LOG(2)))) -> 0 | T14: =N14 -> 222 | U14: =COUNTIF(L6:L7,T14) -> 0 | V14: =U14/(W4-U8) -> 0 | W14: =IF(V14=0,0,(V14*((LOG(V14))/LOG(2)))) -> 0 | Y14: =N14 -> 222 | Z14: =COUNTIF(L7:L7,Y14) -> 0 | AA14: =Z14/(AB4-Z8) -> 0 | AB14: =IF(AA14=0,0,(AA14*((LOG(AA14))/LOG(2)))) -> 0 | AD14: =N14 -> 222 | AE14: =COUNTIF(L7:L8,AD14) -> 0 | AF14: =AE14/(AG4-AE8) -> 0 | AG14: =IF(AF14=0,0,(AF14*((LOG(AF14))/LOG(2)))) -> 0 | AI14: =N14 -> 222 | AJ14: =COUNTIF(L7:L8,AI14) -> 0 | AK14: =AJ14/(AL4-AJ8) -> 0 | AL14: =IF(AK14=0,0,(AK14*((LOG(AK14))/LOG(2)))) -> 0 | AN14: =N14 -> 222 | AO14: =COUNTIF(L8:L8,AN14) -> 0 | AP14: =AO14/(AQ4-AO8) -> 0 | AQ14: =IF(AP14=0,0,(AP14*((LOG(AP14))/LOG(2)))) -> 0 | AS14: =N14 -> 222 | AT14: =COUNTIF(L8:L9,AS14) -> 0 | AU14: =AT14/(AV4-AT8) -> 0 | AV14: =IF(AU14=0,0,(AU14*((LOG(AU14))/LOG(2)))) -> 0
P15: =SUM(P7:P14) -> 1 | Q15: =-SUM(Q7:Q14) -> 1 | V15: =SUM(V7:V14) -> 1 | W15: =-SUM(W7:W14) -> 0 | AA15: =SUM(AA7:AA14) -> 1 | AB15: =-SUM(AB7:AB14) -> 0 | AF15: =SUM(AF7:AF14) -> 1 | AG15: =-SUM(AG7:AG14) -> 1 | AK15: =SUM(AK7:AK14) -> 1 | AL15: =-SUM(AL7:AL14) -> 1 | AP15: =SUM(AP7:AP14) -> 1 | AQ15: =-SUM(AQ7:AQ14) -> 0 | AU15: =SUM(AU7:AU14) -> 1 | AV15: =-SUM(AV7:AV14) -> 0
P16: U= | Q16: =Q15/(LOG(Q4)/LOG(2)) -> 1 | V16: U1= | W16: =W15/(LOG(W4)/LOG(2)) ->  | AA16: U2= | AB16: =AB15/(LOG(AB4)/LOG(2)) ->  | AF16: U3= | AG16: =AG15/(LOG(AG4)/LOG(2)) -> 1 | AK16: U4= | AL16: =AL15/(LOG(AL4)/LOG(2)) -> 1 | AP16: U5= | AQ16: =AQ15/(LOG(AQ4)/LOG(2)) ->  | AU16: U6= | AV16: =AV15/(LOG(AV4)/LOG(2)) -> 
N19: Total Target Seq
N20: =COUNTIF(L7:L8,G3) -> 0 | P20: 0 | Q20: 1 | R20: 0 | S20: 0 | T20: 1 | U20: 0
P21: % of reinforcement given in 6 equal intervals based on number of trials
P22: %_1 | Q22: %_2 | R22: %_3 | S22: %_4 | T22: %_5 | U22: %_6
O23: target sequence | P23: =$G$3 -> 112 | Q23: =$G$3 -> 112 | R23: =$G$3 -> 112 | S23: =$G$3 -> 112 | T23: =$G$3 -> 112 | U23: =$G$3 -> 112
O24: total reinforcement | P24: =U8 -> 0 | Q24: =Z8 -> 0 | R24: =AE8 -> 0 | S24: =AJ8 -> 0 | T24: =AO8 -> 0 | U24: =AT8 -> 0
O25: % target
O26: CCRF
O27: % CCRf
O28: average response rate | P28: =F6/P20 ->  | Q28: =(F7-F6)/Q20 ->  | R28: =(F7-F7)/R20 ->  | S28: =(F7-F7)/S20 ->  | T28: =(F8-F7)/T20 -> 8121 | U28: =(F8-F8)/U20 -> 

Sheet !N42091B.AXT
A1: Report for:!N42091B.AXT
A2: Date: | B2: <date>
A3: Hen: | B3: <hen> | F3: Correct Sequence | G3: =Start!J2 -> 112 | P3: Total Sequences in Data | Q3: =4994-COUNTBLANK(L7:L5000) -> 3 | V3: Total Sequences in Block Data | W3: =COUNTA(L7:L7) -> 1 | AA3: Total Sequences in Block Data | AB3: =COUNTA(L7:L8) -> 2 | AF3: Total Sequences in Block Data | AG3: =COUNTA(L8:L8) -> 1 | AK3: Total Sequences in Block Data | AL3: =COUNTA(L8:L9) -> 2 | AP3: Total Sequences in Block Data | AQ3: =COUNTA(L9:L9) -> 1 | AU3: Total Sequences in Block Data | AV3: =COUNTA(L9:L10) -> 1
P4: Total Sequences in Summary | Q4: =SUM(O7:O14) -> 3 | V4: Total Sequences in Block Summary | W4: =SUM(U7:U14) -> 1 | AA4: Total Sequences in Block Summary | AB4: =SUM(Z7:Z14) -> 2 | AF4: Total Sequences in Block Summary | AG4: =SUM(AE7:AE14) -> 1 | AK4: Total Sequences in Block Summary | AL4: =SUM(AJ7:AJ14) -> 2 | AP4: Total Sequences in Block Summary | AQ4: =SUM(AO7:AO14) -> 1 | AU4: Total Sequences in Block Summary | AV4: =SUM(AT7:AT14) -> 1
T5: Block 1 | Y5: Block 2 | AD5: Block 3 | AI5: Block 4 | AN5: Block 5 | AS5: Block 6
A6: Sequence Component 1 | B6: Time 1 | C6: Sequence Component 2 | D6: Time 2 | E6: Sequence Component 3 | F6: Time 3 | G6: Sequence Component 4 | H6: Time 4 | I6: Sequence Component 5 | J6: Time 5 | K6: Correct? 0=No 1=Yes | L6: Sequence | N6: Frequency | P6: Relative Frequency | Q6: Variability | T6: Frequency | V6: Relative Frequency | W6: Variability | Y6: Frequency | AA6: Relative Frequency | AB6: Variability | AD6: Frequency | AF6: Relative Frequency | AG6: Variability | AI6: Frequency | AK6: Relative Frequency | AL6: Variability | AN6: Frequency | AP6: Relative Frequency | AQ6: Variability | AS6: Frequency | AU6: Relative Frequency | AV6: Variability
A7: 22 | B7: 1069 | C7: 13 | D7: 1088 | E7: 14 | F7: 1095 | K7: 0 | L7: 211 | N7: 111 | O7: =COUNTIF($L$7:$L$500,N7) -> 0 | P7: =O7/$Q$4 -> 0 | Q7: =IF(P7=0,0,(P7*((LOG(P7))/LOG(2)))) -> 0 | T7: =N7 -> 111 | U7: =COUNTIF(L7:L7,T7) -> 0 | V7: =U7/(W4-U8) -> 0 | W7: =IF(V7=0,0,(V7*((LOG(V7))/LOG(2)))) -> 0 | Y7: =N7 -> 111 | Z7: =COUNTIF(L7:L8,Y7) -> 0 | AA7: =Z7/(AB4-Z8) -> 0 | AB7: =IF(AA7=0,0,(AA7*((LOG(AA7))/LOG(2)))) -> 0 | AD7: =N7 -> 111 | AE7: =COUNTIF(L8:L8,AD7) -> 0 | AF7: =AE7/(AG4-AE8) -> 0 | AG7: =IF(AF7=0,0,(AF7*((LOG(AF7))/LOG(2)))) -> 0 | AI7: =N7 -> 111 | AJ7: =COUNTIF(L8:L9,AI7) -> 0 | AK7: =AJ7/(AL4-AJ8) -> 0 | AL7: =IF(AK7=0,0,(AK7*((LOG(AK7))/LOG(2)))) -> 0 | AN7: =N7 -> 111 | AO7: =COUNTIF(L9:L9,AN7) -> 0 | AP7: =AO7/(AQ4-AO8) -> 0 | AQ7: =IF(AP7=0,0,(AP7*((LOG(AP7))/LOG(2)))) -> 0 | AS7: =N7 -> 111 | AT7: =COUNTIF(L9:L10,AS7) -> 0 | AU7: =AT7/(AV4-AT8) -> 0 | AV7: =IF(AU7=0,0,(AU7*((LOG(AU7))/LOG(2)))) -> 0
A8: 11 | B8: 1380 | C8: 22 | D8: 1390 | E8: 23 | F8: 1422 | K8: 0 | L8: 122 | N8: 112 | O8: =COUNTIF($L$7:$L$500,N8) -> 0 | P8: =O8/$Q$4 -> 0 | Q8: =IF(P8=0,0,(P8*((LOG(P8))/LOG(2)))) -> 0 | T8: =N8 -> 112 | U8: =COUNTIF(L7:L7,T8) -> 0 | Y8: =N8 -> 112 | Z8: =COUNTIF(L7:L8,Y8) -> 0 | AD8: =N8 -> 112 | AE8: =COUNTIF(L8:L8,AD8) -> 0 | AI8: =N8 -> 112 | AJ8: =COUNTIF(L8:L9,AI8) -> 0 | AN8: =N8 -> 112 | AO8: =COUNTIF(L9:L9,AN8) -> 0 | AS8: =N8 -> 112 | AT8: =COUNTIF(L9:L10,AS8) -> 0
A9: 11 | B9: 1879 | C9: 22 | D9: 1895 | E9: 14 | F9: 1911 | K9: 0 | L9: 121 | N9: 121 | O9: =COUNTIF($L$7:$L$500,N9) -> 1 | P9: =O9/$Q$4 -> 0.3333333333 | Q9: =IF(P9=0,0,(P9*((LOG(P9))/LOG(2)))) -> -0.5283208336 | T9: =N9 -> 121 | U9: =COUNTIF(L7:L7,T9) -> 0 | V9: =U9/(W4-U8) -> 0 | W9: =IF(V9=0,0,(V9*((LOG(V9))/LOG(2)))) -> 0 | Y9: =N9 -> 121 | Z9: =COUNTIF(L7:L8,Y9) -> 0 | AA9: =Z9/(AB4-Z8) -> 0 | AB9: =IF(AA9=0,0,(AA9*((LOG(AA9))/LOG(2)))) -> 0 | AD9: =N9 -> 121 | AE9: =COUNTIF(L8:L8,AD9) -> 0 | AF9: =AE9/(AG4-AE8) -> 0 | AG9: =IF(AF9=0,0,(AF9*((LOG(AF9))/LOG(2)))) -> 0 | AI9: =N9 -> 121 | AJ9: =COUNTIF(L8:L9,AI9) -> 1 | AK9: =AJ9/(AL4-AJ8) -> 0.5 | AL9: =IF(AK9=0,0,(AK9*((LOG(AK9))/LOG(2)))) -> -0.5 | AN9: =N9 -> 121 | AO9: =COUNTIF(L9:L9,AN9) -> 1 | AP9: =AO9/(AQ4-AO8) -> 1 | AQ9: =IF(AP9=0,0,(AP9*((LOG(AP9))/LOG(2)))) -> 0 | AS9: =N9 -> 121 | AT9: =COUNTIF(L9:L10,AS9) -> 1 | AU9: =AT9/(AV4-AT8) -> 1 | AV9: =IF(AU9=0,0,(AU9*((LOG(AU9))/LOG(2)))) -> 0
N10: 122 | O10: =COUNTIF($L$7:$L$500,N10) -> 1 | P10: =O10/$Q$4 -> 0.3333333333 | Q10: =IF(P10=0,0,(P10*((LOG(P10))/LOG(2)))) -> -0.5283208336 | T10: =N10 -> 122 | U10: =COUNTIF(L7:L7,T10) -> 0 | V10: =U10/(W4-U8) -> 0 | W10: =IF(V10=0,0,(V10*((LOG(V10))/LOG(2)))) -> 0 | Y10: =N10 -> 122 | Z10: =COUNTIF(L7:L8,Y10) -> 1 | AA10: =Z10/(AB4-Z8) -> 0.5 | AB10: =IF(AA10=0,0,(AA10*((LOG(AA10))/LOG(2)))) -> -0.5 | AD10: =N10 -> 122 | AE10: =COUNTIF(L8:L8,AD10) -> 1 | AF10: =AE10/(AG4-AE8) -> 1 | AG10: =IF(AF10=0,0,(AF10*((LOG(AF10))/LOG(2)))) -> 0 | AI10: =N10 -> 122 | AJ10: =COUNTIF(L8:L9,AI10) -> 1 | AK10: =AJ10/(AL4-AJ8) -> 0.5 | AL10: =IF(AK10=0,0,(AK10*((LOG(AK10))/LOG(2)))) -> -0.5 | AN10: =N10 -> 122 | AO10: =COUNTIF(L9:L9,AN10) -> 0 | AP10: =AO10/(AQ4-AO8) -> 0 | AQ10: =IF(AP10=0,0,(AP10*((LOG(AP10))/LOG(2)))) -> 0 | AS10: =N10 -> 122 | AT10: =COUNTIF(L9:L10,AS10) -> 0 | AU10: =AT10/(AV4-AT8) -> 0 | AV10: =IF(AU10=0,0,(AU10*((LOG(AU10))/LOG(2)))) -> 0
N11: 211 | O11: =COUNTIF($L$7:$L$500,N11) -> 1 | P11: =O11/$Q$4 -> 0.3333333333 | Q11: =IF(P11=0,0,(P11*((LOG(P11))/LOG(2)))) -> -0.5283208336 | T11: =N11 -> 211 | U11: =COUNTIF(L7:L7,T11) -> 1 | V11: =U11/(W4-U8) -> 1 | W11: =IF(V11=0,0,(V11*((LOG(V11))/LOG(2)))) -> 0 | Y11: =N11 -> 211 | Z11: =COUNTIF(L7:L8,Y11) -> 1 | AA11: =Z11/(AB4-Z8) -> 0.5 | AB11: =IF(AA11=0,0,(AA11*((LOG(AA11))/LOG(2)))) -> -0.5 | AD11: =N11 -> 211 | AE11: =COUNTIF(L8:L8,AD11) -> 0 | AF11: =AE11/(AG4-AE8) -> 0 | AG11: =IF(AF11=0,0,(AF11*((LOG(AF11))/LOG(2)))) -> 0 | AI11: =N11 -> 211 | AJ11: =COUNTIF(L8:L9,AI11) -> 0 | AK11: =AJ11/(AL4-AJ8) -> 0 | AL11: =IF(AK11=0,0,(AK11*((LOG(AK11))/LOG(2)))) -> 0 | AN11: =N11 -> 211 | AO11: =COUNTIF(L9:L9,AN11) -> 0 | AP11: =AO11/(AQ4-AO8) -> 0 | AQ11: =IF(AP11=0,0,(AP11*((LOG(AP11))/LOG(2)))) -> 0 | AS11: =N11 -> 211 | AT11: =COUNTIF(L9:L10,AS11) -> 0 | AU11: =AT11/(AV4-AT8) -> 0 | AV11: =IF(AU11=0,0,(AU11*((LOG(AU11))/LOG(2)))) -> 0
N12: 212 | O12: =COUNTIF($L$7:$L$500,N12) -> 0 | P12: =O12/$Q$4 -> 0 | Q12: =IF(P12=0,0,(P12*((LOG(P12))/LOG(2)))) -> 0 | T12: =N12 -> 212 | U12: =COUNTIF(L7:L7,T12) -> 0 | V12: =U12/(W4-U8) -> 0 | W12: =IF(V12=0,0,(V12*((LOG(V12))/LOG(2)))) -> 0 | Y12: =N12 -> 212 | Z12: =COUNTIF(L7:L8,Y12) -> 0 | AA12: =Z12/(AB4-Z8) -> 0 | AB12: =IF(AA12=0,0,(AA12*((LOG(AA12))/LOG(2)))) -> 0 | AD12: =N12 -> 212 | AE12: =COUNTIF(L8:L8,AD12) -> 0 | AF12: =AE12/(AG4-AE8) -> 0 | AG12: =IF(AF12=0,0,(AF12*((LOG(AF12))/LOG(2)))) -> 0 | AI12: =N12 -> 212 | AJ12: =COUNTIF(L8:L9,AI12) -> 0 | AK12: =AJ12/(AL4-AJ8) -> 0 | AL12: =IF(AK12=0,0,(AK12*((LOG(AK12))/LOG(2)))) -> 0 | AN12: =N12 -> 212 | AO12: =COUNTIF(L9:L9,AN12) -> 0 | AP12: =AO12/(AQ4-AO8) -> 0 | AQ12: =IF(AP12=0,0,(AP12*((LOG(AP12))/LOG(2)))) -> 0 | AS12: =N12 -> 212 | AT12: =COUNTIF(L9:L10,AS12) -> 0 | AU12: =AT12/(AV4-AT8) -> 0 | AV12: =IF(AU12=0,0,(AU12*((LOG(AU12))/LOG(2)))) -> 0
N13: 221 | O13: =COUNTIF($L$7:$L$500,N13) -> 0 | P13: =O13/$Q$4 -> 0 | Q13: =IF(P13=0,0,(P13*((LOG(P13))/LOG(2)))) -> 0 | T13: =N13 -> 221 | U13: =COUNTIF(L7:L7,T13) -> 0 | V13: =U13/(W4-U8) -> 0 | W13: =IF(V13=0,0,(V13*((LOG(V13))/LOG(2)))) -> 0 | Y13: =N13 -> 221 | Z13: =COUNTIF(L7:L8,Y13) -> 0 | AA13: =Z13/(AB4-Z8) -> 0 | AB13: =IF(AA13=0,0,(AA13*((LOG(AA13))/LOG(2)))) -> 0 | AD13: =N13 -> 221 | AE13: =COUNTIF(L8:L8,AD13) -> 0 | AF13: =AE13/(AG4-AE8) -> 0 | AG13: =IF(AF13=0,0,(AF13*((LOG(AF13))/LOG(2)))) -> 0 | AI13: =N13 -> 221 | AJ13: =COUNTIF(L8:L9,AI13) -> 0 | AK13: =AJ13/(AL4-AJ8) -> 0 | AL13: =IF(AK13=0,0,(AK13*((LOG(AK13))/LOG(2)))) -> 0 | AN13: =N13 -> 221 | AO13: =COUNTIF(L9:L9,AN13) -> 0 | AP13: =AO13/(AQ4-AO8) -> 0 | AQ13: =IF(AP13=0,0,(AP13*((LOG(AP13))/LOG(2)))) -> 0 | AS13: =N13 -> 221 | AT13: =COUNTIF(L9:L10,AS13) -> 0 | AU13: =AT13/(AV4-AT8) -> 0 | AV13: =IF(AU13=0,0,(AU13*((LOG(AU13))/LOG(2)))) -> 0
N14: 222 | O14: =COUNTIF($L$7:$L$500,N14) -> 0 | P14: =O14/$Q$4 -> 0 | Q14: =IF(P14=0,0,(P14*((LOG(P14))/LOG(2)))) -> 0 | T14: =N14 -> 222 | U14: =COUNTIF(L7:L7,T14) -> 0 | V14: =U14/(W4-U8) -> 0 | W14: =IF(V14=0,0,(V14*((LOG(V14))/LOG(2)))) -> 0 | Y14: =N14 -> 222 | Z14: =COUNTIF(L7:L8,Y14) -> 0 | AA14: =Z14/(AB4-Z8) -> 0 | AB14: =IF(AA14=0,0,(AA14*((LOG(AA14))/LOG(2)))) -> 0 | AD14: =N14 -> 222 | AE14: =COUNTIF(L8:L8,AD14) -> 0 | AF14: =AE14/(AG4-AE8) -> 0 | AG14: =IF(AF14=0,0,(AF14*((LOG(AF14))/LOG(2)))) -> 0 | AI14: =N14 -> 222 | AJ14: =COUNTIF(L8:L9,AI14) -> 0 | AK14: =AJ14/(AL4-AJ8) -> 0 | AL14: =IF(AK14=0,0,(AK14*((LOG(AK14))/LOG(2)))) -> 0 | AN14: =N14 -> 222 | AO14: =COUNTIF(L9:L9,AN14) -> 0 | AP14: =AO14/(AQ4-AO8) -> 0 | AQ14: =IF(AP14=0,0,(AP14*((LOG(AP14))/LOG(2)))) -> 0 | AS14: =N14 -> 222 | AT14: =COUNTIF(L9:L10,AS14) -> 0 | AU14: =AT14/(AV4-AT8) -> 0 | AV14: =IF(AU14=0,0,(AU14*((LOG(AU14))/LOG(2)))) -> 0
P15: =SUM(P7:P14) -> 1 | Q15: =-SUM(Q7:Q14) -> 1.584962501 | V15: =SUM(V7:V14) -> 1 | W15: =-SUM(W7:W14) -> 0 | AA15: =SUM(AA7:AA14) -> 1 | AB15: =-SUM(AB7:AB14) -> 1 | AF15: =SUM(AF7:AF14) -> 1 | AG15: =-SUM(AG7:AG14) -> 0 | AK15: =SUM(AK7:AK14) -> 1 | AL15: =-SUM(AL7:AL14) -> 1 | AP15: =SUM(AP7:AP14) -> 1 | AQ15: =-SUM(AQ7:AQ14) -> 0 | AU15: =SUM(AU7:AU14) -> 1 | AV15: =-SUM(AV7:AV14) -> 0
P16: U= | Q16: =Q15/(LOG(Q4)/LOG(2)) -> 1 | V16: U1= | W16: =W15/(LOG(W4)/LOG(2)) ->  | AA16: U2= | AB16: =AB15/(LOG(AB4)/LOG(2)) -> 1 | AF16: U3= | AG16: =AG15/(LOG(AG4)/LOG(2)) ->  | AK16: U4= | AL16: =AL15/(LOG(AL4)/LOG(2)) -> 1 | AP16: U5= | AQ16: =AQ15/(LOG(AQ4)/LOG(2)) ->  | AU16: U6= | AV16: =AV15/(LOG(AV4)/LOG(2)) -> 
N19: Total Target Seq
N20: =COUNTIF(L7:L9,G3) -> 0 | P20: 1 | Q20: 0 | R20: 1 | S20: 0 | T20: 1 | U20: 0
P21: % of reinforcement given in 6 equal intervals based on number of trials
P22: %_1 | Q22: %_2 | R22: %_3 | S22: %_4 | T22: %_5 | U22: %_6
O23: target sequence | P23: =$G$3 -> 112 | Q23: =$G$3 -> 112 | R23: =$G$3 -> 112 | S23: =$G$3 -> 112 | T23: =$G$3 -> 112 | U23: =$G$3 -> 112
O24: total reinforcement | P24: =U8 -> 0 | Q24: =Z8 -> 0 | R24: =AE8 -> 0 | S24: =AJ8 -> 0 | T24: =AO8 -> 0 | U24: =AT8 -> 0
O25: % target
O26: CCRF
O27: % CCRf
O28: average response rate | P28: =F7/P20 -> 1095 | Q28: =(F7-F7)/Q20 ->  | R28: =(F8-F7)/R20 -> 327 | S28: =(F8-F8)/S20 ->  | T28: =(F9-F8)/T20 -> 489 | U28: =(F9-F9)/U20 -> 

Sheet !N421A1B.AXT
A1: Report for:!N421A1B.AXT
A2: Date: | B2: <date>
A3: Hen: | B3: <hen> | F3: Correct Sequence | G3: =Start!J2 -> 112 | P3: Total Sequences in Data | Q3: =4994-COUNTBLANK(L7:L5000) -> 6 | V3: Total Sequences in Block Data | W3: =COUNTA(L7:L7) -> 1 | AA3: Total Sequences in Block Data | AB3: =COUNTA(L8:L8) -> 1 | AF3: Total Sequences in Block Data | AG3: =COUNTA(L9:L9) -> 1 | AK3: Total Sequences in Block Data | AL3: =COUNTA(L10:L10) -> 1 | AP3: Total Sequences in Block Data | AQ3: =COUNTA(L11:L11) -> 1 | AU3: Total Sequences in Block Data | AV3: =COUNTA(L12:L12) -> 1
P4: Total Sequences in Summary | Q4: =SUM(O7:O14) -> 5 | V4: Total Sequences in Block Summary | W4: =SUM(U7:U14) -> 1 | AA4: Total Sequences in Block Summary | AB4: =SUM(Z7:Z14) -> 1 | AF4: Total Sequences in Block Summary | AG4: =SUM(AE7:AE14) -> 1 | AK4: Total Sequences in Block Summary | AL4: =SUM(AJ7:AJ14) -> 1 | AP4: Total Sequences in Block Summary | AQ4: =SUM(AO7:AO14) -> 1 | AU4: Total Sequences in Block Summary | AV4: =SUM(AT7:AT14) -> 0
T5: Block 1 | Y5: Block 2 | AD5: Block 3 | AI5: Block 4 | AN5: Block 5 | AS5: Block 6
A6: Sequence Component 1 | B6: Time 1 | C6: Sequence Component 2 | D6: Time 2 | E6: Sequence Component 3 | F6: Time 3 | G6: Sequence Component 4 | H6: Time 4 | I6: Sequence Component 5 | J6: Time 5 | K6: Correct? 0=No 1=Yes | L6: Sequence | N6: Frequency | P6: Relative Frequency | Q6: Variability | T6: Frequency | V6: Relative Frequency | W6: Variability | Y6: Frequency | AA6: Relative Frequency | AB6: Variability | AD6: Frequency | AF6: Relative Frequency | AG6: Variability | AI6: Frequency | AK6: Relative Frequency | AL6: Variability | AN6: Frequency | AP6: Relative Frequency | AQ6: Variability | AS6: Frequency | AU6: Relative Frequency | AV6: Variability
A7: 22 | B7: 16 | C7: 24 | D7: 22 | E7: 14 | F7: 31 | K7: 0 | L7: 221 | N7: 111 | O7: =COUNTIF($L$7:$L$500,N7) -> 1 | P7: =O7/$Q$4 -> 0.2 | Q7: =IF(P7=0,0,(P7*((LOG(P7))/LOG(2)))) -> -0.464385619 | T7: =N7 -> 111 | U7: =COUNTIF(L7:L7,T7) -> 0 | V7: =U7/(W4-U8) -> 0 | W7: =IF(V7=0,0,(V7*((LOG(V7))/LOG(2)))) -> 0 | Y7: =N7 -> 111 | Z7: =COUNTIF(L8:L8,Y7) -> 0 | AA7: =Z7/(AB4-Z8) -> 0 | AB7: =IF(AA7=0,0,(AA7*((LOG(AA7))/LOG(2)))) -> 0 | AD7: =N7 -> 111 | AE7: =COUNTIF(L9:L9,AD7) -> 1 | AF7: =AE7/(AG4-AE8) -> 1 | AG7: =IF(AF7=0,0,(AF7*((LOG(AF7))/LOG(2)))) -> 0 | AI7: =N7 -> 111 | AJ7: =COUNTIF(L10:L10,AI7) -> 0 | AK7: =AJ7/(AL4-AJ8) -> 0 | AL7: =IF(AK7=0,0,(AK7*((LOG(AK7))/LOG(2)))) -> 0 | AN7: =N7 -> 111 | AO7: =COUNTIF(L11:L11,AN7) -> 0 | AP7: =AO7/(AQ4-AO8) -> 0 | AQ7: =IF(AP7=0,0,(AP7*((LOG(AP7))/LOG(2)))) -> 0 | AS7: =N7 -> 111 | AT7: =COUNTIF(L12:L12,AS7) -> 0 | AU7: =AT7/(AV4-AT8) ->  | AV7: =IF(AU7=0,0,(AU7*((LOG(AU7))/LOG(2)))) -> 
A8: 22 | B8: 1102 | C8: 13 | D8: 1124 | E8: 14 | F8: 1134 | K8: 0 | L8: 211 | N8: 112 | O8: =COUNTIF($L$7:$L$500,N8) -> 0 | P8: =O8/$Q$4 -> 0 | Q8: =IF(P8=0,0,(P8*((LOG(P8))/LOG(2)))) -> 0 | T8: =N8 -> 112 | U8: =COUNTIF(L7:L7,T8) -> 0 | Y8: =N8 -> 112 | Z8: =COUNTIF(L8:L8,Y8) -> 0 | AD8: =N8 -> 112 | AE8: =COUNTIF(L9:L9,AD8) -> 0 | AI8: =N8 -> 112 | AJ8: =COUNTIF(L10:L10,AI8) -> 0 | AN8: =N8 -> 112 | AO8: =COUNTIF(L11:L11,AN8) -> 0 | AS8: =N8 -> 112 | AT8: =COUNTIF(L12:L12,AS8) -> 0
A9: 11 | B9: 3185 | C9: 11 | D9: 3188 | E9: 12 | F9: 3204 | K9: 0 | L9: 111 | N9: 121 | O9: =COUNTIF($L$7:$L$500,N9) -> 0 | P9: =O9/$Q$4 -> 0 | Q9: =IF(P9=0,0,(P9*((LOG(P9))/LOG(2)))) -> 0 | T9: =N9 -> 121 | U9: =COUNTIF(L7:L7,T9) -> 0 | V9: =U9/(W4-U8) -> 0 | W9: =IF(V9=0,0,(V9*((LOG(V9))/LOG(2)))) -> 0 | Y9: =N9 -> 121 | Z9: =COUNTIF(L8:L8,Y9) -> 0 | AA9: =Z9/(AB4-Z8) -> 0 | AB9: =IF(AA9=0,0,(AA9*((LOG(AA9))/LOG(2)))) -> 0 | AD9: =N9 -> 121 | AE9: =COUNTIF(L9:L9,AD9) -> 0 | AF9: =AE9/(AG4-AE8) -> 0 | AG9: =IF(AF9=0,0,(AF9*((LOG(AF9))/LOG(2)))) -> 0 | AI9: =N9 -> 121 | AJ9: =COUNTIF(L10:L10,AI9) -> 0 | AK9: =AJ9/(AL4-AJ8) -> 0 | AL9: =IF(AK9=0,0,(AK9*((LOG(AK9))/LOG(2)))) -> 0 | AN9: =N9 -> 121 | AO9: =COUNTIF(L11:L11,AN9) -> 0 | AP9: =AO9/(AQ4-AO8) -> 0 | AQ9: =IF(AP9=0,0,(AP9*((LOG(AP9))/LOG(2)))) -> 0 | AS9: =N9 -> 121 | AT9: =COUNTIF(L12:L12,AS9) -> 0 | AU9: =AT9/(AV4-AT8) ->  | AV9: =IF(AU9=0,0,(AU9*((LOG(AU9))/LOG(2)))) -> 
A10: 11 | B10: 3315 | C10: 22 | D10: 3319 | E10: 23 | F10: 3348 | K10: 0 | L10: 122 | N10: 122 | O10: =COUNTIF($L$7:$L$500,N10) -> 1 | P10: =O10/$Q$4 -> 0.2 | Q10: =IF(P10=0,0,(P10*((LOG(P10))/LOG(2)))) -> -0.464385619 | T10: =N10 -> 122 | U10: =COUNTIF(L7:L7,T10) -> 0 | V10: =U10/(W4-U8) -> 0 | W10: =IF(V10=0,0,(V10*((LOG(V10))/LOG(2)))) -> 0 | Y10: =N10 -> 122 | Z10: =COUNTIF(L8:L8,Y10) -> 0 | AA10: =Z10/(AB4-Z8) -> 0 | AB10: =IF(AA10=0,0,(AA10*((LOG(AA10))/LOG(2)))) -> 0 | AD10: =N10 -> 122 | AE10: =COUNTIF(L9:L9,AD10) -> 0 | AF10: =AE10/(AG4-AE8) -> 0 | AG10: =IF(AF10=0,0,(AF10*((LOG(AF10))/LOG(2)))) -> 0 | AI10: =N10 -> 122 | AJ10: =COUNTIF(L10:L10,AI10) -> 1 | AK10: =AJ10/(AL4-AJ8) -> 1 | AL10: =IF(AK10=0,0,(AK10*((LOG(AK10))/LOG(2)))) -> 0 | AN10: =N10 -> 122 | AO10: =COUNTIF(L11:L11,AN10) -> 0 | AP10: =AO10/(AQ4-AO8) -> 0 | AQ10: =IF(AP10=0,0,(AP10*((LOG(AP10))/LOG(2)))) -> 0 | AS10: =N10 -> 122 | AT10: =COUNTIF(L12:L12,AS10) -> 0 | AU10: =AT10/(AV4-AT8) ->  | AV10: =IF(AU10=0,0,(AU10*((LOG(AU10))/LOG(2)))) -> 
A11: 22 | B11: 21693 | C11: 24 | D11: 21709 | E11: 14 | F11: 21713 | K11: 0 | L11: 221 | N11: 211 | O11: =COUNTIF($L$7:$L$500,N11) -> 1 | P11: =O11/$Q$4 -> 0.2 | Q11: =IF(P11=0,0,(P11*((LOG(P11))/LOG(2)))) -> -0.464385619 | T11: =N11 -> 211 | U11: =COUNTIF(L7:L7,T11) -> 0 | V11: =U11/(W4-U8) -> 0 | W11: =IF(V11=0,0,(V11*((LOG(V11))/LOG(2)))) -> 0 | Y11: =N11 -> 211 | Z11: =COUNTIF(L8:L8,Y11) -> 1 | AA11: =Z11/(AB4-Z8) -> 1 | AB11: =IF(AA11=0,0,(AA11*((LOG(AA11))/LOG(2)))) -> 0 | AD11: =N11 -> 211 | AE11: =COUNTIF(L9:L9,AD11) -> 0 | AF11: =AE11/(AG4-AE8) -> 0 | AG11: =IF(AF11=0,0,(AF11*((LOG(AF11))/LOG(2)))) -> 0 | AI11: =N11 -> 211 | AJ11: =COUNTIF(L10:L10,AI11) -> 0 | AK11: =AJ11/(AL4-AJ8) -> 0 | AL11: =IF(AK11=0,0,(AK11*((LOG(AK11))/LOG(2)))) -> 0 | AN11: =N11 -> 211 | AO11: =COUNTIF(L11:L11,AN11) -> 0 | AP11: =AO11/(AQ4-AO8) -> 0 | AQ11: =IF(AP11=0,0,(AP11*((LOG(AP11))/LOG(2)))) -> 0 | AS11: =N11 -> 211 | AT11: =COUNTIF(L12:L12,AS11) -> 0 | AU11: =AT11/(AV4-AT8) ->  | AV11: =IF(AU11=0,0,(AU11*((LOG(AU11))/LOG(2)))) -> 
A12: 22 | B12: 23258 | L12: 2 | N12: 212 | O12: =COUNTIF($L$7:$L$500,N12) -> 0 | P12: =O12/$Q$4 -> 0 | Q12: =IF(P12=0,0,(P12*((LOG(P12))/LOG(2)))) -> 0 | T12: =N12 -> 212 | U12: =COUNTIF(L7:L7,T12) -> 0 | V12: =U12/(W4-U8) -> 0 | W12: =IF(V12=0,0,(V12*((LOG(V12))/LOG(2)))) -> 0 | Y12: =N12 -> 212 | Z12: =COUNTIF(L8:L8,Y12) -> 0 | AA12: =Z12/(AB4-Z8) -> 0 | AB12: =IF(AA12=0,0,(AA12*((LOG(AA12))/LOG(2)))) -> 0 | AD12: =N12 -> 212 | AE12: =COUNTIF(L9:L9,AD12) -> 0 | AF12: =AE12/(AG4-AE8) -> 0 | AG12: =IF(AF12=0,0,(AF12*((LOG(AF12))/LOG(2)))) -> 0 | AI12: =N12 -> 212 | AJ12: =COUNTIF(L10:L10,AI12) -> 0 | AK12: =AJ12/(AL4-AJ8) -> 0 | AL12: =IF(AK12=0,0,(AK12*((LOG(AK12))/LOG(2)))) -> 0 | AN12: =N12 -> 212 | AO12: =COUNTIF(L11:L11,AN12) -> 0 | AP12: =AO12/(AQ4-AO8) -> 0 | AQ12: =IF(AP12=0,0,(AP12*((LOG(AP12))/LOG(2)))) -> 0 | AS12: =N12 -> 212 | AT12: =COUNTIF(L12:L12,AS12) -> 0 | AU12: =AT12/(AV4-AT8) ->  | AV12: =IF(AU12=0,0,(AU12*((LOG(AU12))/LOG(2)))) -> 
N13: 221 | O13: =COUNTIF($L$7:$L$500,N13) -> 2 | P13: =O13/$Q$4 -> 0.4 | Q13: =IF(P13=0,0,(P13*((LOG(P13))/LOG(2)))) -> -0.528771238 | T13: =N13 -> 221 | U13: =COUNTIF(L7:L7,T13) -> 1 | V13: =U13/(W4-U8) -> 1 | W13: =IF(V13=0,0,(V13*((LOG(V13))/LOG(2)))) -> 0 | Y13: =N13 -> 221 | Z13: =COUNTIF(L8:L8,Y13) -> 0 | AA13: =Z13/(AB4-Z8) -> 0 | AB13: =IF(AA13=0,0,(AA13*((LOG(AA13))/LOG(2)))) -> 0 | AD13: =N13 -> 221 | AE13: =COUNTIF(L9:L9,AD13) -> 0 | AF13: =AE13/(AG4-AE8) -> 0 | AG13: =IF(AF13=0,0,(AF13*((LOG(AF13))/LOG(2)))) -> 0 | AI13: =N13 -> 221 | AJ13: =COUNTIF(L10:L10,AI13) -> 0 | AK13: =AJ13/(AL4-AJ8) -> 0 | AL13: =IF(AK13=0,0,(AK13*((LOG(AK13))/LOG(2)))) -> 0 | AN13: =N13 -> 221 | AO13: =COUNTIF(L11:L11,AN13) -> 1 | AP13: =AO13/(AQ4-AO8) -> 1 | AQ13: =IF(AP13=0,0,(AP13*((LOG(AP13))/LOG(2)))) -> 0 | AS13: =N13 -> 221 | AT13: =COUNTIF(L12:L12,AS13) -> 0 | AU13: =AT13/(AV4-AT8) ->  | AV13: =IF(AU13=0,0,(AU13*((LOG(AU13))/LOG(2)))) -> 
N14: 222 | O14: =COUNTIF($L$7:$L$500,N14) -> 0 | P14: =O14/$Q$4 -> 0 | Q14: =IF(P14=0,0,(P14*((LOG(P14))/LOG(2)))) -> 0 | T14: =N14 -> 222 | U14: =COUNTIF(L7:L7,T14) -> 0 | V14: =U14/(W4-U8) -> 0 | W14: =IF(V14=0,0,(V14*((LOG(V14))/LOG(2)))) -> 0 | Y14: =N14 -> 222 | Z14: =COUNTIF(L8:L8,Y14) -> 0 | AA14: =Z14/(AB4-Z8) -> 0 | AB14: =IF(AA14=0,0,(AA14*((LOG(AA14))/LOG(2)))) -> 0 | AD14: =N14 -> 222 | AE14: =COUNTIF(L9:L9,AD14) -> 0 | AF14: =AE14/(AG4-AE8) -> 0 | AG14: =IF(AF14=0,0,(AF14*((LOG(AF14))/LOG(2)))) -> 0 | AI14: =N14 -> 222 | AJ14: =COUNTIF(L10:L10,AI14) -> 0 | AK14: =AJ14/(AL4-AJ8) -> 0 | AL14: =IF(AK14=0,0,(AK14*((LOG(AK14))/LOG(2)))) -> 0 | AN14: =N14 -> 222 | AO14: =COUNTIF(L11:L11,AN14) -> 0 | AP14: =AO14/(AQ4-AO8) -> 0 | AQ14: =IF(AP14=0,0,(AP14*((LOG(AP14))/LOG(2)))) -> 0 | AS14: =N14 -> 222 | AT14: =COUNTIF(L12:L12,AS14) -> 0 | AU14: =AT14/(AV4-AT8) ->  | AV14: =IF(AU14=0,0,(AU14*((LOG(AU14))/LOG(2)))) -> 
P15: =SUM(P7:P14) -> 1 | Q15: =-SUM(Q7:Q14) -> 1.921928095 | V15: =SUM(V7:V14) -> 1 | W15: =-SUM(W7:W14) -> 0 | AA15: =SUM(AA7:AA14) -> 1 | AB15: =-SUM(AB7:AB14) -> 0 | AF15: =SUM(AF7:AF14) -> 1 | AG15: =-SUM(AG7:AG14) -> 0 | AK15: =SUM(AK7:AK14) -> 1 | AL15: =-SUM(AL7:AL14) -> 0 | AP15: =SUM(AP7:AP14) -> 1 | AQ15: =-SUM(AQ7:AQ14) -> 0 | AU15: =SUM(AU7:AU14) ->  | AV15: =-SUM(AV7:AV14) -> 
P16: U= | Q16: =Q15/(LOG(Q4)/LOG(2)) -> 0.8277293768 | V16: U1= | W16: =W15/(LOG(W4)/LOG(2)) ->  | AA16: U2= | AB16: =AB15/(LOG(AB4)/LOG(2)) ->  | AF16: U3= | AG16: =AG15/(LOG(AG4)/LOG(2)) ->  | AK16: U4= | AL16: =AL15/(LOG(AL4)/LOG(2)) ->  | AP16: U5= | AQ16: =AQ15/(LOG(AQ4)/LOG(2)) ->  | AU16: U6= | AV16: =AV15/(LOG(AV4)/LOG(2)) -> 
N19: Total Target Seq
N20: =COUNTIF(L7:L12,G3) -> 0 | P20: 1 | Q20: 1 | R20: 1 | S20: 1 | T20: 1 | U20: 1
P21: % of reinforcement given in 6 equal intervals based on number of trials
P22: %_1 | Q22: %_2 | R22: %_3 | S22: %_4 | T22: %_5 | U22: %_6
O23: target sequence | P23: =$G$3 -> 112 | Q23: =$G$3 -> 112 | R23: =$G$3 -> 112 | S23: =$G$3 -> 112 | T23: =$G$3 -> 112 | U23: =$G$3 -> 112
O24: total reinforcement | P24: =U8 -> 0 | Q24: =Z8 -> 0 | R24: =AE8 -> 0 | S24: =AJ8 -> 0 | T24: =AO8 -> 0 | U24: =AT8 -> 0
O25: % target
O26: CCRF
O27: % CCRf
O28: average response rate | P28: =F7/P20 -> 31 | Q28: =(F8-F7)/Q20 -> 1103 | R28: =(F9-F8)/R20 -> 2070 | S28: =(F10-F9)/S20 -> 144 | T28: =(F11-F10)/T20 -> 18365 | U28: =(F12-F11)/U20 -> -21713

Sheet !N42294B.AXT
A1: Report for:!N42294B.AXT
A2: Date: | B2: <date>
A3: Hen: | B3: <hen> | F3: Correct Sequence | G3: =Start!J2 -> 112 | P3: Total Sequences in Data | Q3: =4994-COUNTBLANK(L7:L5000) -> 1 | V3: Total Sequences in Block Data | W3: =COUNTA(L6:L7) -> 2 | AA3: Total Sequences in Block Data | AB3: =COUNTA(L6:L7) -> 2 | AF3: Total Sequences in Block Data | AG3: =COUNTA(L7:L7) -> 1 | AK3: Total Sequences in Block Data | AL3: =COUNTA(L7:L8) -> 1 | AP3: Total Sequences in Block Data | AQ3: =COUNTA(L7:L8) -> 1 | AU3: Total Sequences in Block Data | AV3: =COUNTA(L7:L8) -> 1
P4: Total Sequences in Summary | Q4: =SUM(O7:O14) -> 1 | V4: Total Sequences in Block Summary | W4: =SUM(U7:U14) -> 1 | AA4: Total Sequences in Block Summary | AB4: =SUM(Z7:Z14) -> 1 | AF4: Total Sequences in Block Summary | AG4: =SUM(AE7:AE14) -> 1 | AK4: Total Sequences in Block Summary | AL4: =SUM(AJ7:AJ14) -> 1 | AP4: Total Sequences in Block Summary | AQ4: =SUM(AO7:AO14) -> 1 | AU4: Total Sequences in Block Summary | AV4: =SUM(AT7:AT14) -> 1
T5: Block 1 | Y5: Block 2 | AD5: Block 3 | AI5: Block 4 | AN5: Block 5 | AS5: Block 6
A6: Sequence Component 1 | B6: Time 1 | C6: Sequence Component 2 | D6: Time 2 | E6: Sequence Component 3 | F6: Time 3 | G6: Sequence Component 4 | H6: Time 4 | I6: Sequence Component 5 | J6: Time 5 | K6: Correct? 0=No 1=Yes | L6: Sequence | N6: Frequency | P6: Relative Frequency | Q6: Variability | T6: Frequency | V6: Relative Frequency | W6: Variability | Y6: Frequency | AA6: Relative Frequency | AB6: Variability | AD6: Frequency | AF6: Relative Frequency | AG6: Variability | AI6: Frequency | AK6: Relative Frequency | AL6: Variability | AN6: Frequency | AP6: Relative Frequency | AQ6: Variability | AS6: Frequency | AU6: Relative Frequency | AV6: Variability
A7: 11 | B7: 1817 | C7: 11 | D7: 1841 | E7: 12 | F7: 1849 | K7: 0 | L7: 111 | N7: 111 | O7: =COUNTIF($L$7:$L$500,N7) -> 1 | P7: =O7/$Q$4 -> 1 | Q7: =IF(P7=0,0,(P7*((LOG(P7))/LOG(2)))) -> 0 | T7: =N7 -> 111 | U7: =COUNTIF(L6:L7,T7) -> 1 | V7: =U7/(W4-U8) -> 1 | W7: =IF(V7=0,0,(V7*((LOG(V7))/LOG(2)))) -> 0 | Y7: =N7 -> 111 | Z7: =COUNTIF(L6:L7,Y7) -> 1 | AA7: =Z7/(AB4-Z8) -> 1 | AB7: =IF(AA7=0,0,(AA7*((LOG(AA7))/LOG(2)))) -> 0 | AD7: =N7 -> 111 | AE7: =COUNTIF(L7:L7,AD7) -> 1 | AF7: =AE7/(AG4-AE8) -> 1 | AG7: =IF(AF7=0,0,(AF7*((LOG(AF7))/LOG(2)))) -> 0 | AI7: =N7 -> 111 | AJ7: =COUNTIF(L7:L8,AI7) -> 1 | AK7: =AJ7/(AL4-AJ8) -> 1 | AL7: =IF(AK7=0,0,(AK7*((LOG(AK7))/LOG(2)))) -> 0 | AN7: =N7 -> 111 | AO7: =COUNTIF(L7:L8,AN7) -> 1 | AP7: =AO7/(AQ4-AO8) -> 1 | AQ7: =IF(AP7=0,0,(AP7*((LOG(AP7))/LOG(2)))) -> 0 | AS7: =N7 -> 111 | AT7: =COUNTIF(L7:L8,AS7) -> 1 | AU7: =AT7/(AV4-AT8) -> 1 | AV7: =IF(AU7=0,0,(AU7*((LOG(AU7))/LOG(2)))) -> 0
N8: 112 | O8: =COUNTIF($L$7:$L$500,N8) -> 0 | P8: =O8/$Q$4 -> 0 | Q8: =IF(P8=0,0,(P8*((LOG(P8))/LOG(2)))) -> 0 | T8: =N8 -> 112 | U8: =COUNTIF(L6:L7,T8) -> 0 | Y8: =N8 -> 112 | Z8: =COUNTIF(L6:L7,Y8) -> 0 | AD8: =N8 -> 112 | AE8: =COUNTIF(L7:L7,AD8) -> 0 | AI8: =N8 -> 112 | AJ8: =COUNTIF(L7:L8,AI8) -> 0 | AN8: =N8 -> 112 | AO8: =COUNTIF(L7:L8,AN8) -> 0 | AS8: =N8 -> 112 | AT8: =COUNTIF(L7:L8,AS8) -> 0
N9: 121 | O9: =COUNTIF($L$7:$L$500,N9) -> 0 | P9: =O9/$Q$4 -> 0 | Q9: =IF(P9=0,0,(P9*((LOG(P9))/LOG(2)))) -> 0 | T9: =N9 -> 121 | U9: =COUNTIF(L6:L7,T9) -> 0 | V9: =U9/(W4-U8) -> 0 | W9: =IF(V9=0,0,(V9*((LOG(V9))/LOG(2)))) -> 0 | Y9: =N9 -> 121 | Z9: =COUNTIF(L6:L7,Y9) -> 0 | AA9: =Z9/(AB4-Z8) -> 0 | AB9: =IF(AA9=0,0,(AA9*((LOG(AA9))/LOG(2)))) -> 0 | AD9: =N9 -> 121 | AE9: =COUNTIF(L7:L7,AD9) -> 0 | AF9: =AE9/(AG4-AE8) -> 0 | AG9: =IF(AF9=0,0,(AF9*((LOG(AF9))/LOG(2)))) -> 0 | AI9: =N9 -> 121 | AJ9: =COUNTIF(L7:L8,AI9) -> 0 | AK9: =AJ9/(AL4-AJ8) -> 0 | AL9: =IF(AK9=0,0,(AK9*((LOG(AK9))/LOG(2)))) -> 0 | AN9: =N9 -> 121 | AO9: =COUNTIF(L7:L8,AN9) -> 0 | AP9: =AO9/(AQ4-AO8) -> 0 | AQ9: =IF(AP9=0,0,(AP9*((LOG(AP9))/LOG(2)))) -> 0 | AS9: =N9 -> 121 | AT9: =COUNTIF(L7:L8,AS9) -> 0 | AU9: =AT9/(AV4-AT8) -> 0 | AV9: =IF(AU9=0,0,(AU9*((LOG(AU9))/LOG(2)))) -> 0
N10: 122 | O10: =COUNTIF($L$7:$L$500,N10) -> 0 | P10: =O10/$Q$4 -> 0 | Q10: =IF(P10=0,0,(P10*((LOG(P10))/LOG(2)))) -> 0 | T10: =N10 -> 122 | U10: =COUNTIF(L6:L7,T10) -> 0 | V10: =U10/(W4-U8) -> 0 | W10: =IF(V10=0,0,(V10*((LOG(V10))/LOG(2)))) -> 0 | Y10: =N10 -> 122 | Z10: =COUNTIF(L6:L7,Y10) -> 0 | AA10: =Z10/(AB4-Z8) -> 0 | AB10: =IF(AA10=0,0,(AA10*((LOG(AA10))/LOG(2)))) -> 0 | AD10: =N10 -> 122 | AE10: =COUNTIF(L7:L7,AD10) -> 0 | AF10: =AE10/(AG4-AE8) -> 0 | AG10: =IF(AF10=0,0,(AF10*((LOG(AF10))/LOG(2)))) -> 0 | AI10: =N10 -> 122 | AJ10: =COUNTIF(L7:L8,AI10) -> 0 | AK10: =AJ10/(AL4-AJ8) -> 0 | AL10: =IF(AK10=0,0,(AK10*((LOG(AK10))/LOG(2)))) -> 0 | AN10: =N10 -> 122 | AO10: =COUNTIF(L7:L8,AN10) -> 0 | AP10: =AO10/(AQ4-AO8) -> 0 | AQ10: =IF(AP10=0,0,(AP10*((LOG(AP10))/LOG(2)))) -> 0 | AS10: =N10 -> 122 | AT10: =COUNTIF(L7:L8,AS10) -> 0 | AU10: =AT10/(AV4-AT8) -> 0 | AV10: =IF(AU10=0,0,(AU10*((LOG(AU10))/LOG(2)))) -> 0
N11: 211 | O11: =COUNTIF($L$7:$L$500,N11) -> 0 | P11: =O11/$Q$4 -> 0 | Q11: =IF(P11=0,0,(P11*((LOG(P11))/LOG(2)))) -> 0 | T11: =N11 -> 211 | U11: =COUNTIF(L6:L7,T11) -> 0 | V11: =U11/(W4-U8) -> 0 | W11: =IF(V11=0,0,(V11*((LOG(V11))/LOG(2)))) -> 0 | Y11: =N11 -> 211 | Z11: =COUNTIF(L6:L7,Y11) -> 0 | AA11: =Z11/(AB4-Z8) -> 0 | AB11: =IF(AA11=0,0,(AA11*((LOG(AA11))/LOG(2)))) -> 0 | AD11: =N11 -> 211 | AE11: =COUNTIF(L7:L7,AD11) -> 0 | AF11: =AE11/(AG4-AE8) -> 0 | AG11: =IF(AF11=0,0,(AF11*((LOG(AF11))/LOG(2)))) -> 0 | AI11: =N11 -> 211 | AJ11: =COUNTIF(L7:L8,AI11) -> 0 | AK11: =AJ11/(AL4-AJ8) -> 0 | AL11: =IF(AK11=0,0,(AK11*((LOG(AK11))/LOG(2)))) -> 0 | AN11: =N11 -> 211 | AO11: =COUNTIF(L7:L8,AN11) -> 0 | AP11: =AO11/(AQ4-AO8) -> 0 | AQ11: =IF(AP11=0,0,(AP11*((LOG(AP11))/LOG(2)))) -> 0 | AS11: =N11 -> 211 | AT11: =COUNTIF(L7:L8,AS11) -> 0 | AU11: =AT11/(AV4-AT8) -> 0 | AV11: =IF(AU11=0,0,(AU11*((LOG(AU11))/LOG(2)))) -> 0
N12: 212 | O12: =COUNTIF($L$7:$L$500,N12) -> 0 | P12: =O12/$Q$4 -> 0 | Q12: =IF(P12=0,0,(P12*((LOG(P12))/LOG(2)))) -> 0 | T12: =N12 -> 212 | U12: =COUNTIF(L6:L7,T12) -> 0 | V12: =U12/(W4-U8) -> 0 | W12: =IF(V12=0,0,(V12*((LOG(V12))/LOG(2)))) -> 0 | Y12: =N12 -> 212 | Z12: =COUNTIF(L6:L7,Y12) -> 0 | AA12: =Z12/(AB4-Z8) -> 0 | AB12: =IF(AA12=0,0,(AA12*((LOG(AA12))/LOG(2)))) -> 0 | AD12: =N12 -> 212 | AE12: =COUNTIF(L7:L7,AD12) -> 0 | AF12: =AE12/(AG4-AE8) -> 0 | AG12: =IF(AF12=0,0,(AF12*((LOG(AF12))/LOG(2)))) -> 0 | AI12: =N12 -> 212 | AJ12: =COUNTIF(L7:L8,AI12) -> 0 | AK12: =AJ12/(AL4-AJ8) -> 0 | AL12: =IF(AK12=0,0,(AK12*((LOG(AK12))/LOG(2)))) -> 0 | AN12: =N12 -> 212 | AO12: =COUNTIF(L7:L8,AN12) -> 0 | AP12: =AO12/(AQ4-AO8) -> 0 | AQ12: =IF(AP12=0,0,(AP12*((LOG(AP12))/LOG(2)))) -> 0 | AS12: =N12 -> 212 | AT12: =COUNTIF(L7:L8,AS12) -> 0 | AU12: =AT12/(AV4-AT8) -> 0 | AV12: =IF(AU12=0,0,(AU12*((LOG(AU12))/LOG(2)))) -> 0
N13: 221 | O13: =COUNTIF($L$7:$L$500,N13) -> 0 | P13: =O13/$Q$4 -> 0 | Q13: =IF(P13=0,0,(P13*((LOG(P13))/LOG(2)))) -> 0 | T13: =N13 -> 221 | U13: =COUNTIF(L6:L7,T13) -> 0 | V13: =U13/(W4-U8) -> 0 | W13: =IF(V13=0,0,(V13*((LOG(V13))/LOG(2)))) -> 0 | Y13: =N13 -> 221 | Z13: =COUNTIF(L6:L7,Y13) -> 0 | AA13: =Z13/(AB4-Z8) -> 0 | AB13: =IF(AA13=0,0,(AA13*((LOG(AA13))/LOG(2)))) -> 0 | AD13: =N13 -> 221 | AE13: =COUNTIF(L7:L7,AD13) -> 0 | AF13: =AE13/(AG4-AE8) -> 0 | AG13: =IF(AF13=0,0,(AF13*((LOG(AF13))/LOG(2)))) -> 0 | AI13: =N13 -> 221 | AJ13: =COUNTIF(L7:L8,AI13) -> 0 | AK13: =AJ13/(AL4-AJ8) -> 0 | AL13: =IF(AK13=0,0,(AK13*((LOG(AK13))/LOG(2)))) -> 0 | AN13: =N13 -> 221 | AO13: =COUNTIF(L7:L8,AN13) -> 0 | AP13: =AO13/(AQ4-AO8) -> 0 | AQ13: =IF(AP13=0,0,(AP13*((LOG(AP13))/LOG(2)))) -> 0 | AS13: =N13 -> 221 | AT13: =COUNTIF(L7:L8,AS13) -> 0 | AU13: =AT13/(AV4-AT8) -> 0 | AV13: =IF(AU13=0,0,(AU13*((LOG(AU13))/LOG(2)))) -> 0
N14: 222 | O14: =COUNTIF($L$7:$L$500,N14) -> 0 | P14: =O14/$Q$4 -> 0 | Q14: =IF(P14=0,0,(P14*((LOG(P14))/LOG(2)))) -> 0 | T14: =N14 -> 222 | U14: =COUNTIF(L6:L7,T14) -> 0 | V14: =U14/(W4-U8) -> 0 | W14: =IF(V14=0,0,(V14*((LOG(V14))/LOG(2)))) -> 0 | Y14: =N14 -> 222 | Z14: =COUNTIF(L6:L7,Y14) -> 0 | AA14: =Z14/(AB4-Z8) -> 0 | AB14: =IF(AA14=0,0,(AA14*((LOG(AA14))/LOG(2)))) -> 0 | AD14: =N14 -> 222 | AE14: =COUNTIF(L7:L7,AD14) -> 0 | AF14: =AE14/(AG4-AE8) -> 0 | AG14: =IF(AF14=0,0,(AF14*((LOG(AF14))/LOG(2)))) -> 0 | AI14: =N14 -> 222 | AJ14: =COUNTIF(L7:L8,AI14) -> 0 | AK14: =AJ14/(AL4-AJ8) -> 0 | AL14: =IF(AK14=0,0,(AK14*((LOG(AK14))/LOG(2)))) -> 0 | AN14: =N14 -> 222 | AO14: =COUNTIF(L7:L8,AN14) -> 0 | AP14: =AO14/(AQ4-AO8) -> 0 | AQ14: =IF(AP14=0,0,(AP14*((LOG(AP14))/LOG(2)))) -> 0 | AS14: =N14 -> 222 | AT14: =COUNTIF(L7:L8,AS14) -> 0 | AU14: =AT14/(AV4-AT8) -> 0 | AV14: =IF(AU14=0,0,(AU14*((LOG(AU14))/LOG(2)))) -> 0
P15: =SUM(P7:P14) -> 1 | Q15: =-SUM(Q7:Q14) -> 0 | V15: =SUM(V7:V14) -> 1 | W15: =-SUM(W7:W14) -> 0 | AA15: =SUM(AA7:AA14) -> 1 | AB15: =-SUM(AB7:AB14) -> 0 | AF15: =SUM(AF7:AF14) -> 1 | AG15: =-SUM(AG7:AG14) -> 0 | AK15: =SUM(AK7:AK14) -> 1 | AL15: =-SUM(AL7:AL14) -> 0 | AP15: =SUM(AP7:AP14) -> 1 | AQ15: =-SUM(AQ7:AQ14) -> 0 | AU15: =SUM(AU7:AU14) -> 1 | AV15: =-SUM(AV7:AV14) -> 0
P16: U= | Q16: =Q15/(LOG(Q4)/LOG(2)) ->  | V16: U1= | W16: =W15/(LOG(W4)/LOG(2)) ->  | AA16: U2= | AB16: =AB15/(LOG(AB4)/LOG(2)) ->  | AF16: U3= | AG16: =AG15/(LOG(AG4)/LOG(2)) ->  | AK16: U4= | AL16: =AL15/(LOG(AL4)/LOG(2)) ->  | AP16: U5= | AQ16: =AQ15/(LOG(AQ4)/LOG(2)) ->  | AU16: U6= | AV16: =AV15/(LOG(AV4)/LOG(2)) -> 
N19: Total Target Seq
N20: =COUNTIF(L7:L7,G3) -> 0 | P20: 0 | Q20: 0 | R20: 1 | S20: 0 | T20: 0 | U20: 0
P21: % of reinforcement given in 6 equal intervals based on number of trials
P22: %_1 | Q22: %_2 | R22: %_3 | S22: %_4 | T22: %_5 | U22: %_6
O23: target sequence | P23: =$G$3 -> 112 | Q23: =$G$3 -> 112 | R23: =$G$3 -> 112 | S23: =$G$3 -> 112 | T23: =$G$3 -> 112 | U23: =$G$3 -> 112
O24: total reinforcement | P24: =U8 -> 0 | Q24: =Z8 -> 0 | R24: =AE8 -> 0 | S24: =AJ8 -> 0 | T24: =AO8 -> 0 | U24: =AT8 -> 0
O25: % target
O26: CCRF
O27: % CCRf
O28: average response rate | P28: =F6/P20 ->  | Q28: =(F6-F6)/Q20 ->  | R28: =(F7-F6)/R20 ->  | S28: =(F7-F7)/S20 ->  | T28: =(F7-F7)/T20 ->  | U28: =(F7-F7)/U20 -> 

Sheet !N42385B.AXT
A1: Report for:!N42385B.AXT
A2: Date: | B2: <date>
A3: Hen: | B3: <hen> | F3: Correct Sequence | G3: =Start!J2 -> 112 | P3: Total Sequences in Data | Q3: =4994-COUNTBLANK(L7:L5000) -> 0 | V3: Total Sequences in Block Data | W3: =COUNTA(L6:L7) -> 1 | AA3: Total Sequences in Block Data | AB3: =COUNTA(L6:L7) -> 1 | AF3: Total Sequences in Block Data | AG3: =COUNTA(L6:L7) -> 1 | AK3: Total Sequences in Block Data | AL3: =COUNTA(L6:L7) -> 1 | AP3: Total Sequences in Block Data | AQ3: =COUNTA(L6:L7) -> 1 | AU3: Total Sequences in Block Data | AV3: =COUNTA(L6:L7) -> 1
P4: Total Sequences in Summary | Q4: =SUM(O7:O14) -> 0 | V4: Total Sequences in Block Summary | W4: =SUM(U7:U14) -> 0 | AA4: Total Sequences in Block Summary | AB4: =SUM(Z7:Z14) -> 0 | AF4: Total Sequences in Block Summary | AG4: =SUM(AE7:AE14) -> 0 | AK4: Total Sequences in Block Summary | AL4: =SUM(AJ7:AJ14) -> 0 | AP4: Total Sequences in Block Summary | AQ4: =SUM(AO7:AO14) -> 0 | AU4: Total Sequences in Block Summary | AV4: =SUM(AT7:AT14) -> 0
T5: Block 1 | Y5: Block 2 | AD5: Block 3 | AI5: Block 4 | AN5: Block 5 | AS5: Block 6
A6: Sequence Component 1 | B6: Time 1 | C6: Sequence Component 2 | D6: Time 2 | E6: Sequence Component 3 | F6: Time 3 | G6: Sequence Component 4 | H6: Time 4 | I6: Sequence Component 5 | J6: Time 5 | K6: Correct? 0=No 1=Yes | L6: Sequence | N6: Frequency | P6: Relative Frequency | Q6: Variability | T6: Frequency | V6: Relative Frequency | W6: Variability | Y6: Frequency | AA6: Relative Frequency | AB6: Variability | AD6: Frequency | AF6: Relative Frequency | AG6: Variability | AI6: Frequency | AK6: Relative Frequency | AL6: Variability | AN6: Frequency | AP6: Relative Frequency | AQ6: Variability | AS6: Frequency | AU6: Relative Frequency | AV6: Variability
N7: 111 | O7: =COUNTIF($L$7:$L$500,N7) -> 0 | P7: =O7/$Q$4 ->  | Q7: =IF(P7=0,0,(P7*((LOG(P7))/LOG(2)))) ->  | T7: =N7 -> 111 | U7: =COUNTIF(L6:L7,T7) -> 0 | V7: =U7/(W4-U8) ->  | W7: =IF(V7=0,0,(V7*((LOG(V7))/LOG(2)))) ->  | Y7: =N7 -> 111 | Z7: =COUNTIF(L6:L7,Y7) -> 0 | AA7: =Z7/(AB4-Z8) ->  | AB7: =IF(AA7=0,0,(AA7*((LOG(AA7))/LOG(2)))) ->  | AD7: =N7 -> 111 | AE7: =COUNTIF(L6:L7,AD7) -> 0 | AF7: =AE7/(AG4-AE8) ->  | AG7: =IF(AF7=0,0,(AF7*((LOG(AF7))/LOG(2)))) ->  | AI7: =N7 -> 111 | AJ7: =COUNTIF(L6:L7,AI7) -> 0 | AK7: =AJ7/(AL4-AJ8) ->  | AL7: =IF(AK7=0,0,(AK7*((LOG(AK7))/LOG(2)))) ->  | AN7: =N7 -> 111 | AO7: =COUNTIF(L6:L7,AN7) -> 0 | AP7: =AO7/(AQ4-AO8) ->  | AQ7: =IF(AP7=0,0,(AP7*((LOG(AP7))/LOG(2)))) ->  | AS7: =N7 -> 111 | AT7: =COUNTIF(L6:L7,AS7) -> 0 | AU7: =AT7/(AV4-AT8) ->  | AV7: =IF(AU7=0,0,(AU7*((LOG(AU7))/LOG(2)))) -> 
N8: 112 | O8: =COUNTIF($L$7:$L$500,N8) -> 0 | P8: =O8/$Q$4 ->  | Q8: =IF(P8=0,0,(P8*((LOG(P8))/LOG(2)))) ->  | T8: =N8 -> 112 | U8: =COUNTIF(L6:L7,T8) -> 0 | Y8: =N8 -> 112 | Z8: =COUNTIF(L6:L7,Y8) -> 0 | AD8: =N8 -> 112 | AE8: =COUNTIF(L6:L7,AD8) -> 0 | AI8: =N8 -> 112 | AJ8: =COUNTIF(L6:L7,AI8) -> 0 | AN8: =N8 -> 112 | AO8: =COUNTIF(L6:L7,AN8) -> 0 | AS8: =N8 -> 112 | AT8: =COUNTIF(L6:L7,AS8) -> 0
N9: 121 | O9: =COUNTIF($L$7:$L$500,N9) -> 0 | P9: =O9/$Q$4 ->  | Q9: =IF(P9=0,0,(P9*((LOG(P9))/LOG(2)))) ->  | T9: =N9 -> 121 | U9: =COUNTIF(L6:L7,T9) -> 0 | V9: =U9/(W4-U8) ->  | W9: =IF(V9=0,0,(V9*((LOG(V9))/LOG(2)))) ->  | Y9: =N9 -> 121 | Z9: =COUNTIF(L6:L7,Y9) -> 0 | AA9: =Z9/(AB4-Z8) ->  | AB9: =IF(AA9=0,0,(AA9*((LOG(AA9))/LOG(2)))) ->  | AD9: =N9 -> 121 | AE9: =COUNTIF(L6:L7,AD9) -> 0 | AF9: =AE9/(AG4-AE8) ->  | AG9: =IF(AF9=0,0,(AF9*((LOG(AF9))/LOG(2)))) ->  | AI9: =N9 -> 121 | AJ9: =COUNTIF(L6:L7,AI9) -> 0 | AK9: =AJ9/(AL4-AJ8) ->  | AL9: =IF(AK9=0,0,(AK9*((LOG(AK9))/LOG(2)))) ->  | AN9: =N9 -> 121 | AO9: =COUNTIF(L6:L7,AN9) -> 0 | AP9: =AO9/(AQ4-AO8) ->  | AQ9: =IF(AP9=0,0,(AP9*((LOG(AP9))/LOG(2)))) ->  | AS9: =N9 -> 121 | AT9: =COUNTIF(L6:L7,AS9) -> 0 | AU9: =AT9/(AV4-AT8) ->  | AV9: =IF(AU9=0,0,(AU9*((LOG(AU9))/LOG(2)))) -> 
N10: 122 | O10: =COUNTIF($L$7:$L$500,N10) -> 0 | P10: =O10/$Q$4 ->  | Q10: =IF(P10=0,0,(P10*((LOG(P10))/LOG(2)))) ->  | T10: =N10 -> 122 | U10: =COUNTIF(L6:L7,T10) -> 0 | V10: =U10/(W4-U8) ->  | W10: =IF(V10=0,0,(V10*((LOG(V10))/LOG(2)))) ->  | Y10: =N10 -> 122 | Z10: =COUNTIF(L6:L7,Y10) -> 0 | AA10: =Z10/(AB4-Z8) ->  | AB10: =IF(AA10=0,0,(AA10*((LOG(AA10))/LOG(2)))) ->  | AD10: =N10 -> 122 | AE10: =COUNTIF(L6:L7,AD10) -> 0 | AF10: =AE10/(AG4-AE8) ->  | AG10: =IF(AF10=0,0,(AF10*((LOG(AF10))/LOG(2)))) ->  | AI10: =N10 -> 122 | AJ10: =COUNTIF(L6:L7,AI10) -> 0 | AK10: =AJ10/(AL4-AJ8) ->  | AL10: =IF(AK10=0,0,(AK10*((LOG(AK10))/LOG(2)))) ->  | AN10: =N10 -> 122 | AO10: =COUNTIF(L6:L7,AN10) -> 0 | AP10: =AO10/(AQ4-AO8) ->  | AQ10: =IF(AP10=0,0,(AP10*((LOG(AP10))/LOG(2)))) ->  | AS10: =N10 -> 122 | AT10: =COUNTIF(L6:L7,AS10) -> 0 | AU10: =AT10/(AV4-AT8) ->  | AV10: =IF(AU10=0,0,(AU10*((LOG(AU10))/LOG(2)))) -> 
N11: 211 | O11: =COUNTIF($L$7:$L$500,N11) -> 0 | P11: =O11/$Q$4 ->  | Q11: =IF(P11=0,0,(P11*((LOG(P11))/LOG(2)))) ->  | T11: =N11 -> 211 | U11: =COUNTIF(L6:L7,T11) -> 0 | V11: =U11/(W4-U8) ->  | W11: =IF(V11=0,0,(V11*((LOG(V11))/LOG(2)))) ->  | Y11: =N11 -> 211 | Z11: =COUNTIF(L6:L7,Y11) -> 0 | AA11: =Z11/(AB4-Z8) ->  | AB11: =IF(AA11=0,0,(AA11*((LOG(AA11))/LOG(2)))) ->  | AD11: =N11 -> 211 | AE11: =COUNTIF(L6:L7,AD11) -> 0 | AF11: =AE11/(AG4-AE8) ->  | AG11: =IF(AF11=0,0,(AF11*((LOG(AF11))/LOG(2)))) ->  | AI11: =N11 -> 211 | AJ11: =COUNTIF(L6:L7,AI11) -> 0 | AK11: =AJ11/(AL4-AJ8) ->  | AL11: =IF(AK11=0,0,(AK11*((LOG(AK11))/LOG(2)))) ->  | AN11: =N11 -> 211 | AO11: =COUNTIF(L6:L7,AN11) -> 0 | AP11: =AO11/(AQ4-AO8) ->  | AQ11: =IF(AP11=0,0,(AP11*((LOG(AP11))/LOG(2)))) ->  | AS11: =N11 -> 211 | AT11: =COUNTIF(L6:L7,AS11) -> 0 | AU11: =AT11/(AV4-AT8) ->  | AV11: =IF(AU11=0,0,(AU11*((LOG(AU11))/LOG(2)))) -> 
N12: 212 | O12: =COUNTIF($L$7:$L$500,N12) -> 0 | P12: =O12/$Q$4 ->  | Q12: =IF(P12=0,0,(P12*((LOG(P12))/LOG(2)))) ->  | T12: =N12 -> 212 | U12: =COUNTIF(L6:L7,T12) -> 0 | V12: =U12/(W4-U8) ->  | W12: =IF(V12=0,0,(V12*((LOG(V12))/LOG(2)))) ->  | Y12: =N12 -> 212 | Z12: =COUNTIF(L6:L7,Y12) -> 0 | AA12: =Z12/(AB4-Z8) ->  | AB12: =IF(AA12=0,0,(AA12*((LOG(AA12))/LOG(2)))) ->  | AD12: =N12 -> 212 | AE12: =COUNTIF(L6:L7,AD12) -> 0 | AF12: =AE12/(AG4-AE8) ->  | AG12: =IF(AF12=0,0,(AF12*((LOG(AF12))/LOG(2)))) ->  | AI12: =N12 -> 212 | AJ12: =COUNTIF(L6:L7,AI12) -> 0 | AK12: =AJ12/(AL4-AJ8) ->  | AL12: =IF(AK12=0,0,(AK12*((LOG(AK12))/LOG(2)))) ->  | AN12: =N12 -> 212 | AO12: =COUNTIF(L6:L7,AN12) -> 0 | AP12: =AO12/(AQ4-AO8) ->  | AQ12: =IF(AP12=0,0,(AP12*((LOG(AP12))/LOG(2)))) ->  | AS12: =N12 -> 212 | AT12: =COUNTIF(L6:L7,AS12) -> 0 | AU12: =AT12/(AV4-AT8) ->  | AV12: =IF(AU12=0,0,(AU12*((LOG(AU12))/LOG(2)))) -> 
N13: 221 | O13: =COUNTIF($L$7:$L$500,N13) -> 0 | P13: =O13/$Q$4 ->  | Q13: =IF(P13=0,0,(P13*((LOG(P13))/LOG(2)))) ->  | T13: =N13 -> 221 | U13: =COUNTIF(L6:L7,T13) -> 0 | V13: =U13/(W4-U8) ->  | W13: =IF(V13=0,0,(V13*((LOG(V13))/LOG(2)))) ->  | Y13: =N13 -> 221 | Z13: =COUNTIF(L6:L7,Y13) -> 0 | AA13: =Z13/(AB4-Z8) ->  | AB13: =IF(AA13=0,0,(AA13*((LOG(AA13))/LOG(2)))) ->  | AD13: =N13 -> 221 | AE13: =COUNTIF(L6:L7,AD13) -> 0 | AF13: =AE13/(AG4-AE8) ->  | AG13: =IF(AF13=0,0,(AF13*((LOG(AF13))/LOG(2)))) ->  | AI13: =N13 -> 221 | AJ13: =COUNTIF(L6:L7,AI13) -> 0 | AK13: =AJ13/(AL4-AJ8) ->  | AL13: =IF(AK13=0,0,(AK13*((LOG(AK13))/LOG(2)))) ->  | AN13: =N13 -> 221 | AO13: =COUNTIF(L6:L7,AN13) -> 0 | AP13: =AO13/(AQ4-AO8) ->  | AQ13: =IF(AP13=0,0,(AP13*((LOG(AP13))/LOG(2)))) ->  | AS13: =N13 -> 221 | AT13: =COUNTIF(L6:L7,AS13) -> 0 | AU13: =AT13/(AV4-AT8) ->  | AV13: =IF(AU13=0,0,(AU13*((LOG(AU13))/LOG(2)))) -> 
N14: 222 | O14: =COUNTIF($L$7:$L$500,N14) -> 0 | P14: =O14/$Q$4 ->  | Q14: =IF(P14=0,0,(P14*((LOG(P14))/LOG(2)))) ->  | T14: =N14 -> 222 | U14: =COUNTIF(L6:L7,T14) -> 0 | V14: =U14/(W4-U8) ->  | W14: =IF(V14=0,0,(V14*((LOG(V14))/LOG(2)))) ->  | Y14: =N14 -> 222 | Z14: =COUNTIF(L6:L7,Y14) -> 0 | AA14: =Z14/(AB4-Z8) ->  | AB14: =IF(AA14=0,0,(AA14*((LOG(AA14))/LOG(2)))) ->  | AD14: =N14 -> 222 | AE14: =COUNTIF(L6:L7,AD14) -> 0 | AF14: =AE14/(AG4-AE8) ->  | AG14: =IF(AF14=0,0,(AF14*((LOG(AF14))/LOG(2)))) ->  | AI14: =N14 -> 222 | AJ14: =COUNTIF(L6:L7,AI14) -> 0 | AK14: =AJ14/(AL4-AJ8) ->  | AL14: =IF(AK14=0,0,(AK14*((LOG(AK14))/LOG(2)))) ->  | AN14: =N14 -> 222 | AO14: =COUNTIF(L6:L7,AN14) -> 0 | AP14: =AO14/(AQ4-AO8) ->  | AQ14: =IF(AP14=0,0,(AP14*((LOG(AP14))/LOG(2)))) ->  | AS14: =N14 -> 222 | AT14: =COUNTIF(L6:L7,AS14) -> 0 | AU14: =AT14/(AV4-AT8) ->  | AV14: =IF(AU14=0,0,(AU14*((LOG(AU14))/LOG(2)))) -> 
P15: =SUM(P7:P14) ->  | Q15: =-SUM(Q7:Q14) ->  | V15: =SUM(V7:V14) ->  | W15: =-SUM(W7:W14) ->  | AA15: =SUM(AA7:AA14) ->  | AB15: =-SUM(AB7:AB14) ->  | AF15: =SUM(AF7:AF14) ->  | AG15: =-SUM(AG7:AG14) ->  | AK15: =SUM(AK7:AK14) ->  | AL15: =-SUM(AL7:AL14) ->  | AP15: =SUM(AP7:AP14) ->  | AQ15: =-SUM(AQ7:AQ14) ->  | AU15: =SUM(AU7:AU14) ->  | AV15: =-SUM(AV7:AV14) -> 
P16: U= | Q16: =Q15/(LOG(Q4)/LOG(2)) ->  | V16: U1= | W16: =W15/(LOG(W4)/LOG(2)) ->  | AA16: U2= | AB16: =AB15/(LOG(AB4)/LOG(2)) ->  | AF16: U3= | AG16: =AG15/(LOG(AG4)/LOG(2)) ->  | AK16: U4= | AL16: =AL15/(LOG(AL4)/LOG(2)) ->  | AP16: U5= | AQ16: =AQ15/(LOG(AQ4)/LOG(2)) ->  | AU16: U6= | AV16: =AV15/(LOG(AV4)/LOG(2)) -> 
N19: Total Target Seq
N20: =COUNTIF(L6:L7,G3) -> 0 | P20: 0 | Q20: 0 | R20: 0 | S20: 0 | T20: 0 | U20: 0
P21: % of reinforcement given in 6 equal intervals based on number of trials
P22: %_1 | Q22: %_2 | R22: %_3 | S22: %_4 | T22: %_5 | U22: %_6
O23: target sequence | P23: =$G$3 -> 112 | Q23: =$G$3 -> 112 | R23: =$G$3 -> 112 | S23: =$G$3 -> 112 | T23: =$G$3 -> 112 | U23: =$G$3 -> 112
O24: total reinforcement | P24: =U8 -> 0 | Q24: =Z8 -> 0 | R24: =AE8 -> 0 | S24: =AJ8 -> 0 | T24: =AO8 -> 0 | U24: =AT8 -> 0
O25: % target
O26: CCRF
O27: % CCRf
O28: average response rate | P28: =F6/P20 ->  | Q28: =(F6-F6)/Q20 ->  | R28: =(F6-F6)/R20 ->  | S28: =(F6-F6)/S20 ->  | T28: =(F6-F6)/T20 ->  | U28: =(F6-F6)/U20 -> 

Sheet !N424A4B.AXT
A1: Report for:!N424A4B.AXT
A2: Date: | B2: <date>
A3: Hen: | B3: <hen> | F3: Correct Sequence | G3: =Start!J2 -> 112 | P3: Total Sequences in Data | Q3: =4994-COUNTBLANK(L7:L5000) -> 1 | V3: Total Sequences in Block Data | W3: =COUNTA(L6:L7) -> 2 | AA3: Total Sequences in Block Data | AB3: =COUNTA(L6:L7) -> 2 | AF3: Total Sequences in Block Data | AG3: =COUNTA(L7:L7) -> 1 | AK3: Total Sequences in Block Data | AL3: =COUNTA(L7:L8) -> 1 | AP3: Total Sequences in Block Data | AQ3: =COUNTA(L7:L8) -> 1 | AU3: Total Sequences in Block Data | AV3: =COUNTA(L7:L8) -> 1
P4: Total Sequences in Summary | Q4: =SUM(O7:O14) -> 0 | V4: Total Sequences in Block Summary | W4: =SUM(U7:U14) -> 0 | AA4: Total Sequences in Block Summary | AB4: =SUM(Z7:Z14) -> 0 | AF4: Total Sequences in Block Summary | AG4: =SUM(AE7:AE14) -> 0 | AK4: Total Sequences in Block Summary | AL4: =SUM(AJ7:AJ14) -> 0 | AP4: Total Sequences in Block Summary | AQ4: =SUM(AO7:AO14) -> 0 | AU4: Total Sequences in Block Summary | AV4: =SUM(AT7:AT14) -> 0
T5: Block 1 | Y5: Block 2 | AD5: Block 3 | AI5: Block 4 | AN5: Block 5 | AS5: Block 6
A6: Sequence Component 1 | B6: Time 1 | C6: Sequence Component 2 | D6: Time 2 | E6: Sequence Component 3 | F6: Time 3 | G6: Sequence Component 4 | H6: Time 4 | I6: Sequence Component 5 | J6: Time 5 | K6: Correct? 0=No 1=Yes | L6: Sequence | N6: Frequency | P6: Relative Frequency | Q6: Variability | T6: Frequency | V6: Relative Frequency | W6: Variability | Y6: Frequency | AA6: Relative Frequency | AB6: Variability | AD6: Frequency | AF6: Relative Frequency | AG6: Variability | AI6: Frequency | AK6: Relative Frequency | AL6: Variability | AN6: Frequency | AP6: Relative Frequency | AQ6: Variability | AS6: Frequency | AU6: Relative Frequency | AV6: Variability
A7: 22 | B7: 14615 | L7: 2 | N7: 111 | O7: =COUNTIF($L$7:$L$500,N7) -> 0 | P7: =O7/$Q$4 ->  | Q7: =IF(P7=0,0,(P7*((LOG(P7))/LOG(2)))) ->  | T7: =N7 -> 111 | U7: =COUNTIF(L6:L7,T7) -> 0 | V7: =U7/(W4-U8) ->  | W7: =IF(V7=0,0,(V7*((LOG(V7))/LOG(2)))) ->  | Y7: =N7 -> 111 | Z7: =COUNTIF(L6:L7,Y7) -> 0 | AA7: =Z7/(AB4-Z8) ->  | AB7: =IF(AA7=0,0,(AA7*((LOG(AA7))/LOG(2)))) ->  | AD7: =N7 -> 111 | AE7: =COUNTIF(L7:L7,AD7) -> 0 | AF7: =AE7/(AG4-AE8) ->  | AG7: =IF(AF7=0,0,(AF7*((LOG(AF7))/LOG(2)))) ->  | AI7: =N7 -> 111 | AJ7: =COUNTIF(L7:L8,AI7) -> 0 | AK7: =AJ7/(AL4-AJ8) ->  | AL7: =IF(AK7=0,0,(AK7*((LOG(AK7))/LOG(2)))) ->  | AN7: =N7 -> 111 | AO7: =COUNTIF(L7:L8,AN7) -> 0 | AP7: =AO7/(AQ4-AO8) ->  | AQ7: =IF(AP7=0,0,(AP7*((LOG(AP7))/LOG(2)))) ->  | AS7: =N7 -> 111 | AT7: =COUNTIF(L7:L8,AS7) -> 0 | AU7: =AT7/(AV4-AT8) ->  | AV7: =IF(AU7=0,0,(AU7*((LOG(AU7))/LOG(2)))) -> 
N8: 112 | O8: =COUNTIF($L$7:$L$500,N8) -> 0 | P8: =O8/$Q$4 ->  | Q8: =IF(P8=0,0,(P8*((LOG(P8))/LOG(2)))) ->  | T8: =N8 -> 112 | U8: =COUNTIF(L6:L7,T8) -> 0 | Y8: =N8 -> 112 | Z8: =COUNTIF(L6:L7,Y8) -> 0 | AD8: =N8 -> 112 | AE8: =COUNTIF(L7:L7,AD8) -> 0 | AI8: =N8 -> 112 | AJ8: =COUNTIF(L7:L8,AI8) -> 0 | AN8: =N8 -> 112 | AO8: =COUNTIF(L7:L8,AN8) -> 0 | AS8: =N8 -> 112 | AT8: =COUNTIF(L7:L8,AS8) -> 0
N9: 121 | O9: =COUNTIF($L$7:$L$500,N9) -> 0 | P9: =O9/$Q$4 ->  | Q9: =IF(P9=0,0,(P9*((LOG(P9))/LOG(2)))) ->  | T9: =N9 -> 121 | U9: =COUNTIF(L6:L7,T9) -> 0 | V9: =U9/(W4-U8) ->  | W9: =IF(V9=0,0,(V9*((LOG(V9))/LOG(2)))) ->  | Y9: =N9 -> 121 | Z9: =COUNTIF(L6:L7,Y9) -> 0 | AA9: =Z9/(AB4-Z8) ->  | AB9: =IF(AA9=0,0,(AA9*((LOG(AA9))/LOG(2)))) ->  | AD9: =N9 -> 121 | AE9: =COUNTIF(L7:L7,AD9) -> 0 | AF9: =AE9/(AG4-AE8) ->  | AG9: =IF(AF9=0,0,(AF9*((LOG(AF9))/LOG(2)))) ->  | AI9: =N9 -> 121 | AJ9: =COUNTIF(L7:L8,AI9) -> 0 | AK9: =AJ9/(AL4-AJ8) ->  | AL9: =IF(AK9=0,0,(AK9*((LOG(AK9))/LOG(2)))) ->  | AN9: =N9 -> 121 | AO9: =COUNTIF(L7:L8,AN9) -> 0 | AP9: =AO9/(AQ4-AO8) ->  | AQ9: =IF(AP9=0,0,(AP9*((LOG(AP9))/LOG(2)))) ->  | AS9: =N9 -> 121 | AT9: =COUNTIF(L7:L8,AS9) -> 0 | AU9: =AT9/(AV4-AT8) ->  | AV9: =IF(AU9=0,0,(AU9*((LOG(AU9))/LOG(2)))) -> 
N10: 122 | O10: =COUNTIF($L$7:$L$500,N10) -> 0 | P10: =O10/$Q$4 ->  | Q10: =IF(P10=0,0,(P10*((LOG(P10))/LOG(2)))) ->  | T10: =N10 -> 122 | U10: =COUNTIF(L6:L7,T10) -> 0 | V10: =U10/(W4-U8) ->  | W10: =IF(V10=0,0,(V10*((LOG(V10))/LOG(2)))) ->  | Y10: =N10 -> 122 | Z10: =COUNTIF(L6:L7,Y10) -> 0 | AA10: =Z10/(AB4-Z8) ->  | AB10: =IF(AA10=0,0,(AA10*((LOG(AA10))/LOG(2)))) ->  | AD10: =N10 -> 122 | AE10: =COUNTIF(L7:L7,AD10) -> 0 | AF10: =AE10/(AG4-AE8) ->  | AG10: =IF(AF10=0,0,(AF10*((LOG(AF10))/LOG(2)))) ->  | AI10: =N10 -> 122 | AJ10: =COUNTIF(L7:L8,AI10) -> 0 | AK10: =AJ10/(AL4-AJ8) ->  | AL10: =IF(AK10=0,0,(AK10*((LOG(AK10))/LOG(2)))) ->  | AN10: =N10 -> 122 | AO10: =COUNTIF(L7:L8,AN10) -> 0 | AP10: =AO10/(AQ4-AO8) ->  | AQ10: =IF(AP10=0,0,(AP10*((LOG(AP10))/LOG(2)))) ->  | AS10: =N10 -> 122 | AT10: =COUNTIF(L7:L8,AS10) -> 0 | AU10: =AT10/(AV4-AT8) ->  | AV10: =IF(AU10=0,0,(AU10*((LOG(AU10))/LOG(2)))) -> 
N11: 211 | O11: =COUNTIF($L$7:$L$500,N11) -> 0 | P11: =O11/$Q$4 ->  | Q11: =IF(P11=0,0,(P11*((LOG(P11))/LOG(2)))) ->  | T11: =N11 -> 211 | U11: =COUNTIF(L6:L7,T11) -> 0 | V11: =U11/(W4-U8) ->  | W11: =IF(V11=0,0,(V11*((LOG(V11))/LOG(2)))) ->  | Y11: =N11 -> 211 | Z11: =COUNTIF(L6:L7,Y11) -> 0 | AA11: =Z11/(AB4-Z8) ->  | AB11: =IF(AA11=0,0,(AA11*((LOG(AA11))/LOG(2)))) ->  | AD11: =N11 -> 211 | AE11: =COUNTIF(L7:L7,AD11) -> 0 | AF11: =AE11/(AG4-AE8) ->  | AG11: =IF(AF11=0,0,(AF11*((LOG(AF11))/LOG(2)))) ->  | AI11: =N11 -> 211 | AJ11: =COUNTIF(L7:L8,AI11) -> 0 | AK11: =AJ11/(AL4-AJ8) ->  | AL11: =IF(AK11=0,0,(AK11*((LOG(AK11))/LOG(2)))) ->  | AN11: =N11 -> 211 | AO11: =COUNTIF(L7:L8,AN11) -> 0 | AP11: =AO11/(AQ4-AO8) ->  | AQ11: =IF(AP11=0,0,(AP11*((LOG(AP11))/LOG(2)))) ->  | AS11: =N11 -> 211 | AT11: =COUNTIF(L7:L8,AS11) -> 0 | AU11: =AT11/(AV4-AT8) ->  | AV11: =IF(AU11=0,0,(AU11*((LOG(AU11))/LOG(2)))) -> 
N12: 212 | O12: =COUNTIF($L$7:$L$500,N12) -> 0 | P12: =O12/$Q$4 ->  | Q12: =IF(P12=0,0,(P12*((LOG(P12))/LOG(2)))) ->  | T12: =N12 -> 212 | U12: =COUNTIF(L6:L7,T12) -> 0 | V12: =U12/(W4-U8) ->  | W12: =IF(V12=0,0,(V12*((LOG(V12))/LOG(2)))) ->  | Y12: =N12 -> 212 | Z12: =COUNTIF(L6:L7,Y12) -> 0 | AA12: =Z12/(AB4-Z8) ->  | AB12: =IF(AA12=0,0,(AA12*((LOG(AA12))/LOG(2)))) ->  | AD12: =N12 -> 212 | AE12: =COUNTIF(L7:L7,AD12) -> 0 | AF12: =AE12/(AG4-AE8) ->  | AG12: =IF(AF12=0,0,(AF12*((LOG(AF12))/LOG(2)))) ->  | AI12: =N12 -> 212 | AJ12: =COUNTIF(L7:L8,AI12) -> 0 | AK12: =AJ12/(AL4-AJ8) ->  | AL12: =IF(AK12=0,0,(AK12*((LOG(AK12))/LOG(2)))) ->  | AN12: =N12 -> 212 | AO12: =COUNTIF(L7:L8,AN12) -> 0 | AP12: =AO12/(AQ4-AO8) ->  | AQ12: =IF(AP12=0,0,(AP12*((LOG(AP12))/LOG(2)))) ->  | AS12: =N12 -> 212 | AT12: =COUNTIF(L7:L8,AS12) -> 0 | AU12: =AT12/(AV4-AT8) ->  | AV12: =IF(AU12=0,0,(AU12*((LOG(AU12))/LOG(2)))) -> 
N13: 221 | O13: =COUNTIF($L$7:$L$500,N13) -> 0 | P13: =O13/$Q$4 ->  | Q13: =IF(P13=0,0,(P13*((LOG(P13))/LOG(2)))) ->  | T13: =N13 -> 221 | U13: =COUNTIF(L6:L7,T13) -> 0 | V13: =U13/(W4-U8) ->  | W13: =IF(V13=0,0,(V13*((LOG(V13))/LOG(2)))) ->  | Y13: =N13 -> 221 | Z13: =COUNTIF(L6:L7,Y13) -> 0 | AA13: =Z13/(AB4-Z8) ->  | AB13: =IF(AA13=0,0,(AA13*((LOG(AA13))/LOG(2)))) ->  | AD13: =N13 -> 221 | AE13: =COUNTIF(L7:L7,AD13) -> 0 | AF13: =AE13/(AG4-AE8) ->  | AG13: =IF(AF13=0,0,(AF13*((LOG(AF13))/LOG(2)))) ->  | AI13: =N13 -> 221 | AJ13: =COUNTIF(L7:L8,AI13) -> 0 | AK13: =AJ13/(AL4-AJ8) ->  | AL13: =IF(AK13=0,0,(AK13*((LOG(AK13))/LOG(2)))) ->  | AN13: =N13 -> 221 | AO13: =COUNTIF(L7:L8,AN13) -> 0 | AP13: =AO13/(AQ4-AO8) ->  | AQ13: =IF(AP13=0,0,(AP13*((LOG(AP13))/LOG(2)))) ->  | AS13: =N13 -> 221 | AT13: =COUNTIF(L7:L8,AS13) -> 0 | AU13: =AT13/(AV4-AT8) ->  | AV13: =IF(AU13=0,0,(AU13*((LOG(AU13))/LOG(2)))) -> 
N14: 222 | O14: =COUNTIF($L$7:$L$500,N14) -> 0 | P14: =O14/$Q$4 ->  | Q14: =IF(P14=0,0,(P14*((LOG(P14))/LOG(2)))) ->  | T14: =N14 -> 222 | U14: =COUNTIF(L6:L7,T14) -> 0 | V14: =U14/(W4-U8) ->  | W14: =IF(V14=0,0,(V14*((LOG(V14))/LOG(2)))) ->  | Y14: =N14 -> 222 | Z14: =COUNTIF(L6:L7,Y14) -> 0 | AA14: =Z14/(AB4-Z8) ->  | AB14: =IF(AA14=0,0,(AA14*((LOG(AA14))/LOG(2)))) ->  | AD14: =N14 -> 222 | AE14: =COUNTIF(L7:L7,AD14) -> 0 | AF14: =AE14/(AG4-AE8) ->  | AG14: =IF(AF14=0,0,(AF14*((LOG(AF14))/LOG(2)))) ->  | AI14: =N14 -> 222 | AJ14: =COUNTIF(L7:L8,AI14) -> 0 | AK14: =AJ14/(AL4-AJ8) ->  | AL14: =IF(AK14=0,0,(AK14*((LOG(AK14))/LOG(2)))) ->  | AN14: =N14 -> 222 | AO14: =COUNTIF(L7:L8,AN14) -> 0 | AP14: =AO14/(AQ4-AO8) ->  | AQ14: =IF(AP14=0,0,(AP14*((LOG(AP14))/LOG(2)))) ->  | AS14: =N14 -> 222 | AT14: =COUNTIF(L7:L8,AS14) -> 0 | AU14: =AT14/(AV4-AT8) ->  | AV14: =IF(AU14=0,0,(AU14*((LOG(AU14))/LOG(2)))) -> 
P15: =SUM(P7:P14) ->  | Q15: =-SUM(Q7:Q14) ->  | V15: =SUM(V7:V14) ->  | W15: =-SUM(W7:W14) ->  | AA15: =SUM(AA7:AA14) ->  | AB15: =-SUM(AB7:AB14) ->  | AF15: =SUM(AF7:AF14) ->  | AG15: =-SUM(AG7:AG14) ->  | AK15: =SUM(AK7:AK14) ->  | AL15: =-SUM(AL7:AL14) ->  | AP15: =SUM(AP7:AP14) ->  | AQ15: =-SUM(AQ7:AQ14) ->  | AU15: =SUM(AU7:AU14) ->  | AV15: =-SUM(AV7:AV14) -> 
P16: U= | Q16: =Q15/(LOG(Q4)/LOG(2)) ->  | V16: U1= | W16: =W15/(LOG(W4)/LOG(2)) ->  | AA16: U2= | AB16: =AB15/(LOG(AB4)/LOG(2)) ->  | AF16: U3= | AG16: =AG15/(LOG(AG4)/LOG(2)) ->  | AK16: U4= | AL16: =AL15/(LOG(AL4)/LOG(2)) ->  | AP16: U5= | AQ16: =AQ15/(LOG(AQ4)/LOG(2)) ->  | AU16: U6= | AV16: =AV15/(LOG(AV4)/LOG(2)) -> 
N19: Total Target Seq
N20: =COUNTIF(L7:L7,G3) -> 0 | P20: 0 | Q20: 0 | R20: 1 | S20: 0 | T20: 0 | U20: 0
P21: % of reinforcement given in 6 equal intervals based on number of trials
P22: %_1 | Q22: %_2 | R22: %_3 | S22: %_4 | T22: %_5 | U22: %_6
O23: target sequence | P23: =$G$3 -> 112 | Q23: =$G$3 -> 112 | R23: =$G$3 -> 112 | S23: =$G$3 -> 112 | T23: =$G$3 -> 112 | U23: =$G$3 -> 112
O24: total reinforcement | P24: =U8 -> 0 | Q24: =Z8 -> 0 | R24: =AE8 -> 0 | S24: =AJ8 -> 0 | T24: =AO8 -> 0 | U24: =AT8 -> 0
O25: % target
O26: CCRF
O27: % CCRf
O28: average response rate | P28: =F6/P20 ->  | Q28: =(F6-F6)/Q20 ->  | R28: =(F7-F6)/R20 ->  | S28: =(F7-F7)/S20 ->  | T28: =(F7-F7)/T20 ->  | U28: =(F7-F7)/U20 -> 

Sheet !N42683B.AXT
A1: Report for:!N42683B.AXT
A2: Date: | B2: <date>
A3: Hen: | B3: <hen> | F3: Correct Sequence | G3: =Start!J2 -> 112 | P3: Total Sequences in Data | Q3: =4994-COUNTBLANK(L7:L5000) -> 10 | V3: Total Sequences in Block Data | W3: =COUNTA(L7:L8) -> 2 | AA3: Total Sequences in Block Data | AB3: =COUNTA(L9:L9) -> 1 | AF3: Total Sequences in Block Data | AG3: =COUNTA(L10:L11) -> 2 | AK3: Total Sequences in Block Data | AL3: =COUNTA(L12:L13) -> 2 | AP3: Total Sequences in Block Data | AQ3: =COUNTA(L14:L14) -> 1 | AU3: Total Sequences in Block Data | AV3: =COUNTA(L15:L16) -> 2
P4: Total Sequences in Summary | Q4: =SUM(O7:O14) -> 9 | V4: Total Sequences in Block Summary | W4: =SUM(U7:U14) -> 2 | AA4: Total Sequences in Block Summary | AB4: =SUM(Z7:Z14) -> 1 | AF4: Total Sequences in Block Summary | AG4: =SUM(AE7:AE14) -> 2 | AK4: Total Sequences in Block Summary | AL4: =SUM(AJ7:AJ14) -> 2 | AP4: Total Sequences in Block Summary | AQ4: =SUM(AO7:AO14) -> 1 | AU4: Total Sequences in Block Summary | AV4: =SUM(AT7:AT14) -> 1
T5: Block 1 | Y5: Block 2 | AD5: Block 3 | AI5: Block 4 | AN5: Block 5 | AS5: Block 6
A6: Sequence Component 1 | B6: Time 1 | C6: Sequence Component 2 | D6: Time 2 | E6: Sequence Component 3 | F6: Time 3 | G6: Sequence Component 4 | H6: Time 4 | I6: Sequence Component 5 | J6: Time 5 | K6: Correct? 0=No 1=Yes | L6: Sequence | N6: Frequency | P6: Relative Frequency | Q6: Variability | T6: Frequency | V6: Relative Frequency | W6: Variability | Y6: Frequency | AA6: Relative Frequency | AB6: Variability | AD6: Frequency | AF6: Relative Frequency | AG6: Variability | AI6: Frequency | AK6: Relative Frequency | AL6: Variability | AN6: Frequency | AP6: Relative Frequency | AQ6: Variability | AS6: Frequency | AU6: Relative Frequency | AV6: Variability
A7: 22 | B7: 637 | C7: 24 | D7: 641 | E7: 14 | F7: 657 | K7: 0 | L7: 221 | N7: 111 | O7: =COUNTIF($L$7:$L$500,N7) -> 3 | P7: =O7/$Q$4 -> 0.3333333333 | Q7: =IF(P7=0,0,(P7*((LOG(P7))/LOG(2)))) -> -0.5283208336 | T7: =N7 -> 111 | U7: =COUNTIF(L7:L8,T7) -> 0 | V7: =U7/(W4-U8) -> 0 | W7: =IF(V7=0,0,(V7*((LOG(V7))/LOG(2)))) -> 0 | Y7: =N7 -> 111 | Z7: =COUNTIF(L9:L9,Y7) -> 0 | AA7: =Z7/(AB4-Z8) -> 0 | AB7: =IF(AA7=0,0,(AA7*((LOG(AA7))/LOG(2)))) -> 0 | AD7: =N7 -> 111 | AE7: =COUNTIF(L10:L11,AD7) -> 0 | AF7: =AE7/(AG4-AE8) -> 0 | AG7: =IF(AF7=0,0,(AF7*((LOG(AF7))/LOG(2)))) -> 0 | AI7: =N7 -> 111 | AJ7: =COUNTIF(L12:L13,AI7) -> 1 | AK7: =AJ7/(AL4-AJ8) -> 0.5 | AL7: =IF(AK7=0,0,(AK7*((LOG(AK7))/LOG(2)))) -> -0.5 | AN7: =N7 -> 111 | AO7: =COUNTIF(L14:L14,AN7) -> 1 | AP7: =AO7/(AQ4-AO8) -> 1 | AQ7: =IF(AP7=0,0,(AP7*((LOG(AP7))/LOG(2)))) -> 0 | AS7: =N7 -> 111 | AT7: =COUNTIF(L15:L16,AS7) -> 1 | AU7: =AT7/(AV4-AT8) -> 1 | AV7: =IF(AU7=0,0,(AU7*((LOG(AU7))/LOG(2)))) -> 0
A8: 22 | B8: 887 | C8: 13 | D8: 898 | E8: 23 | F8: 904 | K8: 0 | L8: 212 | N8: 112 | O8: =COUNTIF($L$7:$L$500,N8) -> 1 | P8: =O8/$Q$4 -> 0.1111111111 | Q8: =IF(P8=0,0,(P8*((LOG(P8))/LOG(2)))) -> -0.352213889 | T8: =N8 -> 112 | U8: =COUNTIF(L7:L8,T8) -> 0 | Y8: =N8 -> 112 | Z8: =COUNTIF(L9:L9,Y8) -> 0 | AD8: =N8 -> 112 | AE8: =COUNTIF(L10:L11,AD8) -> 1 | AI8: =N8 -> 112 | AJ8: =COUNTIF(L12:L13,AI8) -> 0 | AN8: =N8 -> 112 | AO8: =COUNTIF(L14:L14,AN8) -> 0 | AS8: =N8 -> 112 | AT8: =COUNTIF(L15:L16,AS8) -> 0
A9: 22 | B9: 1903 | C9: 24 | D9: 1906 | E9: 14 | F9: 1927 | K9: 0 | L9: 221 | N9: 121 | O9: =COUNTIF($L$7:$L$500,N9) -> 0 | P9: =O9/$Q$4 -> 0 | Q9: =IF(P9=0,0,(P9*((LOG(P9))/LOG(2)))) -> 0 | T9: =N9 -> 121 | U9: =COUNTIF(L7:L8,T9) -> 0 | V9: =U9/(W4-U8) -> 0 | W9: =IF(V9=0,0,(V9*((LOG(V9))/LOG(2)))) -> 0 | Y9: =N9 -> 121 | Z9: =COUNTIF(L9:L9,Y9) -> 0 | AA9: =Z9/(AB4-Z8) -> 0 | AB9: =IF(AA9=0,0,(AA9*((LOG(AA9))/LOG(2)))) -> 0 | AD9: =N9 -> 121 | AE9: =COUNTIF(L10:L11,AD9) -> 0 | AF9: =AE9/(AG4-AE8) -> 0 | AG9: =IF(AF9=0,0,(AF9*((LOG(AF9))/LOG(2)))) -> 0 | AI9: =N9 -> 121 | AJ9: =COUNTIF(L12:L13,AI9) -> 0 | AK9: =AJ9/(AL4-AJ8) -> 0 | AL9: =IF(AK9=0,0,(AK9*((LOG(AK9))/LOG(2)))) -> 0 | AN9: =N9 -> 121 | AO9: =COUNTIF(L14:L14,AN9) -> 0 | AP9: =AO9/(AQ4-AO8) -> 0 | AQ9: =IF(AP9=0,0,(AP9*((LOG(AP9))/LOG(2)))) -> 0 | AS9: =N9 -> 121 | AT9: =COUNTIF(L15:L16,AS9) -> 0 | AU9: =AT9/(AV4-AT8) -> 0 | AV9: =IF(AU9=0,0,(AU9*((LOG(AU9))/LOG(2)))) -> 0
A10: 11 | B10: 2023 | C10: 11 | D10: 2026 | E10: 21 | F10: 2058 | K10: 0 | L10: 112 | N10: 122 | O10: =COUNTIF($L$7:$L$500,N10) -> 0 | P10: =O10/$Q$4 -> 0 | Q10: =IF(P10=0,0,(P10*((LOG(P10))/LOG(2)))) -> 0 | T10: =N10 -> 122 | U10: =COUNTIF(L7:L8,T10) -> 0 | V10: =U10/(W4-U8) -> 0 | W10: =IF(V10=0,0,(V10*((LOG(V10))/LOG(2)))) -> 0 | Y10: =N10 -> 122 | Z10: =COUNTIF(L9:L9,Y10) -> 0 | AA10: =Z10/(AB4-Z8) -> 0 | AB10: =IF(AA10=0,0,(AA10*((LOG(AA10))/LOG(2)))) -> 0 | AD10: =N10 -> 122 | AE10: =COUNTIF(L10:L11,AD10) -> 0 | AF10: =AE10/(AG4-AE8) -> 0 | AG10: =IF(AF10=0,0,(AF10*((LOG(AF10))/LOG(2)))) -> 0 | AI10: =N10 -> 122 | AJ10: =COUNTIF(L12:L13,AI10) -> 0 | AK10: =AJ10/(AL4-AJ8) -> 0 | AL10: =IF(AK10=0,0,(AK10*((LOG(AK10))/LOG(2)))) -> 0 | AN10: =N10 -> 122 | AO10: =COUNTIF(L14:L14,AN10) -> 0 | AP10: =AO10/(AQ4-AO8) -> 0 | AQ10: =IF(AP10=0,0,(AP10*((LOG(AP10))/LOG(2)))) -> 0 | AS10: =N10 -> 122 | AT10: =COUNTIF(L15:L16,AS10) -> 0 | AU10: =AT10/(AV4-AT8) -> 0 | AV10: =IF(AU10=0,0,(AU10*((LOG(AU10))/LOG(2)))) -> 0
A11: 22 | B11: 2683 | C11: 24 | D11: 2702 | E11: 23 | F11: 2709 | K11: 0 | L11: 222 | N11: 211 | O11: =COUNTIF($L$7:$L$500,N11) -> 0 | P11: =O11/$Q$4 -> 0 | Q11: =IF(P11=0,0,(P11*((LOG(P11))/LOG(2)))) -> 0 | T11: =N11 -> 211 | U11: =COUNTIF(L7:L8,T11) -> 0 | V11: =U11/(W4-U8) -> 0 | W11: =IF(V11=0,0,(V11*((LOG(V11))/LOG(2)))) -> 0 | Y11: =N11 -> 211 | Z11: =COUNTIF(L9:L9,Y11) -> 0 | AA11: =Z11/(AB4-Z8) -> 0 | AB11: =IF(AA11=0,0,(AA11*((LOG(AA11))/LOG(2)))) -> 0 | AD11: =N11 -> 211 | AE11: =COUNTIF(L10:L11,AD11) -> 0 | AF11: =AE11/(AG4-AE8) -> 0 | AG11: =IF(AF11=0,0,(AF11*((LOG(AF11))/LOG(2)))) -> 0 | AI11: =N11 -> 211 | AJ11: =COUNTIF(L12:L13,AI11) -> 0 | AK11: =AJ11/(AL4-AJ8) -> 0 | AL11: =IF(AK11=0,0,(AK11*((LOG(AK11))/LOG(2)))) -> 0 | AN11: =N11 -> 211 | AO11: =COUNTIF(L14:L14,AN11) -> 0 | AP11: =AO11/(AQ4-AO8) -> 0 | AQ11: =IF(AP11=0,0,(AP11*((LOG(AP11))/LOG(2)))) -> 0 | AS11: =N11 -> 211 | AT11: =COUNTIF(L15:L16,AS11) -> 0 | AU11: =AT11/(AV4-AT8) -> 0 | AV11: =IF(AU11=0,0,(AU11*((LOG(AU11))/LOG(2)))) -> 0
A12: 11 | B12: 2990 | C12: 11 | D12: 3012 | E12: 12 | F12: 3019 | K12: 0 | L12: 111 | N12: 212 | O12: =COUNTIF($L$7:$L$500,N12) -> 1 | P12: =O12/$Q$4 -> 0.1111111111 | Q12: =IF(P12=0,0,(P12*((LOG(P12))/LOG(2)))) -> -0.352213889 | T12: =N12 -> 212 | U12: =COUNTIF(L7:L8,T12) -> 1 | V12: =U12/(W4-U8) -> 0.5 | W12: =IF(V12=0,0,(V12*((LOG(V12))/LOG(2)))) -> -0.5 | Y12: =N12 -> 212 | Z12: =COUNTIF(L9:L9,Y12) -> 0 | AA12: =Z12/(AB4-Z8) -> 0 | AB12: =IF(AA12=0,0,(AA12*((LOG(AA12))/LOG(2)))) -> 0 | AD12: =N12 -> 212 | AE12: =COUNTIF(L10:L11,AD12) -> 0 | AF12: =AE12/(AG4-AE8) -> 0 | AG12: =IF(AF12=0,0,(AF12*((LOG(AF12))/LOG(2)))) -> 0 | AI12: =N12 -> 212 | AJ12: =COUNTIF(L12:L13,AI12) -> 0 | AK12: =AJ12/(AL4-AJ8) -> 0 | AL12: =IF(AK12=0,0,(AK12*((LOG(AK12))/LOG(2)))) -> 0 | AN12: =N12 -> 212 | AO12: =COUNTIF(L14:L14,AN12) -> 0 | AP12: =AO12/(AQ4-AO8) -> 0 | AQ12: =IF(AP12=0,0,(AP12*((LOG(AP12))/LOG(2)))) -> 0 | AS12: =N12 -> 212 | AT12: =COUNTIF(L15:L16,AS12) -> 0 | AU12: =AT12/(AV4-AT8) -> 0 | AV12: =IF(AU12=0,0,(AU12*((LOG(AU12))/LOG(2)))) -> 0
A13: 22 | B13: 3254 | C13: 24 | D13: 3283 | E13: 23 | F13: 3296 | K13: 0 | L13: 222 | N13: 221 | O13: =COUNTIF($L$7:$L$500,N13) -> 2 | P13: =O13/$Q$4 -> 0.2222222222 | Q13: =IF(P13=0,0,(P13*((LOG(P13))/LOG(2)))) -> -0.4822055559 | T13: =N13 -> 221 | U13: =COUNTIF(L7:L8,T13) -> 1 | V13: =U13/(W4-U8) -> 0.5 | W13: =IF(V13=0,0,(V13*((LOG(V13))/LOG(2)))) -> -0.5 | Y13: =N13 -> 221 | Z13: =COUNTIF(L9:L9,Y13) -> 1 | AA13: =Z13/(AB4-Z8) -> 1 | AB13: =IF(AA13=0,0,(AA13*((LOG(AA13))/LOG(2)))) -> 0 | AD13: =N13 -> 221 | AE13: =COUNTIF(L10:L11,AD13) -> 0 | AF13: =AE13/(AG4-AE8) -> 0 | AG13: =IF(AF13=0,0,(AF13*((LOG(AF13))/LOG(2)))) -> 0 | AI13: =N13 -> 221 | AJ13: =COUNTIF(L12:L13,AI13) -> 0 | AK13: =AJ13/(AL4-AJ8) -> 0 | AL13: =IF(AK13=0,0,(AK13*((LOG(AK13))/LOG(2)))) -> 0 | AN13: =N13 -> 221 | AO13: =COUNTIF(L14:L14,AN13) -> 0 | AP13: =AO13/(AQ4-AO8) -> 0 | AQ13: =IF(AP13=0,0,(AP13*((LOG(AP13))/LOG(2)))) -> 0 | AS13: =N13 -> 221 | AT13: =COUNTIF(L15:L16,AS13) -> 0 | AU13: =AT13/(AV4-AT8) -> 0 | AV13: =IF(AU13=0,0,(AU13*((LOG(AU13))/LOG(2)))) -> 0
A14: 11 | B14: 3731 | C14: 11 | D14: 3749 | E14: 12 | F14: 3759 | K14: 0 | L14: 111 | N14: 222 | O14: =COUNTIF($L$7:$L$500,N14) -> 2 | P14: =O14/$Q$4 -> 0.2222222222 | Q14: =IF(P14=0,0,(P14*((LOG(P14))/LOG(2)))) -> -0.4822055559 | T14: =N14 -> 222 | U14: =COUNTIF(L7:L8,T14) -> 0 | V14: =U14/(W4-U8) -> 0 | W14: =IF(V14=0,0,(V14*((LOG(V14))/LOG(2)))) -> 0 | Y14: =N14 -> 222 | Z14: =COUNTIF(L9:L9,Y14) -> 0 | AA14: =Z14/(AB4-Z8) -> 0 | AB14: =IF(AA14=0,0,(AA14*((LOG(AA14))/LOG(2)))) -> 0 | AD14: =N14 -> 222 | AE14: =COUNTIF(L10:L11,AD14) -> 1 | AF14: =AE14/(AG4-AE8) -> 1 | AG14: =IF(AF14=0,0,(AF14*((LOG(AF14))/LOG(2)))) -> 0 | AI14: =N14 -> 222 | AJ14: =COUNTIF(L12:L13,AI14) -> 1 | AK14: =AJ14/(AL4-AJ8) -> 0.5 | AL14: =IF(AK14=0,0,(AK14*((LOG(AK14))/LOG(2)))) -> -0.5 | AN14: =N14 -> 222 | AO14: =COUNTIF(L14:L14,AN14) -> 0 | AP14: =AO14/(AQ4-AO8) -> 0 | AQ14: =IF(AP14=0,0,(AP14*((LOG(AP14))/LOG(2)))) -> 0 | AS14: =N14 -> 222 | AT14: =COUNTIF(L15:L16,AS14) -> 0 | AU14: =AT14/(AV4-AT8) -> 0 | AV14: =IF(AU14=0,0,(AU14*((LOG(AU14))/LOG(2)))) -> 0
A15: 11 | B15: 3855 | C15: 11 | D15: 3881 | E15: 12 | F15: 3890 | K15: 0 | L15: 111 | P15: =SUM(P7:P14) -> 1 | Q15: =-SUM(Q7:Q14) -> 2.197159723 | V15: =SUM(V7:V14) -> 1 | W15: =-SUM(W7:W14) -> 1 | AA15: =SUM(AA7:AA14) -> 1 | AB15: =-SUM(AB7:AB14) -> 0 | AF15: =SUM(AF7:AF14) -> 1 | AG15: =-SUM(AG7:AG14) -> 0 | AK15: =SUM(AK7:AK14) -> 1 | AL15: =-SUM(AL7:AL14) -> 1 | AP15: =SUM(AP7:AP14) -> 1 | AQ15: =-SUM(AQ7:AQ14) -> 0 | AU15: =SUM(AU7:AU14) -> 1 | AV15: =-SUM(AV7:AV14) -> 0
A16: 22 | B16: 13179 | L16: 2 | P16: U= | Q16: =Q15/(LOG(Q4)/LOG(2)) -> 0.6931267214 | V16: U1= | W16: =W15/(LOG(W4)/LOG(2)) -> 1 | AA16: U2= | AB16: =AB15/(LOG(AB4)/LOG(2)) ->  | AF16: U3= | AG16: =AG15/(LOG(AG4)/LOG(2)) -> 0 | AK16: U4= | AL16: =AL15/(LOG(AL4)/LOG(2)) -> 1 | AP16: U5= | AQ16: =AQ15/(LOG(AQ4)/LOG(2)) ->  | AU16: U6= | AV16: =AV15/(LOG(AV4)/LOG(2)) -> 
N19: Total Target Seq
N20: =COUNTIF(L7:L16,G3) -> 1 | P20: 2 | Q20: 1 | R20: 2 | S20: 2 | T20: 1 | U20: 2
P21: % of reinforcement given in 6 equal intervals based on number of trials
P22: %_1 | Q22: %_2 | R22: %_3 | S22: %_4 | T22: %_5 | U22: %_6
O23: target sequence | P23: =$G$3 -> 112 | Q23: =$G$3 -> 112 | R23: =$G$3 -> 112 | S23: =$G$3 -> 112 | T23: =$G$3 -> 112 | U23: =$G$3 -> 112
O24: total reinforcement | P24: =U8 -> 0 | Q24: =Z8 -> 0 | R24: =AE8 -> 1 | S24: =AJ8 -> 0 | T24: =AO8 -> 0 | U24: =AT8 -> 0
O25: % target
O26: CCRF
O27: % CCRf
O28: average response rate | P28: =F8/P20 -> 452 | Q28: =(F9-F8)/Q20 -> 1023 | R28: =(F11-F9)/R20 -> 391 | S28: =(F13-F11)/S20 -> 293.5 | T28: =(F14-F13)/T20 -> 463 | U28: =(F16-F14)/U20 -> -1879.5

Sheet !N42785B.AXT
A1: Report for:!N42785B.AXT
A2: Date: | B2: <date>
A3: Hen: | B3: <hen> | F3: Correct Sequence | G3: =Start!J2 -> 112 | P3: Total Sequences in Data | Q3: =4994-COUNTBLANK(L7:L5000) -> 7 | V3: Total Sequences in Block Data | W3: =COUNTA(L7:L7) -> 1 | AA3: Total Sequences in Block Data | AB3: =COUNTA(L8:L8) -> 1 | AF3: Total Sequences in Block Data | AG3: =COUNTA(L9:L10) -> 2 | AK3: Total Sequences in Block Data | AL3: =COUNTA(L11:L11) -> 1 | AP3: Total Sequences in Block Data | AQ3: =COUNTA(L12:L12) -> 1 | AU3: Total Sequences in Block Data | AV3: =COUNTA(L13:L13) -> 1
P4: Total Sequences in Summary | Q4: =SUM(O7:O14) -> 7 | V4: Total Sequences in Block Summary | W4: =SUM(U7:U14) -> 1 | AA4: Total Sequences in Block Summary | AB4: =SUM(Z7:Z14) -> 1 | AF4: Total Sequences in Block Summary | AG4: =SUM(AE7:AE14) -> 2 | AK4: Total Sequences in Block Summary | AL4: =SUM(AJ7:AJ14) -> 1 | AP4: Total Sequences in Block Summary | AQ4: =SUM(AO7:AO14) -> 1 | AU4: Total Sequences in Block Summary | AV4: =SUM(AT7:AT14) -> 1
T5: Block 1 | Y5: Block 2 | AD5: Block 3 | AI5: Block 4 | AN5: Block 5 | AS5: Block 6
A6: Sequence Component 1 | B6: Time 1 | C6: Sequence Component 2 | D6: Time 2 | E6: Sequence Component 3 | F6: Time 3 | G6: Sequence Component 4 | H6: Time 4 | I6: Sequence Component 5 | J6: Time 5 | K6: Correct? 0=No 1=Yes | L6: Sequence | N6: Frequency | P6: Relative Frequency | Q6: Variability | T6: Frequency | V6: Relative Frequency | W6: Variability | Y6: Frequency | AA6: Relative Frequency | AB6: Variability | AD6: Frequency | AF6: Relative Frequency | AG6: Variability | AI6: Frequency | AK6: Relative Frequency | AL6: Variability | AN6: Frequency | AP6: Relative Frequency | AQ6: Variability | AS6: Frequency | AU6: Relative Frequency | AV6: Variability
A7: 22 | B7: 2400 | C7: 13 | D7: 2412 | E7: 23 | F7: 2424 | K7: 0 | L7: 212 | N7: 111 | O7: =COUNTIF($L$7:$L$500,N7) -> 2 | P7: =O7/$Q$4 -> 0.2857142857 | Q7: =IF(P7=0,0,(P7*((LOG(P7))/LOG(2)))) -> -0.5163871206 | T7: =N7 -> 111 | U7: =COUNTIF(L7:L7,T7) -> 0 | V7: =U7/(W4-U8) -> 0 | W7: =IF(V7=0,0,(V7*((LOG(V7))/LOG(2)))) -> 0 | Y7: =N7 -> 111 | Z7: =COUNTIF(L8:L8,Y7) -> 0 | AA7: =Z7/(AB4-Z8) -> 0 | AB7: =IF(AA7=0,0,(AA7*((LOG(AA7))/LOG(2)))) -> 0 | AD7: =N7 -> 111 | AE7: =COUNTIF(L9:L10,AD7) -> 0 | AF7: =AE7/(AG4-AE8) ->  | AG7: =IF(AF7=0,0,(AF7*((LOG(AF7))/LOG(2)))) ->  | AI7: =N7 -> 111 | AJ7: =COUNTIF(L11:L11,AI7) -> 0 | AK7: =AJ7/(AL4-AJ8) -> 0 | AL7: =IF(AK7=0,0,(AK7*((LOG(AK7))/LOG(2)))) -> 0 | AN7: =N7 -> 111 | AO7: =COUNTIF(L12:L12,AN7) -> 1 | AP7: =AO7/(AQ4-AO8) -> 1 | AQ7: =IF(AP7=0,0,(AP7*((LOG(AP7))/LOG(2)))) -> 0 | AS7: =N7 -> 111 | AT7: =COUNTIF(L13:L13,AS7) -> 1 | AU7: =AT7/(AV4-AT8) -> 1 | AV7: =IF(AU7=0,0,(AU7*((LOG(AU7))/LOG(2)))) -> 0
A8: 22 | B8: 5267 | C8: 13 | D8: 6848 | E8: 14 | F8: 6867 | K8: 0 | L8: 211 | N8: 112 | O8: =COUNTIF($L$7:$L$500,N8) -> 2 | P8: =O8/$Q$4 -> 0.2857142857 | Q8: =IF(P8=0,0,(P8*((LOG(P8))/LOG(2)))) -> -0.5163871206 | T8: =N8 -> 112 | U8: =COUNTIF(L7:L7,T8) -> 0 | Y8: =N8 -> 112 | Z8: =COUNTIF(L8:L8,Y8) -> 0 | AD8: =N8 -> 112 | AE8: =COUNTIF(L9:L10,AD8) -> 2 | AI8: =N8 -> 112 | AJ8: =COUNTIF(L11:L11,AI8) -> 0 | AN8: =N8 -> 112 | AO8: =COUNTIF(L12:L12,AN8) -> 0 | AS8: =N8 -> 112 | AT8: =COUNTIF(L13:L13,AS8) -> 0
A9: 11 | B9: 10366 | C9: 11 | D9: 10369 | E9: 21 | F9: 10380 | K9: 0 | L9: 112 | N9: 121 | O9: =COUNTIF($L$7:$L$500,N9) -> 0 | P9: =O9/$Q$4 -> 0 | Q9: =IF(P9=0,0,(P9*((LOG(P9))/LOG(2)))) -> 0 | T9: =N9 -> 121 | U9: =COUNTIF(L7:L7,T9) -> 0 | V9: =U9/(W4-U8) -> 0 | W9: =IF(V9=0,0,(V9*((LOG(V9))/LOG(2)))) -> 0 | Y9: =N9 -> 121 | Z9: =COUNTIF(L8:L8,Y9) -> 0 | AA9: =Z9/(AB4-Z8) -> 0 | AB9: =IF(AA9=0,0,(AA9*((LOG(AA9))/LOG(2)))) -> 0 | AD9: =N9 -> 121 | AE9: =COUNTIF(L9:L10,AD9) -> 0 | AF9: =AE9/(AG4-AE8) ->  | AG9: =IF(AF9=0,0,(AF9*((LOG(AF9))/LOG(2)))) ->  | AI9: =N9 -> 121 | AJ9: =COUNTIF(L11:L11,AI9) -> 0 | AK9: =AJ9/(AL4-AJ8) -> 0 | AL9: =IF(AK9=0,0,(AK9*((LOG(AK9))/LOG(2)))) -> 0 | AN9: =N9 -> 121 | AO9: =COUNTIF(L12:L12,AN9) -> 0 | AP9: =AO9/(AQ4-AO8) -> 0 | AQ9: =IF(AP9=0,0,(AP9*((LOG(AP9))/LOG(2)))) -> 0 | AS9: =N9 -> 121 | AT9: =COUNTIF(L13:L13,AS9) -> 0 | AU9: =AT9/(AV4-AT8) -> 0 | AV9: =IF(AU9=0,0,(AU9*((LOG(AU9))/LOG(2)))) -> 0
A10: 11 | B10: 10661 | C10: 11 | D10: 10696 | E10: 21 | F10: 10719 | K10: 0 | L10: 112 | N10: 122 | O10: =COUNTIF($L$7:$L$500,N10) -> 0 | P10: =O10/$Q$4 -> 0 | Q10: =IF(P10=0,0,(P10*((LOG(P10))/LOG(2)))) -> 0 | T10: =N10 -> 122 | U10: =COUNTIF(L7:L7,T10) -> 0 | V10: =U10/(W4-U8) -> 0 | W10: =IF(V10=0,0,(V10*((LOG(V10))/LOG(2)))) -> 0 | Y10: =N10 -> 122 | Z10: =COUNTIF(L8:L8,Y10) -> 0 | AA10: =Z10/(AB4-Z8) -> 0 | AB10: =IF(AA10=0,0,(AA10*((LOG(AA10))/LOG(2)))) -> 0 | AD10: =N10 -> 122 | AE10: =COUNTIF(L9:L10,AD10) -> 0 | AF10: =AE10/(AG4-AE8) ->  | AG10: =IF(AF10=0,0,(AF10*((LOG(AF10))/LOG(2)))) ->  | AI10: =N10 -> 122 | AJ10: =COUNTIF(L11:L11,AI10) -> 0 | AK10: =AJ10/(AL4-AJ8) -> 0 | AL10: =IF(AK10=0,0,(AK10*((LOG(AK10))/LOG(2)))) -> 0 | AN10: =N10 -> 122 | AO10: =COUNTIF(L12:L12,AN10) -> 0 | AP10: =AO10/(AQ4-AO8) -> 0 | AQ10: =IF(AP10=0,0,(AP10*((LOG(AP10))/LOG(2)))) -> 0 | AS10: =N10 -> 122 | AT10: =COUNTIF(L13:L13,AS10) -> 0 | AU10: =AT10/(AV4-AT8) -> 0 | AV10: =IF(AU10=0,0,(AU10*((LOG(AU10))/LOG(2)))) -> 0
A11: 22 | B11: 11159 | C11: 24 | D11: 11186 | E11: 14 | F11: 11199 | K11: 0 | L11: 221 | N11: 211 | O11: =COUNTIF($L$7:$L$500,N11) -> 1 | P11: =O11/$Q$4 -> 0.1428571429 | Q11: =IF(P11=0,0,(P11*((LOG(P11))/LOG(2)))) -> -0.4010507032 | T11: =N11 -> 211 | U11: =COUNTIF(L7:L7,T11) -> 0 | V11: =U11/(W4-U8) -> 0 | W11: =IF(V11=0,0,(V11*((LOG(V11))/LOG(2)))) -> 0 | Y11: =N11 -> 211 | Z11: =COUNTIF(L8:L8,Y11) -> 1 | AA11: =Z11/(AB4-Z8) -> 1 | AB11: =IF(AA11=0,0,(AA11*((LOG(AA11))/LOG(2)))) -> 0 | AD11: =N11 -> 211 | AE11: =COUNTIF(L9:L10,AD11) -> 0 | AF11: =AE11/(AG4-AE8) ->  | AG11: =IF(AF11=0,0,(AF11*((LOG(AF11))/LOG(2)))) ->  | AI11: =N11 -> 211 | AJ11: =COUNTIF(L11:L11,AI11) -> 0 | AK11: =AJ11/(AL4-AJ8) -> 0 | AL11: =IF(AK11=0,0,(AK11*((LOG(AK11))/LOG(2)))) -> 0 | AN11: =N11 -> 211 | AO11: =COUNTIF(L12:L12,AN11) -> 0 | AP11: =AO11/(AQ4-AO8) -> 0 | AQ11: =IF(AP11=0,0,(AP11*((LOG(AP11))/LOG(2)))) -> 0 | AS11: =N11 -> 211 | AT11: =COUNTIF(L13:L13,AS11) -> 0 | AU11: =AT11/(AV4-AT8) -> 0 | AV11: =IF(AU11=0,0,(AU11*((LOG(AU11))/LOG(2)))) -> 0
A12: 11 | B12: 11439 | C12: 11 | D12: 11443 | E12: 12 | F12: 11462 | K12: 0 | L12: 111 | N12: 212 | O12: =COUNTIF($L$7:$L$500,N12) -> 1 | P12: =O12/$Q$4 -> 0.1428571429 | Q12: =IF(P12=0,0,(P12*((LOG(P12))/LOG(2)))) -> -0.4010507032 | T12: =N12 -> 212 | U12: =COUNTIF(L7:L7,T12) -> 1 | V12: =U12/(W4-U8) -> 1 | W12: =IF(V12=0,0,(V12*((LOG(V12))/LOG(2)))) -> 0 | Y12: =N12 -> 212 | Z12: =COUNTIF(L8:L8,Y12) -> 0 | AA12: =Z12/(AB4-Z8) -> 0 | AB12: =IF(AA12=0,0,(AA12*((LOG(AA12))/LOG(2)))) -> 0 | AD12: =N12 -> 212 | AE12: =COUNTIF(L9:L10,AD12) -> 0 | AF12: =AE12/(AG4-AE8) ->  | AG12: =IF(AF12=0,0,(AF12*((LOG(AF12))/LOG(2)))) ->  | AI12: =N12 -> 212 | AJ12: =COUNTIF(L11:L11,AI12) -> 0 | AK12: =AJ12/(AL4-AJ8) -> 0 | AL12: =IF(AK12=0,0,(AK12*((LOG(AK12))/LOG(2)))) -> 0 | AN12: =N12 -> 212 | AO12: =COUNTIF(L12:L12,AN12) -> 0 | AP12: =AO12/(AQ4-AO8) -> 0 | AQ12: =IF(AP12=0,0,(AP12*((LOG(AP12))/LOG(2)))) -> 0 | AS12: =N12 -> 212 | AT12: =COUNTIF(L13:L13,AS12) -> 0 | AU12: =AT12/(AV4-AT8) -> 0 | AV12: =IF(AU12=0,0,(AU12*((LOG(AU12))/LOG(2)))) -> 0
A13: 11 | B13: 11578 | C13: 11 | D13: 11598 | E13: 12 | F13: 11609 | K13: 0 | L13: 111 | N13: 221 | O13: =COUNTIF($L$7:$L$500,N13) -> 1 | P13: =O13/$Q$4 -> 0.1428571429 | Q13: =IF(P13=0,0,(P13*((LOG(P13))/LOG(2)))) -> -0.4010507032 | T13: =N13 -> 221 | U13: =COUNTIF(L7:L7,T13) -> 0 | V13: =U13/(W4-U8) -> 0 | W13: =IF(V13=0,0,(V13*((LOG(V13))/LOG(2)))) -> 0 | Y13: =N13 -> 221 | Z13: =COUNTIF(L8:L8,Y13) -> 0 | AA13: =Z13/(AB4-Z8) -> 0 | AB13: =IF(AA13=0,0,(AA13*((LOG(AA13))/LOG(2)))) -> 0 | AD13: =N13 -> 221 | AE13: =COUNTIF(L9:L10,AD13) -> 0 | AF13: =AE13/(AG4-AE8) ->  | AG13: =IF(AF13=0,0,(AF13*((LOG(AF13))/LOG(2)))) ->  | AI13: =N13 -> 221 | AJ13: =COUNTIF(L11:L11,AI13) -> 1 | AK13: =AJ13/(AL4-AJ8) -> 1 | AL13: =IF(AK13=0,0,(AK13*((LOG(AK13))/LOG(2)))) -> 0 | AN13: =N13 -> 221 | AO13: =COUNTIF(L12:L12,AN13) -> 0 | AP13: =AO13/(AQ4-AO8) -> 0 | AQ13: =IF(AP13=0,0,(AP13*((LOG(AP13))/LOG(2)))) -> 0 | AS13: =N13 -> 221 | AT13: =COUNTIF(L13:L13,AS13) -> 0 | AU13: =AT13/(AV4-AT8) -> 0 | AV13: =IF(AU13=0,0,(AU13*((LOG(AU13))/LOG(2)))) -> 0
N14: 222 | O14: =COUNTIF($L$7:$L$500,N14) -> 0 | P14: =O14/$Q$4 -> 0 | Q14: =IF(P14=0,0,(P14*((LOG(P14))/LOG(2)))) -> 0 | T14: =N14 -> 222 | U14: =COUNTIF(L7:L7,T14) -> 0 | V14: =U14/(W4-U8) -> 0 | W14: =IF(V14=0,0,(V14*((LOG(V14))/LOG(2)))) -> 0 | Y14: =N14 -> 222 | Z14: =COUNTIF(L8:L8,Y14) -> 0 | AA14: =Z14/(AB4-Z8) -> 0 | AB14: =IF(AA14=0,0,(AA14*((LOG(AA14))/LOG(2)))) -> 0 | AD14: =N14 -> 222 | AE14: =COUNTIF(L9:L10,AD14) -> 0 | AF14: =AE14/(AG4-AE8) ->  | AG14: =IF(AF14=0,0,(AF14*((LOG(AF14))/LOG(2)))) ->  | AI14: =N14 -> 222 | AJ14: =COUNTIF(L11:L11,AI14) -> 0 | AK14: =AJ14/(AL4-AJ8) -> 0 | AL14: =IF(AK14=0,0,(AK14*((LOG(AK14))/LOG(2)))) -> 0 | AN14: =N14 -> 222 | AO14: =COUNTIF(L12:L12,AN14) -> 0 | AP14: =AO14/(AQ4-AO8) -> 0 | AQ14: =IF(AP14=0,0,(AP14*((LOG(AP14))/LOG(2)))) -> 0 | AS14: =N14 -> 222 | AT14: =COUNTIF(L13:L13,AS14) -> 0 | AU14: =AT14/(AV4-AT8) -> 0 | AV14: =IF(AU14=0,0,(AU14*((LOG(AU14))/LOG(2)))) -> 0
P15: =SUM(P7:P14) -> 1 | Q15: =-SUM(Q7:Q14) -> 2.235926351 | V15: =SUM(V7:V14) -> 1 | W15: =-SUM(W7:W14) -> 0 | AA15: =SUM(AA7:AA14) -> 1 | AB15: =-SUM(AB7:AB14) -> 0 | AF15: =SUM(AF7:AF14) ->  | AG15: =-SUM(AG7:AG14) ->  | AK15: =SUM(AK7:AK14) -> 1 | AL15: =-SUM(AL7:AL14) -> 0 | AP15: =SUM(AP7:AP14) -> 1 | AQ15: =-SUM(AQ7:AQ14) -> 0 | AU15: =SUM(AU7:AU14) -> 1 | AV15: =-SUM(AV7:AV14) -> 0
P16: U= | Q16: =Q15/(LOG(Q4)/LOG(2)) -> 0.7964530359 | V16: U1= | W16: =W15/(LOG(W4)/LOG(2)) ->  | AA16: U2= | AB16: =AB15/(LOG(AB4)/LOG(2)) ->  | AF16: U3= | AG16: =AG15/(LOG(AG4)/LOG(2)) ->  | AK16: U4= | AL16: =AL15/(LOG(AL4)/LOG(2)) ->  | AP16: U5= | AQ16: =AQ15/(LOG(AQ4)/LOG(2)) ->  | AU16: U6= | AV16: =AV15/(LOG(AV4)/LOG(2)) -> 
N19: Total Target Seq
N20: =COUNTIF(L7:L13,G3) -> 2 | P20: 1 | Q20: 1 | R20: 2 | S20: 1 | T20: 1 | U20: 1
P21: % of reinforcement given in 6 equal intervals based on number of trials
P22: %_1 | Q22: %_2 | R22: %_3 | S22: %_4 | T22: %_5 | U22: %_6
O23: target sequence | P23: =$G$3 -> 112 | Q23: =$G$3 -> 112 | R23: =$G$3 -> 112 | S23: =$G$3 -> 112 | T23: =$G$3 -> 112 | U23: =$G$3 -> 112
O24: total reinforcement | P24: =U8 -> 0 | Q24: =Z8 -> 0 | R24: =AE8 -> 2 | S24: =AJ8 -> 0 | T24: =AO8 -> 0 | U24: =AT8 -> 0
O25: % target
O26: CCRF
O27: % CCRf
O28: average response rate | P28: =F7/P20 -> 2424 | Q28: =(F8-F7)/Q20 -> 4443 | R28: =(F10-F8)/R20 -> 1926 | S28: =(F11-F10)/S20 -> 480 | T28: =(F12-F11)/T20 -> 263 | U28: =(F13-F12)/U20 -> 147

Sheet !N42894B.AXT
A1: Report for:!N42894B.AXT
A2: Date: | B2: <date>
A3: Hen: | B3: <hen> | F3: Correct Sequence | G3: =Start!J2 -> 112 | P3: Total Sequences in Data | Q3: =4994-COUNTBLANK(L7:L5000) -> 5 | V3: Total Sequences in Block Data | W3: =COUNTA(L7:L7) -> 1 | AA3: Total Sequences in Block Data | AB3: =COUNTA(L8:L8) -> 1 | AF3: Total Sequences in Block Data | AG3: =COUNTA(L8:L9) -> 2 | AK3: Total Sequences in Block Data | AL3: =COUNTA(L9:L9) -> 1 | AP3: Total Sequences in Block Data | AQ3: =COUNTA(L10:L10) -> 1 | AU3: Total Sequences in Block Data | AV3: =COUNTA(L11:L11) -> 1
P4: Total Sequences in Summary | Q4: =SUM(O7:O14) -> 5 | V4: Total Sequences in Block Summary | W4: =SUM(U7:U14) -> 1 | AA4: Total Sequences in Block Summary | AB4: =SUM(Z7:Z14) -> 1 | AF4: Total Sequences in Block Summary | AG4: =SUM(AE7:AE14) -> 2 | AK4: Total Sequences in Block Summary | AL4: =SUM(AJ7:AJ14) -> 1 | AP4: Total Sequences in Block Summary | AQ4: =SUM(AO7:AO14) -> 1 | AU4: Total Sequences in Block Summary | AV4: =SUM(AT7:AT14) -> 1
T5: Block 1 | Y5: Block 2 | AD5: Block 3 | AI5: Block 4 | AN5: Block 5 | AS5: Block 6
A6: Sequence Component 1 | B6: Time 1 | C6: Sequence Component 2 | D6: Time 2 | E6: Sequence Component 3 | F6: Time 3 | G6: Sequence Component 4 | H6: Time 4 | I6: Sequence Component 5 | J6: Time 5 | K6: Correct? 0=No 1=Yes | L6: Sequence | N6: Frequency | P6: Relative Frequency | Q6: Variability | T6: Frequency | V6: Relative Frequency | W6: Variability | Y6: Frequency | AA6: Relative Frequency | AB6: Variability | AD6: Frequency | AF6: Relative Frequency | AG6: Variability | AI6: Frequency | AK6: Relative Frequency | AL6: Variability | AN6: Frequency | AP6: Relative Frequency | AQ6: Variability | AS6: Frequency | AU6: Relative Frequency | AV6: Variability
A7: 11 | B7: 8317 | C7: 11 | D7: 8328 | E7: 12 | F7: 8349 | K7: 0 | L7: 111 | N7: 111 | O7: =COUNTIF($L$7:$L$500,N7) -> 3 | P7: =O7/$Q$4 -> 0.6 | Q7: =IF(P7=0,0,(P7*((LOG(P7))/LOG(2)))) -> -0.4421793565 | T7: =N7 -> 111 | U7: =COUNTIF(L7:L7,T7) -> 1 | V7: =U7/(W4-U8) -> 1 | W7: =IF(V7=0,0,(V7*((LOG(V7))/LOG(2)))) -> 0 | Y7: =N7 -> 111 | Z7: =COUNTIF(L8:L8,Y7) -> 0 | AA7: =Z7/(AB4-Z8) ->  | AB7: =IF(AA7=0,0,(AA7*((LOG(AA7))/LOG(2)))) ->  | AD7: =N7 -> 111 | AE7: =COUNTIF(L8:L9,AD7) -> 0 | AF7: =AE7/(AG4-AE8) -> 0 | AG7: =IF(AF7=0,0,(AF7*((LOG(AF7))/LOG(2)))) -> 0 | AI7: =N7 -> 111 | AJ7: =COUNTIF(L9:L9,AI7) -> 0 | AK7: =AJ7/(AL4-AJ8) -> 0 | AL7: =IF(AK7=0,0,(AK7*((LOG(AK7))/LOG(2)))) -> 0 | AN7: =N7 -> 111 | AO7: =COUNTIF(L10:L10,AN7) -> 1 | AP7: =AO7/(AQ4-AO8) -> 1 | AQ7: =IF(AP7=0,0,(AP7*((LOG(AP7))/LOG(2)))) -> 0 | AS7: =N7 -> 111 | AT7: =COUNTIF(L11:L11,AS7) -> 1 | AU7: =AT7/(AV4-AT8) -> 1 | AV7: =IF(AU7=0,0,(AU7*((LOG(AU7))/LOG(2)))) -> 0
A8: 11 | B8: 8482 | C8: 11 | D8: 8485 | E8: 21 | F8: 8507 | K8: 0 | L8: 112 | N8: 112 | O8: =COUNTIF($L$7:$L$500,N8) -> 1 | P8: =O8/$Q$4 -> 0.2 | Q8: =IF(P8=0,0,(P8*((LOG(P8))/LOG(2)))) -> -0.464385619 | T8: =N8 -> 112 | U8: =COUNTIF(L7:L7,T8) -> 0 | Y8: =N8 -> 112 | Z8: =COUNTIF(L8:L8,Y8) -> 1 | AD8: =N8 -> 112 | AE8: =COUNTIF(L8:L9,AD8) -> 1 | AI8: =N8 -> 112 | AJ8: =COUNTIF(L9:L9,AI8) -> 0 | AN8: =N8 -> 112 | AO8: =COUNTIF(L10:L10,AN8) -> 0 | AS8: =N8 -> 112 | AT8: =COUNTIF(L11:L11,AS8) -> 0
A9: 22 | B9: 9312 | C9: 24 | D9: 9314 | E9: 14 | F9: 9334 | K9: 0 | L9: 221 | N9: 121 | O9: =COUNTIF($L$7:$L$500,N9) -> 0 | P9: =O9/$Q$4 -> 0 | Q9: =IF(P9=0,0,(P9*((LOG(P9))/LOG(2)))) -> 0 | T9: =N9 -> 121 | U9: =COUNTIF(L7:L7,T9) -> 0 | V9: =U9/(W4-U8) -> 0 | W9: =IF(V9=0,0,(V9*((LOG(V9))/LOG(2)))) -> 0 | Y9: =N9 -> 121 | Z9: =COUNTIF(L8:L8,Y9) -> 0 | AA9: =Z9/(AB4-Z8) ->  | AB9: =IF(AA9=0,0,(AA9*((LOG(AA9))/LOG(2)))) ->  | AD9: =N9 -> 121 | AE9: =COUNTIF(L8:L9,AD9) -> 0 | AF9: =AE9/(AG4-AE8) -> 0 | AG9: =IF(AF9=0,0,(AF9*((LOG(AF9))/LOG(2)))) -> 0 | AI9: =N9 -> 121 | AJ9: =COUNTIF(L9:L9,AI9) -> 0 | AK9: =AJ9/(AL4-AJ8) -> 0 | AL9: =IF(AK9=0,0,(AK9*((LOG(AK9))/LOG(2)))) -> 0 | AN9: =N9 -> 121 | AO9: =COUNTIF(L10:L10,AN9) -> 0 | AP9: =AO9/(AQ4-AO8) -> 0 | AQ9: =IF(AP9=0,0,(AP9*((LOG(AP9))/LOG(2)))) -> 0 | AS9: =N9 -> 121 | AT9: =COUNTIF(L11:L11,AS9) -> 0 | AU9: =AT9/(AV4-AT8) -> 0 | AV9: =IF(AU9=0,0,(AU9*((LOG(AU9))/LOG(2)))) -> 0
A10: 11 | B10: 9443 | C10: 11 | D10: 9450 | E10: 12 | F10: 9458 | K10: 0 | L10: 111 | N10: 122 | O10: =COUNTIF($L$7:$L$500,N10) -> 0 | P10: =O10/$Q$4 -> 0 | Q10: =IF(P10=0,0,(P10*((LOG(P10))/LOG(2)))) -> 0 | T10: =N10 -> 122 | U10: =COUNTIF(L7:L7,T10) -> 0 | V10: =U10/(W4-U8) -> 0 | W10: =IF(V10=0,0,(V10*((LOG(V10))/LOG(2)))) -> 0 | Y10: =N10 -> 122 | Z10: =COUNTIF(L8:L8,Y10) -> 0 | AA10: =Z10/(AB4-Z8) ->  | AB10: =IF(AA10=0,0,(AA10*((LOG(AA10))/LOG(2)))) ->  | AD10: =N10 -> 122 | AE10: =COUNTIF(L8:L9,AD10) -> 0 | AF10: =AE10/(AG4-AE8) -> 0 | AG10: =IF(AF10=0,0,(AF10*((LOG(AF10))/LOG(2)))) -> 0 | AI10: =N10 -> 122 | AJ10: =COUNTIF(L9:L9,AI10) -> 0 | AK10: =AJ10/(AL4-AJ8) -> 0 | AL10: =IF(AK10=0,0,(AK10*((LOG(AK10))/LOG(2)))) -> 0 | AN10: =N10 -> 122 | AO10: =COUNTIF(L10:L10,AN10) -> 0 | AP10: =AO10/(AQ4-AO8) -> 0 | AQ10: =IF(AP10=0,0,(AP10*((LOG(AP10))/LOG(2)))) -> 0 | AS10: =N10 -> 122 | AT10: =COUNTIF(L11:L11,AS10) -> 0 | AU10: =AT10/(AV4-AT8) -> 0 | AV10: =IF(AU10=0,0,(AU10*((LOG(AU10))/LOG(2)))) -> 0
A11: 11 | B11: 9556 | C11: 11 | D11: 9565 | E11: 12 | F11: 9576 | K11: 0 | L11: 111 | N11: 211 | O11: =COUNTIF($L$7:$L$500,N11) -> 0 | P11: =O11/$Q$4 -> 0 | Q11: =IF(P11=0,0,(P11*((LOG(P11))/LOG(2)))) -> 0 | T11: =N11 -> 211 | U11: =COUNTIF(L7:L7,T11) -> 0 | V11: =U11/(W4-U8) -> 0 | W11: =IF(V11=0,0,(V11*((LOG(V11))/LOG(2)))) -> 0 | Y11: =N11 -> 211 | Z11: =COUNTIF(L8:L8,Y11) -> 0 | AA11: =Z11/(AB4-Z8) ->  | AB11: =IF(AA11=0,0,(AA11*((LOG(AA11))/LOG(2)))) ->  | AD11: =N11 -> 211 | AE11: =COUNTIF(L8:L9,AD11) -> 0 | AF11: =AE11/(AG4-AE8) -> 0 | AG11: =IF(AF11=0,0,(AF11*((LOG(AF11))/LOG(2)))) -> 0 | AI11: =N11 -> 211 | AJ11: =COUNTIF(L9:L9,AI11) -> 0 | AK11: =AJ11/(AL4-AJ8) -> 0 | AL11: =IF(AK11=0,0,(AK11*((LOG(AK11))/LOG(2)))) -> 0 | AN11: =N11 -> 211 | AO11: =COUNTIF(L10:L10,AN11) -> 0 | AP11: =AO11/(AQ4-AO8) -> 0 | AQ11: =IF(AP11=0,0,(AP11*((LOG(AP11))/LOG(2)))) -> 0 | AS11: =N11 -> 211 | AT11: =COUNTIF(L11:L11,AS11) -> 0 | AU11: =AT11/(AV4-AT8) -> 0 | AV11: =IF(AU11=0,0,(AU11*((LOG(AU11))/LOG(2)))) -> 0
N12: 212 | O12: =COUNTIF($L$7:$L$500,N12) -> 0 | P12: =O12/$Q$4 -> 0 | Q12: =IF(P12=0,0,(P12*((LOG(P12))/LOG(2)))) -> 0 | T12: =N12 -> 212 | U12: =COUNTIF(L7:L7,T12) -> 0 | V12: =U12/(W4-U8) -> 0 | W12: =IF(V12=0,0,(V12*((LOG(V12))/LOG(2)))) -> 0 | Y12: =N12 -> 212 | Z12: =COUNTIF(L8:L8,Y12) -> 0 | AA12: =Z12/(AB4-Z8) ->  | AB12: =IF(AA12=0,0,(AA12*((LOG(AA12))/LOG(2)))) ->  | AD12: =N12 -> 212 | AE12: =COUNTIF(L8:L9,AD12) -> 0 | AF12: =AE12/(AG4-AE8) -> 0 | AG12: =IF(AF12=0,0,(AF12*((LOG(AF12))/LOG(2)))) -> 0 | AI12: =N12 -> 212 | AJ12: =COUNTIF(L9:L9,AI12) -> 0 | AK12: =AJ12/(AL4-AJ8) -> 0 | AL12: =IF(AK12=0,0,(AK12*((LOG(AK12))/LOG(2)))) -> 0 | AN12: =N12 -> 212 | AO12: =COUNTIF(L10:L10,AN12) -> 0 | AP12: =AO12/(AQ4-AO8) -> 0 | AQ12: =IF(AP12=0,0,(AP12*((LOG(AP12))/LOG(2)))) -> 0 | AS12: =N12 -> 212 | AT12: =COUNTIF(L11:L11,AS12) -> 0 | AU12: =AT12/(AV4-AT8) -> 0 | AV12: =IF(AU12=0,0,(AU12*((LOG(AU12))/LOG(2)))) -> 0
N13: 221 | O13: =COUNTIF($L$7:$L$500,N13) -> 1 | P13: =O13/$Q$4 -> 0.2 | Q13: =IF(P13=0,0,(P13*((LOG(P13))/LOG(2)))) -> -0.464385619 | T13: =N13 -> 221 | U13: =COUNTIF(L7:L7,T13) -> 0 | V13: =U13/(W4-U8) -> 0 | W13: =IF(V13=0,0,(V13*((LOG(V13))/LOG(2)))) -> 0 | Y13: =N13 -> 221 | Z13: =COUNTIF(L8:L8,Y13) -> 0 | AA13: =Z13/(AB4-Z8) ->  | AB13: =IF(AA13=0,0,(AA13*((LOG(AA13))/LOG(2)))) ->  | AD13: =N13 -> 221 | AE13: =COUNTIF(L8:L9,AD13) -> 1 | AF13: =AE13/(AG4-AE8) -> 1 | AG13: =IF(AF13=0,0,(AF13*((LOG(AF13))/LOG(2)))) -> 0 | AI13: =N13 -> 221 | AJ13: =COUNTIF(L9:L9,AI13) -> 1 | AK13: =AJ13/(AL4-AJ8) -> 1 | AL13: =IF(AK13=0,0,(AK13*((LOG(AK13))/LOG(2)))) -> 0 | AN13: =N13 -> 221 | AO13: =COUNTIF(L10:L10,AN13) -> 0 | AP13: =AO13/(AQ4-AO8) -> 0 | AQ13: =IF(AP13=0,0,(AP13*((LOG(AP13))/LOG(2)))) -> 0 | AS13: =N13 -> 221 | AT13: =COUNTIF(L11:L11,AS13) -> 0 | AU13: =AT13/(AV4-AT8) -> 0 | AV13: =IF(AU13=0,0,(AU13*((LOG(AU13))/LOG(2)))) -> 0
N14: 222 | O14: =COUNTIF($L$7:$L$500,N14) -> 0 | P14: =O14/$Q$4 -> 0 | Q14: =IF(P14=0,0,(P14*((LOG(P14))/LOG(2)))) -> 0 | T14: =N14 -> 222 | U14: =COUNTIF(L7:L7,T14) -> 0 | V14: =U14/(W4-U8) -> 0 | W14: =IF(V14=0,0,(V14*((LOG(V14))/LOG(2)))) -> 0 | Y14: =N14 -> 222 | Z14: =COUNTIF(L8:L8,Y14) -> 0 | AA14: =Z14/(AB4-Z8) ->  | AB14: =IF(AA14=0,0,(AA14*((LOG(AA14))/LOG(2)))) ->  | AD14: =N14 -> 222 | AE14: =COUNTIF(L8:L9,AD14) -> 0 | AF14: =AE14/(AG4-AE8) -> 0 | AG14: =IF(AF14=0,0,(AF14*((LOG(AF14))/LOG(2)))) -> 0 | AI14: =N14 -> 222 | AJ14: =COUNTIF(L9:L9,AI14) -> 0 | AK14: =AJ14/(AL4-AJ8) -> 0 | AL14: =IF(AK14=0,0,(AK14*((LOG(AK14))/LOG(2)))) -> 0 | AN14: =N14 -> 222 | AO14: =COUNTIF(L10:L10,AN14) -> 0 | AP14: =AO14/(AQ4-AO8) -> 0 | AQ14: =IF(AP14=0,0,(AP14*((LOG(AP14))/LOG(2)))) -> 0 | AS14: =N14 -> 222 | AT14: =COUNTIF(L11:L11,AS14) -> 0 | AU14: =AT14/(AV4-AT8) -> 0 | AV14: =IF(AU14=0,0,(AU14*((LOG(AU14))/LOG(2)))) -> 0
P15: =SUM(P7:P14) -> 1 | Q15: =-SUM(Q7:Q14) -> 1.370950594 | V15: =SUM(V7:V14) -> 1 | W15: =-SUM(W7:W14) -> 0 | AA15: =SUM(AA7:AA14) ->  | AB15: =-SUM(AB7:AB14) ->  | AF15: =SUM(AF7:AF14) -> 1 | AG15: =-SUM(AG7:AG14) -> 0 | AK15: =SUM(AK7:AK14) -> 1 | AL15: =-SUM(AL7:AL14) -> 0 | AP15: =SUM(AP7:AP14) -> 1 | AQ15: =-SUM(AQ7:AQ14) -> 0 | AU15: =SUM(AU7:AU14) -> 1 | AV15: =-SUM(AV7:AV14) -> 0
P16: U= | Q16: =Q15/(LOG(Q4)/LOG(2)) -> 0.5904362833 | V16: U1= | W16: =W15/(LOG(W4)/LOG(2)) ->  | AA16: U2= | AB16: =AB15/(LOG(AB4)/LOG(2)) ->  | AF16: U3= | AG16: =AG15/(LOG(AG4)/LOG(2)) -> 0 | AK16: U4= | AL16: =AL15/(LOG(AL4)/LOG(2)) ->  | AP16: U5= | AQ16: =AQ15/(LOG(AQ4)/LOG(2)) ->  | AU16: U6= | AV16: =AV15/(LOG(AV4)/LOG(2)) -> 
N19: Total Target Seq
N20: =COUNTIF(L7:L11,G3) -> 1 | P20: 1 | Q20: 1 | R20: 0 | S20: 1 | T20: 1 | U20: 1
P21: % of reinforcement given in 6 equal intervals based on number of trials
P22: %_1 | Q22: %_2 | R22: %_3 | S22: %_4 | T22: %_5 | U22: %_6
O23: target sequence | P23: =$G$3 -> 112 | Q23: =$G$3 -> 112 | R23: =$G$3 -> 112 | S23: =$G$3 -> 112 | T23: =$G$3 -> 112 | U23: =$G$3 -> 112
O24: total reinforcement | P24: =U8 -> 0 | Q24: =Z8 -> 1 | R24: =AE8 -> 1 | S24: =AJ8 -> 0 | T24: =AO8 -> 0 | U24: =AT8 -> 0
O25: % target
O26: CCRF
O27: % CCRf
O28: average response rate | P28: =F7/P20 -> 8349 | Q28: =(F8-F7)/Q20 -> 158 | R28: =(F8-F8)/R20 ->  | S28: =(F9-F8)/S20 -> 827 | T28: =(F10-F9)/T20 -> 124 | U28: =(F11-F10)/U20 -> 118

Sheet !N42982B.AXT
A1: Report for:!N42982B.AXT
A2: Date: | B2: <date>
A3: Hen: | B3: <hen> | F3: Correct Sequence | G3: =Start!J2 -> 112 | P3: Total Sequences in Data | Q3: =4994-COUNTBLANK(L7:L5000) -> 5 | V3: Total Sequences in Block Data | W3: =COUNTA(L7:L7) -> 1 | AA3: Total Sequences in Block Data | AB3: =COUNTA(L8:L8) -> 1 | AF3: Total Sequences in Block Data | AG3: =COUNTA(L8:L9) -> 2 | AK3: Total Sequences in Block Data | AL3: =COUNTA(L9:L9) -> 1 | AP3: Total Sequences in Block Data | AQ3: =COUNTA(L10:L10) -> 1 | AU3: Total Sequences in Block Data | AV3: =COUNTA(L11:L11) -> 1
P4: Total Sequences in Summary | Q4: =SUM(O7:O14) -> 5 | V4: Total Sequences in Block Summary | W4: =SUM(U7:U14) -> 1 | AA4: Total Sequences in Block Summary | AB4: =SUM(Z7:Z14) -> 1 | AF4: Total Sequences in Block Summary | AG4: =SUM(AE7:AE14) -> 2 | AK4: Total Sequences in Block Summary | AL4: =SUM(AJ7:AJ14) -> 1 | AP4: Total Sequences in Block Summary | AQ4: =SUM(AO7:AO14) -> 1 | AU4: Total Sequences in Block Summary | AV4: =SUM(AT7:AT14) -> 1
T5: Block 1 | Y5: Block 2 | AD5: Block 3 | AI5: Block 4 | AN5: Block 5 | AS5: Block 6
A6: Sequence Component 1 | B6: Time 1 | C6: Sequence Component 2 | D6: Time 2 | E6: Sequence Component 3 | F6: Time 3 | G6: Sequence Component 4 | H6: Time 4 | I6: Sequence Component 5 | J6: Time 5 | K6: Correct? 0=No 1=Yes | L6: Sequence | N6: Frequency | P6: Relative Frequency | Q6: Variability | T6: Frequency | V6: Relative Frequency | W6: Variability | Y6: Frequency | AA6: Relative Frequency | AB6: Variability | AD6: Frequency | AF6: Relative Frequency | AG6: Variability | AI6: Frequency | AK6: Relative Frequency | AL6: Variability | AN6: Frequency | AP6: Relative Frequency | AQ6: Variability | AS6: Frequency | AU6: Relative Frequency | AV6: Variability
A7: 22 | B7: 3623 | C7: 24 | D7: 3650 | E7: 14 | F7: 3665 | K7: 0 | L7: 221 | N7: 111 | O7: =COUNTIF($L$7:$L$500,N7) -> 0 | P7: =O7/$Q$4 -> 0 | Q7: =IF(P7=0,0,(P7*((LOG(P7))/LOG(2)))) -> 0 | T7: =N7 -> 111 | U7: =COUNTIF(L7:L7,T7) -> 0 | V7: =U7/(W4-U8) -> 0 | W7: =IF(V7=0,0,(V7*((LOG(V7))/LOG(2)))) -> 0 | Y7: =N7 -> 111 | Z7: =COUNTIF(L8:L8,Y7) -> 0 | AA7: =Z7/(AB4-Z8) -> 0 | AB7: =IF(AA7=0,0,(AA7*((LOG(AA7))/LOG(2)))) -> 0 | AD7: =N7 -> 111 | AE7: =COUNTIF(L8:L9,AD7) -> 0 | AF7: =AE7/(AG4-AE8) -> 0 | AG7: =IF(AF7=0,0,(AF7*((LOG(AF7))/LOG(2)))) -> 0 | AI7: =N7 -> 111 | AJ7: =COUNTIF(L9:L9,AI7) -> 0 | AK7: =AJ7/(AL4-AJ8) ->  | AL7: =IF(AK7=0,0,(AK7*((LOG(AK7))/LOG(2)))) ->  | AN7: =N7 -> 111 | AO7: =COUNTIF(L10:L10,AN7) -> 0 | AP7: =AO7/(AQ4-AO8) -> 0 | AQ7: =IF(AP7=0,0,(AP7*((LOG(AP7))/LOG(2)))) -> 0 | AS7: =N7 -> 111 | AT7: =COUNTIF(L11:L11,AS7) -> 0 | AU7: =AT7/(AV4-AT8) -> 0 | AV7: =IF(AU7=0,0,(AU7*((LOG(AU7))/LOG(2)))) -> 0
A8: 11 | B8: 3898 | C8: 22 | D8: 3909 | E8: 14 | F8: 3922 | K8: 0 | L8: 121 | N8: 112 | O8: =COUNTIF($L$7:$L$500,N8) -> 1 | P8: =O8/$Q$4 -> 0.2 | Q8: =IF(P8=0,0,(P8*((LOG(P8))/LOG(2)))) -> -0.464385619 | T8: =N8 -> 112 | U8: =COUNTIF(L7:L7,T8) -> 0 | Y8: =N8 -> 112 | Z8: =COUNTIF(L8:L8,Y8) -> 0 | AD8: =N8 -> 112 | AE8: =COUNTIF(L8:L9,AD8) -> 1 | AI8: =N8 -> 112 | AJ8: =COUNTIF(L9:L9,AI8) -> 1 | AN8: =N8 -> 112 | AO8: =COUNTIF(L10:L10,AN8) -> 0 | AS8: =N8 -> 112 | AT8: =COUNTIF(L11:L11,AS8) -> 0
A9: 11 | B9: 4051 | C9: 11 | D9: 4058 | E9: 21 | F9: 4070 | K9: 0 | L9: 112 | N9: 121 | O9: =COUNTIF($L$7:$L$500,N9) -> 2 | P9: =O9/$Q$4 -> 0.4 | Q9: =IF(P9=0,0,(P9*((LOG(P9))/LOG(2)))) -> -0.528771238 | T9: =N9 -> 121 | U9: =COUNTIF(L7:L7,T9) -> 0 | V9: =U9/(W4-U8) -> 0 | W9: =IF(V9=0,0,(V9*((LOG(V9))/LOG(2)))) -> 0 | Y9: =N9 -> 121 | Z9: =COUNTIF(L8:L8,Y9) -> 1 | AA9: =Z9/(AB4-Z8) -> 1 | AB9: =IF(AA9=0,0,(AA9*((LOG(AA9))/LOG(2)))) -> 0 | AD9: =N9 -> 121 | AE9: =COUNTIF(L8:L9,AD9) -> 1 | AF9: =AE9/(AG4-AE8) -> 1 | AG9: =IF(AF9=0,0,(AF9*((LOG(AF9))/LOG(2)))) -> 0 | AI9: =N9 -> 121 | AJ9: =COUNTIF(L9:L9,AI9) -> 0 | AK9: =AJ9/(AL4-AJ8) ->  | AL9: =IF(AK9=0,0,(AK9*((LOG(AK9))/LOG(2)))) ->  | AN9: =N9 -> 121 | AO9: =COUNTIF(L10:L10,AN9) -> 0 | AP9: =AO9/(AQ4-AO8) -> 0 | AQ9: =IF(AP9=0,0,(AP9*((LOG(AP9))/LOG(2)))) -> 0 | AS9: =N9 -> 121 | AT9: =COUNTIF(L11:L11,AS9) -> 1 | AU9: =AT9/(AV4-AT8) -> 1 | AV9: =IF(AU9=0,0,(AU9*((LOG(AU9))/LOG(2)))) -> 0
A10: 22 | B10: 4342 | C10: 24 | D10: 4357 | E10: 23 | F10: 4360 | K10: 0 | L10: 222 | N10: 122 | O10: =COUNTIF($L$7:$L$500,N10) -> 0 | P10: =O10/$Q$4 -> 0 | Q10: =IF(P10=0,0,(P10*((LOG(P10))/LOG(2)))) -> 0 | T10: =N10 -> 122 | U10: =COUNTIF(L7:L7,T10) -> 0 | V10: =U10/(W4-U8) -> 0 | W10: =IF(V10=0,0,(V10*((LOG(V10))/LOG(2)))) -> 0 | Y10: =N10 -> 122 | Z10: =COUNTIF(L8:L8,Y10) -> 0 | AA10: =Z10/(AB4-Z8) -> 0 | AB10: =IF(AA10=0,0,(AA10*((LOG(AA10))/LOG(2)))) -> 0 | AD10: =N10 -> 122 | AE10: =COUNTIF(L8:L9,AD10) -> 0 | AF10: =AE10/(AG4-AE8) -> 0 | AG10: =IF(AF10=0,0,(AF10*((LOG(AF10))/LOG(2)))) -> 0 | AI10: =N10 -> 122 | AJ10: =COUNTIF(L9:L9,AI10) -> 0 | AK10: =AJ10/(AL4-AJ8) ->  | AL10: =IF(AK10=0,0,(AK10*((LOG(AK10))/LOG(2)))) ->  | AN10: =N10 -> 122 | AO10: =COUNTIF(L10:L10,AN10) -> 0 | AP10: =AO10/(AQ4-AO8) -> 0 | AQ10: =IF(AP10=0,0,(AP10*((LOG(AP10))/LOG(2)))) -> 0 | AS10: =N10 -> 122 | AT10: =COUNTIF(L11:L11,AS10) -> 0 | AU10: =AT10/(AV4-AT8) -> 0 | AV10: =IF(AU10=0,0,(AU10*((LOG(AU10))/LOG(2)))) -> 0
A11: 11 | B11: 7303 | C11: 22 | D11: 7316 | E11: 14 | F11: 7336 | K11: 0 | L11: 121 | N11: 211 | O11: =COUNTIF($L$7:$L$500,N11) -> 0 | P11: =O11/$Q$4 -> 0 | Q11: =IF(P11=0,0,(P11*((LOG(P11))/LOG(2)))) -> 0 | T11: =N11 -> 211 | U11: =COUNTIF(L7:L7,T11) -> 0 | V11: =U11/(W4-U8) -> 0 | W11: =IF(V11=0,0,(V11*((LOG(V11))/LOG(2)))) -> 0 | Y11: =N11 -> 211 | Z11: =COUNTIF(L8:L8,Y11) -> 0 | AA11: =Z11/(AB4-Z8) -> 0 | AB11: =IF(AA11=0,0,(AA11*((LOG(AA11))/LOG(2)))) -> 0 | AD11: =N11 -> 211 | AE11: =COUNTIF(L8:L9,AD11) -> 0 | AF11: =AE11/(AG4-AE8) -> 0 | AG11: =IF(AF11=0,0,(AF11*((LOG(AF11))/LOG(2)))) -> 0 | AI11: =N11 -> 211 | AJ11: =COUNTIF(L9:L9,AI11) -> 0 | AK11: =AJ11/(AL4-AJ8) ->  | AL11: =IF(AK11=0,0,(AK11*((LOG(AK11))/LOG(2)))) ->  | AN11: =N11 -> 211 | AO11: =COUNTIF(L10:L10,AN11) -> 0 | AP11: =AO11/(AQ4-AO8) -> 0 | AQ11: =IF(AP11=0,0,(AP11*((LOG(AP11))/LOG(2)))) -> 0 | AS11: =N11 -> 211 | AT11: =COUNTIF(L11:L11,AS11) -> 0 | AU11: =AT11/(AV4-AT8) -> 0 | AV11: =IF(AU11=0,0,(AU11*((LOG(AU11))/LOG(2)))) -> 0
N12: 212 | O12: =COUNTIF($L$7:$L$500,N12) -> 0 | P12: =O12/$Q$4 -> 0 | Q12: =IF(P12=0,0,(P12*((LOG(P12))/LOG(2)))) -> 0 | T12: =N12 -> 212 | U12: =COUNTIF(L7:L7,T12) -> 0 | V12: =U12/(W4-U8) -> 0 | W12: =IF(V12=0,0,(V12*((LOG(V12))/LOG(2)))) -> 0 | Y12: =N12 -> 212 | Z12: =COUNTIF(L8:L8,Y12) -> 0 | AA12: =Z12/(AB4-Z8) -> 0 | AB12: =IF(AA12=0,0,(AA12*((LOG(AA12))/LOG(2)))) -> 0 | AD12: =N12 -> 212 | AE12: =COUNTIF(L8:L9,AD12) -> 0 | AF12: =AE12/(AG4-AE8) -> 0 | AG12: =IF(AF12=0,0,(AF12*((LOG(AF12))/LOG(2)))) -> 0 | AI12: =N12 -> 212 | AJ12: =COUNTIF(L9:L9,AI12) -> 0 | AK12: =AJ12/(AL4-AJ8) ->  | AL12: =IF(AK12=0,0,(AK12*((LOG(AK12))/LOG(2)))) ->  | AN12: =N12 -> 212 | AO12: =COUNTIF(L10:L10,AN12) -> 0 | AP12: =AO12/(AQ4-AO8) -> 0 | AQ12: =IF(AP12=0,0,(AP12*((LOG(AP12))/LOG(2)))) -> 0 | AS12: =N12 -> 212 | AT12: =COUNTIF(L11:L11,AS12) -> 0 | AU12: =AT12/(AV4-AT8) -> 0 | AV12: =IF(AU12=0,0,(AU12*((LOG(AU12))/LOG(2)))) -> 0
N13: 221 | O13: =COUNTIF($L$7:$L$500,N13) -> 1 | P13: =O13/$Q$4 -> 0.2 | Q13: =IF(P13=0,0,(P13*((LOG(P13))/LOG(2)))) -> -0.464385619 | T13: =N13 -> 221 | U13: =COUNTIF(L7:L7,T13) -> 1 | V13: =U13/(W4-U8) -> 1 | W13: =IF(V13=0,0,(V13*((LOG(V13))/LOG(2)))) -> 0 | Y13: =N13 -> 221 | Z13: =COUNTIF(L8:L8,Y13) -> 0 | AA13: =Z13/(AB4-Z8) -> 0 | AB13: =IF(AA13=0,0,(AA13*((LOG(AA13))/LOG(2)))) -> 0 | AD13: =N13 -> 221 | AE13: =COUNTIF(L8:L9,AD13) -> 0 | AF13: =AE13/(AG4-AE8) -> 0 | AG13: =IF(AF13=0,0,(AF13*((LOG(AF13))/LOG(2)))) -> 0 | AI13: =N13 -> 221 | AJ13: =COUNTIF(L9:L9,AI13) -> 0 | AK13: =AJ13/(AL4-AJ8) ->  | AL13: =IF(AK13=0,0,(AK13*((LOG(AK13))/LOG(2)))) ->  | AN13: =N13 -> 221 | AO13: =COUNTIF(L10:L10,AN13) -> 0 | AP13: =AO13/(AQ4-AO8) -> 0 | AQ13: =IF(AP13=0,0,(AP13*((LOG(AP13))/LOG(2)))) -> 0 | AS13: =N13 -> 221 | AT13: =COUNTIF(L11:L11,AS13) -> 0 | AU13: =AT13/(AV4-AT8) -> 0 | AV13: =IF(AU13=0,0,(AU13*((LOG(AU13))/LOG(2)))) -> 0
N14: 222 | O14: =COUNTIF($L$7:$L$500,N14) -> 1 | P14: =O14/$Q$4 -> 0.2 | Q14: =IF(P14=0,0,(P14*((LOG(P14))/LOG(2)))) -> -0.464385619 | T14: =N14 -> 222 | U14: =COUNTIF(L7:L7,T14) -> 0 | V14: =U14/(W4-U8) -> 0 | W14: =IF(V14=0,0,(V14*((LOG(V14))/LOG(2)))) -> 0 | Y14: =N14 -> 222 | Z14: =COUNTIF(L8:L8,Y14) -> 0 | AA14: =Z14/(AB4-Z8) -> 0 | AB14: =IF(AA14=0,0,(AA14*((LOG(AA14))/LOG(2)))) -> 0 | AD14: =N14 -> 222 | AE14: =COUNTIF(L8:L9,AD14) -> 0 | AF14: =AE14/(AG4-AE8) -> 0 | AG14: =IF(AF14=0,0,(AF14*((LOG(AF14))/LOG(2)))) -> 0 | AI14: =N14 -> 222 | AJ14: =COUNTIF(L9:L9,AI14) -> 0 | AK14: =AJ14/(AL4-AJ8) ->  | AL14: =IF(AK14=0,0,(AK14*((LOG(AK14))/LOG(2)))) ->  | AN14: =N14 -> 222 | AO14: =COUNTIF(L10:L10,AN14) -> 1 | AP14: =AO14/(AQ4-AO8) -> 1 | AQ14: =IF(AP14=0,0,(AP14*((LOG(AP14))/LOG(2)))) -> 0 | AS14: =N14 -> 222 | AT14: =COUNTIF(L11:L11,AS14) -> 0 | AU14: =AT14/(AV4-AT8) -> 0 | AV14: =IF(AU14=0,0,(AU14*((LOG(AU14))/LOG(2)))) -> 0
P15: =SUM(P7:P14) -> 1 | Q15: =-SUM(Q7:Q14) -> 1.921928095 | V15: =SUM(V7:V14) -> 1 | W15: =-SUM(W7:W14) -> 0 | AA15: =SUM(AA7:AA14) -> 1 | AB15: =-SUM(AB7:AB14) -> 0 | AF15: =SUM(AF7:AF14) -> 1 | AG15: =-SUM(AG7:AG14) -> 0 | AK15: =SUM(AK7:AK14) ->  | AL15: =-SUM(AL7:AL14) ->  | AP15: =SUM(AP7:AP14) -> 1 | AQ15: =-SUM(AQ7:AQ14) -> 0 | AU15: =SUM(AU7:AU14) -> 1 | AV15: =-SUM(AV7:AV14) -> 0
P16: U= | Q16: =Q15/(LOG(Q4)/LOG(2)) -> 0.8277293768 | V16: U1= | W16: =W15/(LOG(W4)/LOG(2)) ->  | AA16: U2= | AB16: =AB15/(LOG(AB4)/LOG(2)) ->  | AF16: U3= | AG16: =AG15/(LOG(AG4)/LOG(2)) -> 0 | AK16: U4= | AL16: =AL15/(LOG(AL4)/LOG(2)) ->  | AP16: U5= | AQ16: =AQ15/(LOG(AQ4)/LOG(2)) ->  | AU16: U6= | AV16: =AV15/(LOG(AV4)/LOG(2)) -> 
N19: Total Target Seq
N20: =COUNTIF(L7:L11,G3) -> 1 | P20: 1 | Q20: 1 | R20: 0 | S20: 1 | T20: 1 | U20: 1
P21: % of reinforcement given in 6 equal intervals based on number of trials
P22: %_1 | Q22: %_2 | R22: %_3 | S22: %_4 | T22: %_5 | U22: %_6
O23: target sequence | P23: =$G$3 -> 112 | Q23: =$G$3 -> 112 | R23: =$G$3 -> 112 | S23: =$G$3 -> 112 | T23: =$G$3 -> 112 | U23: =$G$3 -> 112
O24: total reinforcement | P24: =U8 -> 0 | Q24: =Z8 -> 0 | R24: =AE8 -> 1 | S24: =AJ8 -> 1 | T24: =AO8 -> 0 | U24: =AT8 -> 0
O25: % target
O26: CCRF
O27: % CCRf
O28: average response rate | P28: =F7/P20 -> 3665 | Q28: =(F8-F7)/Q20 -> 257 | R28: =(F8-F8)/R20 ->  | S28: =(F9-F8)/S20 -> 148 | T28: =(F10-F9)/T20 -> 290 | U28: =(F11-F10)/U20 -> 2976

Sheet !N501A0B.AXT
A1: Report for:!N501A0B.AXT
A2: Date: | B2: <date>
A3: Hen: | B3: <hen> | F3: Correct Sequence | G3: =Start!J2 -> 112 | P3: Total Sequences in Data | Q3: =4994-COUNTBLANK(L7:L5000) -> 2 | V3: Total Sequences in Block Data | W3: =COUNTA(L6:L7) -> 2 | AA3: Total Sequences in Block Data | AB3: =COUNTA(L7:L7) -> 1 | AF3: Total Sequences in Block Data | AG3: =COUNTA(L7:L8) -> 2 | AK3: Total Sequences in Block Data | AL3: =COUNTA(L7:L8) -> 2 | AP3: Total Sequences in Block Data | AQ3: =COUNTA(L8:L8) -> 1 | AU3: Total Sequences in Block Data | AV3: =COUNTA(L8:L9) -> 1
P4: Total Sequences in Summary | Q4: =SUM(O7:O14) -> 1 | V4: Total Sequences in Block Summary | W4: =SUM(U7:U14) -> 1 | AA4: Total Sequences in Block Summary | AB4: =SUM(Z7:Z14) -> 1 | AF4: Total Sequences in Block Summary | AG4: =SUM(AE7:AE14) -> 1 | AK4: Total Sequences in Block Summary | AL4: =SUM(AJ7:AJ14) -> 1 | AP4: Total Sequences in Block Summary | AQ4: =SUM(AO7:AO14) -> 0 | AU4: Total Sequences in Block Summary | AV4: =SUM(AT7:AT14) -> 0
T5: Block 1 | Y5: Block 2 | AD5: Block 3 | AI5: Block 4 | AN5: Block 5 | AS5: Block 6
A6: Sequence Component 1 | B6: Time 1 | C6: Sequence Component 2 | D6: Time 2 | E6: Sequence Component 3 | F6: Time 3 | G6: Sequence Component 4 | H6: Time 4 | I6: Sequence Component 5 | J6: Time 5 | K6: Correct? 0=No 1=Yes | L6: Sequence | N6: Frequency | P6: Relative Frequency | Q6: Variability | T6: Frequency | V6: Relative Frequency | W6: Variability | Y6: Frequency | AA6: Relative Frequency | AB6: Variability | AD6: Frequency | AF6: Relative Frequency | AG6: Variability | AI6: Frequency | AK6: Relative Frequency | AL6: Variability | AN6: Frequency | AP6: Relative Frequency | AQ6: Variability | AS6: Frequency | AU6: Relative Frequency | AV6: Variability
A7: 11 | B7: 1297 | C7: 22 | D7: 1305 | E7: 23 | F7: 1314 | K7: 0 | L7: 122 | N7: 111 | O7: =COUNTIF($L$7:$L$500,N7) -> 0 | P7: =O7/$Q$4 -> 0 | Q7: =IF(P7=0,0,(P7*((LOG(P7))/LOG(2)))) -> 0 | T7: =N7 -> 111 | U7: =COUNTIF(L6:L7,T7) -> 0 | V7: =U7/(W4-U8) -> 0 | W7: =IF(V7=0,0,(V7*((LOG(V7))/LOG(2)))) -> 0 | Y7: =N7 -> 111 | Z7: =COUNTIF(L7:L7,Y7) -> 0 | AA7: =Z7/(AB4-Z8) -> 0 | AB7: =IF(AA7=0,0,(AA7*((LOG(AA7))/LOG(2)))) -> 0 | AD7: =N7 -> 111 | AE7: =COUNTIF(L7:L8,AD7) -> 0 | AF7: =AE7/(AG4-AE8) -> 0 | AG7: =IF(AF7=0,0,(AF7*((LOG(AF7))/LOG(2)))) -> 0 | AI7: =N7 -> 111 | AJ7: =COUNTIF(L7:L8,AI7) -> 0 | AK7: =AJ7/(AL4-AJ8) -> 0 | AL7: =IF(AK7=0,0,(AK7*((LOG(AK7))/LOG(2)))) -> 0 | AN7: =N7 -> 111 | AO7: =COUNTIF(L8:L8,AN7) -> 0 | AP7: =AO7/(AQ4-AO8) ->  | AQ7: =IF(AP7=0,0,(AP7*((LOG(AP7))/LOG(2)))) ->  | AS7: =N7 -> 111 | AT7: =COUNTIF(L8:L9,AS7) -> 0 | AU7: =AT7/(AV4-AT8) ->  | AV7: =IF(AU7=0,0,(AU7*((LOG(AU7))/LOG(2)))) -> 
A8: 22 | B8: 16009 | L8: 2 | N8: 112 | O8: =COUNTIF($L$7:$L$500,N8) -> 0 | P8: =O8/$Q$4 -> 0 | Q8: =IF(P8=0,0,(P8*((LOG(P8))/LOG(2)))) -> 0 | T8: =N8 -> 112 | U8: =COUNTIF(L6:L7,T8) -> 0 | Y8: =N8 -> 112 | Z8: =COUNTIF(L7:L7,Y8) -> 0 | AD8: =N8 -> 112 | AE8: =COUNTIF(L7:L8,AD8) -> 0 | AI8: =N8 -> 112 | AJ8: =COUNTIF(L7:L8,AI8) -> 0 | AN8: =N8 -> 112 | AO8: =COUNTIF(L8:L8,AN8) -> 0 | AS8: =N8 -> 112 | AT8: =COUNTIF(L8:L9,AS8) -> 0
N9: 121 | O9: =COUNTIF($L$7:$L$500,N9) -> 0 | P9: =O9/$Q$4 -> 0 | Q9: =IF(P9=0,0,(P9*((LOG(P9))/LOG(2)))) -> 0 | T9: =N9 -> 121 | U9: =COUNTIF(L6:L7,T9) -> 0 | V9: =U9/(W4-U8) -> 0 | W9: =IF(V9=0,0,(V9*((LOG(V9))/LOG(2)))) -> 0 | Y9: =N9 -> 121 | Z9: =COUNTIF(L7:L7,Y9) -> 0 | AA9: =Z9/(AB4-Z8) -> 0 | AB9: =IF(AA9=0,0,(AA9*((LOG(AA9))/LOG(2)))) -> 0 | AD9: =N9 -> 121 | AE9: =COUNTIF(L7:L8,AD9) -> 0 | AF9: =AE9/(AG4-AE8) -> 0 | AG9: =IF(AF9=0,0,(AF9*((LOG(AF9))/LOG(2)))) -> 0 | AI9: =N9 -> 121 | AJ9: =COUNTIF(L7:L8,AI9) -> 0 | AK9: =AJ9/(AL4-AJ8) -> 0 | AL9: =IF(AK9=0,0,(AK9*((LOG(AK9))/LOG(2)))) -> 0 | AN9: =N9 -> 121 | AO9: =COUNTIF(L8:L8,AN9) -> 0 | AP9: =AO9/(AQ4-AO8) ->  | AQ9: =IF(AP9=0,0,(AP9*((LOG(AP9))/LOG(2)))) ->  | AS9: =N9 -> 121 | AT9: =COUNTIF(L8:L9,AS9) -> 0 | AU9: =AT9/(AV4-AT8) ->  | AV9: =IF(AU9=0,0,(AU9*((LOG(AU9))/LOG(2)))) -> 
N10: 122 | O10: =COUNTIF($L$7:$L$500,N10) -> 1 | P10: =O10/$Q$4 -> 1 | Q10: =IF(P10=0,0,(P10*((LOG(P10))/LOG(2)))) -> 0 | T10: =N10 -> 122 | U10: =COUNTIF(L6:L7,T10) -> 1 | V10: =U10/(W4-U8) -> 1 | W10: =IF(V10=0,0,(V10*((LOG(V10))/LOG(2)))) -> 0 | Y10: =N10 -> 122 | Z10: =COUNTIF(L7:L7,Y10) -> 1 | AA10: =Z10/(AB4-Z8) -> 1 | AB10: =IF(AA10=0,0,(AA10*((LOG(AA10))/LOG(2)))) -> 0 | AD10: =N10 -> 122 | AE10: =COUNTIF(L7:L8,AD10) -> 1 | AF10: =AE10/(AG4-AE8) -> 1 | AG10: =IF(AF10=0,0,(AF10*((LOG(AF10))/LOG(2)))) -> 0 | AI10: =N10 -> 122 | AJ10: =COUNTIF(L7:L8,AI10) -> 1 | AK10: =AJ10/(AL4-AJ8) -> 1 | AL10: =IF(AK10=0,0,(AK10*((LOG(AK10))/LOG(2)))) -> 0 | AN10: =N10 -> 122 | AO10: =COUNTIF(L8:L8,AN10) -> 0 | AP10: =AO10/(AQ4-AO8) ->  | AQ10: =IF(AP10=0,0,(AP10*((LOG(AP10))/LOG(2)))) ->  | AS10: =N10 -> 122 | AT10: =COUNTIF(L8:L9,AS10) -> 0 | AU10: =AT10/(AV4-AT8) ->  | AV10: =IF(AU10=0,0,(AU10*((LOG(AU10))/LOG(2)))) -> 
N11: 211 | O11: =COUNTIF($L$7:$L$500,N11) -> 0 | P11: =O11/$Q$4 -> 0 | Q11: =IF(P11=0,0,(P11*((LOG(P11))/LOG(2)))) -> 0 | T11: =N11 -> 211 | U11: =COUNTIF(L6:L7,T11) -> 0 | V11: =U11/(W4-U8) -> 0 | W11: =IF(V11=0,0,(V11*((LOG(V11))/LOG(2)))) -> 0 | Y11: =N11 -> 211 | Z11: =COUNTIF(L7:L7,Y11) -> 0 | AA11: =Z11/(AB4-Z8) -> 0 | AB11: =IF(AA11=0,0,(AA11*((LOG(AA11))/LOG(2)))) -> 0 | AD11: =N11 -> 211 | AE11: =COUNTIF(L7:L8,AD11) -> 0 | AF11: =AE11/(AG4-AE8) -> 0 | AG11: =IF(AF11=0,0,(AF11*((LOG(AF11))/LOG(2)))) -> 0 | AI11: =N11 -> 211 | AJ11: =COUNTIF(L7:L8,AI11) -> 0 | AK11: =AJ11/(AL4-AJ8) -> 0 | AL11: =IF(AK11=0,0,(AK11*((LOG(AK11))/LOG(2)))) -> 0 | AN11: =N11 -> 211 | AO11: =COUNTIF(L8:L8,AN11) -> 0 | AP11: =AO11/(AQ4-AO8) ->  | AQ11: =IF(AP11=0,0,(AP11*((LOG(AP11))/LOG(2)))) ->  | AS11: =N11 -> 211 | AT11: =COUNTIF(L8:L9,AS11) -> 0 | AU11: =AT11/(AV4-AT8) ->  | AV11: =IF(AU11=0,0,(AU11*((LOG(AU11))/LOG(2)))) -> 
N12: 212 | O12: =COUNTIF($L$7:$L$500,N12) -> 0 | P12: =O12/$Q$4 -> 0 | Q12: =IF(P12=0,0,(P12*((LOG(P12))/LOG(2)))) -> 0 | T12: =N12 -> 212 | U12: =COUNTIF(L6:L7,T12) -> 0 | V12: =U12/(W4-U8) -> 0 | W12: =IF(V12=0,0,(V12*((LOG(V12))/LOG(2)))) -> 0 | Y12: =N12 -> 212 | Z12: =COUNTIF(L7:L7,Y12) -> 0 | AA12: =Z12/(AB4-Z8) -> 0 | AB12: =IF(AA12=0,0,(AA12*((LOG(AA12))/LOG(2)))) -> 0 | AD12: =N12 -> 212 | AE12: =COUNTIF(L7:L8,AD12) -> 0 | AF12: =AE12/(AG4-AE8) -> 0 | AG12: =IF(AF12=0,0,(AF12*((LOG(AF12))/LOG(2)))) -> 0 | AI12: =N12 -> 212 | AJ12: =COUNTIF(L7:L8,AI12) -> 0 | AK12: =AJ12/(AL4-AJ8) -> 0 | AL12: =IF(AK12=0,0,(AK12*((LOG(AK12))/LOG(2)))) -> 0 | AN12: =N12 -> 212 | AO12: =COUNTIF(L8:L8,AN12) -> 0 | AP12: =AO12/(AQ4-AO8) ->  | AQ12: =IF(AP12=0,0,(AP12*((LOG(AP12))/LOG(2)))) ->  | AS12: =N12 -> 212 | AT12: =COUNTIF(L8:L9,AS12) -> 0 | AU12: =AT12/(AV4-AT8) ->  | AV12: =IF(AU12=0,0,(AU12*((LOG(AU12))/LOG(2)))) -> 
N13: 221 | O13: =COUNTIF($L$7:$L$500,N13) -> 0 | P13: =O13/$Q$4 -> 0 | Q13: =IF(P13=0,0,(P13*((LOG(P13))/LOG(2)))) -> 0 | T13: =N13 -> 221 | U13: =COUNTIF(L6:L7,T13) -> 0 | V13: =U13/(W4-U8) -> 0 | W13: =IF(V13=0,0,(V13*((LOG(V13))/LOG(2)))) -> 0 | Y13: =N13 -> 221 | Z13: =COUNTIF(L7:L7,Y13) -> 0 | AA13: =Z13/(AB4-Z8) -> 0 | AB13: =IF(AA13=0,0,(AA13*((LOG(AA13))/LOG(2)))) -> 0 | AD13: =N13 -> 221 | AE13: =COUNTIF(L7:L8,AD13) -> 0 | AF13: =AE13/(AG4-AE8) -> 0 | AG13: =IF(AF13=0,0,(AF13*((LOG(AF13))/LOG(2)))) -> 0 | AI13: =N13 -> 221 | AJ13: =COUNTIF(L7:L8,AI13) -> 0 | AK13: =AJ13/(AL4-AJ8) -> 0 | AL13: =IF(AK13=0,0,(AK13*((LOG(AK13))/LOG(2)))) -> 0 | AN13: =N13 -> 221 | AO13: =COUNTIF(L8:L8,AN13) -> 0 | AP13: =AO13/(AQ4-AO8) ->  | AQ13: =IF(AP13=0,0,(AP13*((LOG(AP13))/LOG(2)))) ->  | AS13: =N13 -> 221 | AT13: =COUNTIF(L8:L9,AS13) -> 0 | AU13: =AT13/(AV4-AT8) ->  | AV13: =IF(AU13=0,0,(AU13*((LOG(AU13))/LOG(2)))) -> 
N14: 222 | O14: =COUNTIF($L$7:$L$500,N14) -> 0 | P14: =O14/$Q$4 -> 0 | Q14: =IF(P14=0,0,(P14*((LOG(P14))/LOG(2)))) -> 0 | T14: =N14 -> 222 | U14: =COUNTIF(L6:L7,T14) -> 0 | V14: =U14/(W4-U8) -> 0 | W14: =IF(V14=0,0,(V14*((LOG(V14))/LOG(2)))) -> 0 | Y14: =N14 -> 222 | Z14: =COUNTIF(L7:L7,Y14) -> 0 | AA14: =Z14/(AB4-Z8) -> 0 | AB14: =IF(AA14=0,0,(AA14*((LOG(AA14))/LOG(2)))) -> 0 | AD14: =N14 -> 222 | AE14: =COUNTIF(L7:L8,AD14) -> 0 | AF14: =AE14/(AG4-AE8) -> 0 | AG14: =IF(AF14=0,0,(AF14*((LOG(AF14))/LOG(2)))) -> 0 | AI14: =N14 -> 222 | AJ14: =COUNTIF(L7:L8,AI14) -> 0 | AK14: =AJ14/(AL4-AJ8) -> 0 | AL14: =IF(AK14=0,0,(AK14*((LOG(AK14))/LOG(2)))) -> 0 | AN14: =N14 -> 222 | AO14: =COUNTIF(L8:L8,AN14) -> 0 | AP14: =AO14/(AQ4-AO8) ->  | AQ14: =IF(AP14=0,0,(AP14*((LOG(AP14))/LOG(2)))) ->  | AS14: =N14 -> 222 | AT14: =COUNTIF(L8:L9,AS14) -> 0 | AU14: =AT14/(AV4-AT8) ->  | AV14: =IF(AU14=0,0,(AU14*((LOG(AU14))/LOG(2)))) -> 
P15: =SUM(P7:P14) -> 1 | Q15: =-SUM(Q7:Q14) -> 0 | V15: =SUM(V7:V14) -> 1 | W15: =-SUM(W7:W14) -> 0 | AA15: =SUM(AA7:AA14) -> 1 | AB15: =-SUM(AB7:AB14) -> 0 | AF15: =SUM(AF7:AF14) -> 1 | AG15: =-SUM(AG7:AG14) -> 0 | AK15: =SUM(AK7:AK14) -> 1 | AL15: =-SUM(AL7:AL14) -> 0 | AP15: =SUM(AP7:AP14) ->  | AQ15: =-SUM(AQ7:AQ14) ->  | AU15: =SUM(AU7:AU14) ->  | AV15: =-SUM(AV7:AV14) -> 
P16: U= | Q16: =Q15/(LOG(Q4)/LOG(2)) ->  | V16: U1= | W16: =W15/(LOG(W4)/LOG(2)) ->  | AA16: U2= | AB16: =AB15/(LOG(AB4)/LOG(2)) ->  | AF16: U3= | AG16: =AG15/(LOG(AG4)/LOG(2)) ->  | AK16: U4= | AL16: =AL15/(LOG(AL4)/LOG(2)) ->  | AP16: U5= | AQ16: =AQ15/(LOG(AQ4)/LOG(2)) ->  | AU16: U6= | AV16: =AV15/(LOG(AV4)/LOG(2)) -> 
N19: Total Target Seq
N20: =COUNTIF(L7:L8,G3) -> 0 | P20: 0 | Q20: 1 | R20: 0 | S20: 0 | T20: 1 | U20: 0
P21: % of reinforcement given in 6 equal intervals based on number of trials
P22: %_1 | Q22: %_2 | R22: %_3 | S22: %_4 | T22: %_5 | U22: %_6
O23: target sequence | P23: =$G$3 -> 112 | Q23: =$G$3 -> 112 | R23: =$G$3 -> 112 | S23: =$G$3 -> 112 | T23: =$G$3 -> 112 | U23: =$G$3 -> 112
O24: total reinforcement | P24: =U8 -> 0 | Q24: =Z8 -> 0 | R24: =AE8 -> 0 | S24: =AJ8 -> 0 | T24: =AO8 -> 0 | U24: =AT8 -> 0
O25: % target
O26: CCRF
O27: % CCRf
O28: average response rate | P28: =F6/P20 ->  | Q28: =(F7-F6)/Q20 ->  | R28: =(F7-F7)/R20 ->  | S28: =(F7-F7)/S20 ->  | T28: =(F8-F7)/T20 -> -1314 | U28: =(F8-F8)/U20 -> 
